{"text_format":"1","workbook":"xlsx","n_sheets":1,"sheets":["conceptos"],"not_rendered":{"charts":0,"images":2,"macros":1,"external_links":0,"defined_names":1,"comments":0,"pivot_tables":0},"unopened":[],"bounds":{"document_bytes":16777216,"sheet_cells":100000,"rows_first":2000,"rows_last":500,"rows_between":2000,"halvings":0,"cell_chars":16384,"cell_head_chars":4096},"cells_cut":0,"cells_raw":0,"read":"whole","date_system":"1900"}

{"sheet":"conceptos","index":0,"n_rows":413,"n_cols":8,"rows_kept":413,"cut":false,"hidden":false,"merged":[[410,0,410,4],[411,0,412,4],[13,0,13,6],[0,2,0,5],[9,2,9,5],[1,2,3,5],[4,2,4,3],[6,2,6,3],[7,2,7,3],[4,4,4,5],[5,4,5,5],[6,4,6,5],[7,4,7,5],[10,2,10,5],[11,2,11,5],[5,1,8,1]]}
[null,"GOBIERNO DEL ESTADO DE JALISCO","LICITACIÓN PÚBLICA ESTATAL"]
[null,"INSTITUTO DE LA INFRAESTRUCTURA FÍSICA EDUCATIVA DEL","INFEJAL-E-REMB2020-B-CON-05904-LP-0097-2021"]
[null,"ESTADO DE JALISCO"]
[]
[null,"DESCRIPCIÓN GENERAL DE LOS TRABAJOS:","FECHA DE INICIO:"]
[null,null,null,"FECHA DE TERMINACIÓN:"]
[null,null,"PLAZO DE EJECUCIÓN:"]
[null,null,"FECHA:"]
[]
[null,"RAZÓN SOCIAL DEL LICITANTE:","NOMBRE, CARGO Y FIRMA DEL LICITANTE:",null,null,null,"DOCUMENTO"]
[]
[]
[]
["PRESUPUESTO DE OBRA"]
[]
["CLAVE","DESCRIPCIÓN","UNIDAD","CANTIDAD","PRECIO UNITARIO ($)","PRECIO UNITARIO ($) CON LETRA","IMPORTE ($) M.N."]
["TRABAJO : BAS-CON-05904","CONSTRUCCIÓN DE ESTRUCTURA CON LONARIA, PÓRTICO DE INGRESO, ANDADOR, BARDA PERIMETRAL, REHABILITACIÓN DE CUBIERTAS, CANCHA DE USOS MÚLTIPLES Y OBRA EXTERIOR EN LA TELESECUNDARIA SALVADOR ALVARADO CCT 14DTV0241X, UBICADA EN LA LOCALIDAD SANTA TERESA, MUNICIPIO DE COCULA, JALISCO.",null,null,null,null,{"$f":"TEXT(SUM(G18 + G87 + G123 + G158 + G209 + G235 + G267 + G291 + G323 + G326 + G329), \"$ #,##0.00 ;\")","v":"$ 0.00 "}]
["EDFS","EDIFICIOS",null,null,null,null,{"$f":"TEXT(SUM(G19 + G34 + G37 + G45 + G49 + G52 + G54 + G78 + G84), \"$ #,##0.00 ;\")","v":"$ 0.00 "}]
["EDFS.01(140)","DEMOLICIONES, DESMONTAJES Y MECANICA DE SUELOS    ",null,null,null,null,{"$f":"TEXT(SUM(G20:G33), \"$ #,##0.00 ;\")","v":"$ 0.00 "}]
[140017,"DESMONTAJE DE PERFILES ESTRUCTURALES TALES COMO POLIN MON-TEN, ANGULOS, TUBULARES, PTR, IPS, IPR, CPS, ETC. EXISTENTES EN OBRA, CON RECUPERACION, PARA SU POSTERIOR COLOCACION, INCLUYE: HERRAMIENTA, EQUIPO DE CORTE, ANDAMIOS, MANO DE OBRA ESPECIALIZADAS, ACARREO DE MATERIALES PRODUCTO DEL DESMONTAJE A UN LUGAR INDICADO POR SUPERVISION EN OBRA, IDENTIFICACION Y ESTIBADO. A CUALQUIER ALTURA.","KG ","500.0000",0,"CERO PESOS 00/100 M.N.",0,394649]
[140065,"DEMOLICION DE ENLADRILLADO DE AZOTEA DE LADRILLO ROJO DE 17 X 17 CM Y CAPAS DE IMPERMEABILIZANTES EXISTENTES, POR CUALQUIER MEDIO INCLUYE: RETIRO Y ACAREO DE MAT. DENTRO Y FUERA DE LA OBRA, MANO DE OBRA, HERRAMIENTAS,  Y LIMPIEZA DEL AREA DE TRABAJO PROCURANDO DEJAR PREPARACION DE LOSA PARA RECIBIR NUEVA APLICACION DE IMPERMEABILIZANTE. EN CUALQUIER NIVEL.","M2 ","280.0000",0,"CERO PESOS 00/100 M.N.",0,394650]
[140100,"DESMONTAJE, RETIRO Y DESCONECCION DE TABLERO DE CONTROL Y/O CENTRO DE CARGA SIN RECUPERACION, (NO UTILISABLE), INCLUYE: DESCONEXION, HERRAMIENTA, MANO DE OBRA CALIFICADA, LIMPIEZA Y ACARREOS DE MATERIALES DE RETIRO FUERA DE LA OBRA.","PZA","1.0000",0,"CERO PESOS 00/100 M.N.",0,394651]
[140189,"RANURAS PARA  TUBERIA CONDUIT ELECTRICO. INCLUYE: RESANES CON MORTERO  DE CEMENTO Y ARENA DE RIO PROP. 1:4  INCLUYE MANO DE OBRA, HERRAMEINTA, MATERIAL, EQUIPO Y TODO LO NECESARIO PARA SU CORRECTA EJECUCION.","ML ","130.0000",0,"CERO PESOS 00/100 M.N.",0,394652]
[140247,"DESCONEXION Y DESINSTALACION DE ALIMENTADORES ELECTRICOS EXISTENTES EN SALIDAS ELECTRICAS DE ALUMBRADO, APAGADORES Y/O CONTACTOS, CON RECUPERACION, INCLUYE: DESCONEXIONES, RETIRO Y ACARREOS EN EL INTERIOR DEL PLANTEL DEL CABLEADO PRODUCTO DE LA DESINSTALACION, GUIAS,  ANDAMIOS, HERRAMIENTA, MANO DE OBRA CALIFICADA Y LIMPIEZA DEL AREA DE TRABAJO. EN CUALQUIER NIVEL","SAL","60.0000",0,"CERO PESOS 00/100 M.N.",0,394653]
[140273,"DESINSTALACION Y RETIRO DE INTERRUPTORES TERMO MAGNETICOS DE TABLEROS EN MAL ESTADO, SIN RECUPERACION, INCLUYE: DESCONEXION, DESMONTAJE, HERRAMIENTA, MANO DE OBRA CALIFICADA, LIMPIEZA Y ACARREOS DE MATERIALES DE RETIRO FUERA DE LA OBRA.","PZA","32.0000",0,"CERO PESOS 00/100 M.N.",0,394654]
[140657,"DESMANTELAMIENTO DE CUBIERTA LIGERA A BASE DE LAMINA PINTRO, ENTORTADO DE HORMIGO DE 5 CM DE ESPESOR Y TEJA EN EDIFICIO EXISTENTE, SIN RECUPERACION  INCLUYE: RETIRO DEL MATERIALES DE DESHECHO FUERA DE LA OBRA, HERRAMIENTAS, EQUIPO DE SEGURIDAD Y MANO DE OBRA.","M2 ","146.0000",0,"CERO PESOS 00/100 M.N.",0,394655]
[140919,"DEMOLICION DE APLANADO DAÑADO O EN MAL ESTADO  EN MUROS Y BOVEDAS DESDE 0.00 A 7.00 MTS. DE ALTURA CON EL INTERES DE DESCRIBIR LA INTENSIDAD DEL DAÑO Y REALIZAR SU CONSOLIDACION SE PROCEDE EL RETIRO DEL APLANADO EN EL MURO DAÑADO EN UNA SUPERFICIE NECESARIA NO MAYOR A 2 CMS. DE ESPESOR,  POR CADA LADO E IDENTIFICAR EL DAÑO A TODO LO LARGO DEL DETERIORO, INTRODUCIENDO CINCEL FINO, LEVANTANDOLO CON GOLPES RASANTES SUAVES, PARA EVITAR LAS PERCUSIONES QUE DAÑEN LOS ELEMENTOS DEL EDIFICIO, NO SE DARAN GOLPES FRONTALES, Y LA LIMPIEZA SERA CON AIRE COMPRIMIDO, EL LAVADO SERA CON AGUA A PRESION PARA EL RETIRO DE MATERIAL EXISTENTE EN LA FISURA CONFORME A LOS CRITERIOS Y ESPECIFICACIONES VIGENTES EN RESTAURACION Y CONSERVACION DEL PATRIMONIO EDIFICADO DEL INAH. EL CONCEPTO INCLUYE: MANO DE OBRA ANDAMIO, ACARREOS AL LUGAR DE APILE, HERRAMIENTA, MANO DE OBRA Y EQUIPO DE SEGURIDAD.\n","M2 ","200.0000",0,"CERO PESOS 00/100 M.N.",0,394656]
[142030,"PREPARACION EN MURO PIÑA, PARA RECIBIR ESTRUCTURA METALICA,INCLUYE: DEMOLICION DE ANCLAJES EXISTENTES Y CONSTRUCCION DE CADENA AHOGADA EN MURO DE CORONACION DE 20 CMS. POR EL ANCHO DEL MURO, CONCRETO DE F'C= 250 KG./CM2 , ARMADA CON 4 VARILLAS DEL # 3 Y ESTRIBOS DEL #2 A CADA 15 CMS., APLANADO Y PINTURA DEL AREA DE LA PREPARACION, ACABADO SIMILAR AL EXISTENTE, POR AMBOS LADOS, MATERIAL Y MANO DE OBRA, TRABAJO TERMINADO.DEBERA CONCIDERARSE EL ANCLAJE DE LA CADENA DE CERRAMIENTO EN AMBOS EXTREMOS.\n","ML ","24.0000",0,"CERO PESOS 00/100 M.N.",0,394657]
[907172,"PERFORACION Y RESANE DE MUROS Y/O TECHOS PARA PASO DE TUBERIA DE 1/2\" A 2 1/2\" DE DIAMETRO, CON MORTERO CEMENTO-ARENA DE RIO EN PROP. 1:4,, CON ACABADO IGUAL AL EXISTENTE,  INCLUYE: TRAZO, HERRAMIENTAS, MATERIALES,  MANO DE OBRA, RETIRO Y ACARREO DE MATERIALES DE DESHECHO DENTRO Y FUERA DE LA OBRA ATIRADERO AUTORIZADO Y LIMPIEZA DEL AREA DE LOS TRABAJOS.","PZA","7.0000",0,"CERO PESOS 00/100 M.N.",0,394658]
[907176,"DEMOLICION DE PISO DE CONCRETO DE 0.08 A 0.10 CM DE ESPESOR, Y  5 A 15 CMS. DE ANCHO, INCLUYE: CORTE CON DISCO PARA DELIMITAR AREA DE DEMOLICION, EXCAVACION, RELLENO, COMPACTACION, REPOSICION DEL PISO DE CONCRETO, MANO DE OBRA, HERRAMIENTA, EQUIPO,  CARGA Y ACARREO INTERIOR Y FUERA DE LA OBRA DEL MATERIAL PRODUCTO DE LA DEMOLICION.","ML ","10.0000",0,"CERO PESOS 00/100 M.N.",0,394659]
[910838,"DEMOLICION DE CUBIERTA EN MAL ESTADO, CONSTRUIDA A BASE DE VIGUERIA DE MADERA, LAMINA DE ASBESTO, HORMIGON Y TEJA,  INCLUYE:  DESMONTAJE DE VIGAS DE MADERA, HERRAMIENTAS, EQUIPO DE SEGURIDAD, LIMPIEZA,  MANO DE OBRA Y RETIRO DEL MATERIALES DE DESHECHO DENTRO Y  FUERA DE LA OBRA HASTA TIRADERO AUTORIZADO.","M2 ","50.0000",0,"CERO PESOS 00/100 M.N.",0,394660]
[929600,"DESMONTAJE DE LAMPARA EXISTENTE A CUALQUIER NIVEL. INCLUYE; DESCONEXION, GABINETE, BALASTRA, DESINSTALACION DE MATERIAL DE FIJACION, HERRAMIENTA, MANO DE OBRA, ACARREO DE MATERIAL PRODUCTO DE DESINSTALACION A LUGAR INDICADO POR SUPERVISION Y  LIMPIEZA DEL AREA DE TRABAJO","PZA","35.0000",0,"CERO PESOS 00/100 M.N.",0,394661]
[929602,"DESINSTALACION Y DESMONTAJE DE CENTRO DE CARGA, CON RECUPERACION DE MATERIAL, INCLUYE DESCONEXION GENERAL, RETIRO DE TUBERIA APARENTE Y EN PISO, CABLEADO, Y ACARREO DENTRO DE LA OBRA AL SITIO  INDICADO POR LA SUPERVISION.","PZA","3.0000",0,"CERO PESOS 00/100 M.N.",0,394662]
["EDFS.02(200)","ESTRUCTURA                                        ",null,null,null,null,{"$f":"TEXT(SUM(G35:G36), \"$ #,##0.00 ;\")","v":"$ 0.00 "}]
[280008,"SUMINISTRO, FABRICACION Y MONTAJE DE DOS ARMADURAS PRINCIPALES UNIDAS ENTRE SI SOBRE EL MISMO EJE A DIFERENTES NIVELES CON ACERO A-36, CUERDAS A BASE DE CPS, CELOSIAS ACERO A 500 (F´Y=3235) DE PTR, CONEXION PARA DALAS DE ACERO A-36 APS, INCLUYE MANO DE OBRA CALIFICADA HERRAMIENTA, MAQUINAS, EQUIPO, CORTES, MATERIALES MENORES, INSUMOS, MANIOBRAS, DESPERDICIOS, SOLDADURA E-7018 EN FABRICACION Y MONTAJE, LIMPIEZA, PINTURA ANTICORROSIVA Y ALQUIDALICA.","KG ","1,000.0000",0,"CERO PESOS 00/100 M.N.",0,394663]
[285502,"MONTAJE, PLOMEO Y SOLDADURA DE ESTRUCTURA METALICA A BASE DE POLIN MON-TEN,  INCLUYE : COLOCACION DE TORNILLOS, TENSORES,  PLACAS, PINTURA ANTICORROSIVA, DESCALIBRES, DESPERDICIOS, AJUSTES,, HERRAMIENTAS, EQUIPOS, SOLDADURAS, MANO DE OBRA ESPECIALIZADA Y ACARREO DE MATERIALES AL SITIO DE SU COLOCACION, (INSUMOS QUE DEBERAN SER CONSIDERADOS EN EL ANALISIS DEL PRECIO UNITARIO POR KG. DE POLIN MON-TEN)","KG ","500.0000",0,"CERO PESOS 00/100 M.N.",0,394664]
["EDFS.03(319)","ENTREPISOS, CUBIERTA Y ACABADOS DE AZOTEA         ",null,null,null,null,{"$f":"TEXT(SUM(G38:G44), \"$ #,##0.00 ;\")","v":"$ 0.00 "}]
[322410,"FINO DE 3 CM. DE ESPESOR PROMEDIO, A BASE DE CONCRETO SIMPLE DE 150 KG/CM2, ACABADO APALILLADO, INCLUYE: MATERIALES, CIMBRA EN FRONTERAS, REMATES, DESPERDICIOS, HERRAMIENTAS, LIMPIEZAS, MANO DE OBRA  Y ACARREOS DEL MATERIAL AL SITIO DE SU UTILIZACION, EN CUALQUIER NIVEL.","M2 ","280.0000",0,"CERO PESOS 00/100 M.N.",0,394665]
[326065,"SUMINISTRO Y COLOCACION DE PANEL BILAMINADO Y ACANALADO PARA CUBIERTA DE AZOTEA, COMPUESTO POR UN NUCLEO DE ESPUMA RIGIDA DE POLIURETANO DE 1 ½\" DE ESPESOR Y DOS CARAS DE LAMINA PINTRO CAL. 26, CON ACABADO POLIESTER ESTANDAR EN COLORES BLANCO Y ARENA, INCLUYE: TRAZO, CORTES, AJUSTES, TRASLAPES, ELEMENTOS DE FIJACION, DESPERDICIOS, TAPAJUNTAS, HERRAMIENTAS, ANDAMIOS, LIMPIEZA, MANO DE OBRA  Y ACARREO DE MATERIALES AL LUGAR DE SU UTILIZACION, A CUALQUIER ALTURA.","M2 ","146.0000",0,"CERO PESOS 00/100 M.N.",0,394666]
[326565,"SUMINISTRO Y COLOCACION DE CABALLETE PARA CUBIERTA ACANALADA DE PANEL BILAMINADO, DE LAMINA PINTRO CALIBRE 26, DE 45.7 CM. DE DESARROLLO, COLOR ARENA,  INCLUYE: TRASLAPES, ACCESORIOS PARA SU COLOCACION, DESPERDICIOS, HERRAMIENTAS, ANDAMIOS, LIMPIEZAS, MANO DE OBRA Y ACARREO DE MATERIALES AL LUGAR DE SU UTILIZACION, A CUALQUIER ALTURA. ","ML ","13.2000",0,"CERO PESOS 00/100 M.N.",0,394667]
[326745,"SUMINISTRO Y COLOCACION DE TAPAGOTERO PARA CUBIERTA ACANALADA DE PANEL BILAMINADO, DE LAMINA PINTRO CALIBRE 22 DE 22.5 CM. DE DESARROLLO, COLOR ARENA, INCLUYE: TRAZO, CORTES, AJUSTES, TRASLAPES, ELEMENTOS DE FIJACION, DESPERDICIOS, HERRAMIENTAS, ANDAMIOS, LIMPIEZA, MANO DE OBRA  Y ACARREO DE MATERIALES AL LUGAR DE SU UTILIZACION, A CUALQUIER ALTURA.","ML ","50.0000",0,"CERO PESOS 00/100 M.N.",0,394668]
[326755,"SUMINISTRO Y COLOCACION DE TAPAGOTERO DE AJUSTE DE CUMBRERAS DE 22.5 CM DE DESARROLLO Y 38.6 CM. DE LONGITUD PARA CUBIERTA ACANALADA DE PANEL BILAMINADO, DE LAMINA PINTRO CALIBRE 22, COLOR ARENA, INCLUYE: ELEMENTOS DE FIJACION, TRASLAPES,  HERRAMIENTAS, ANDAMIOS, LIMPIEZA, MANO DE OBRA  Y ACARREO DE MATERIALES AL LUGAR DE SU UTILIZACION, A CUALQUIER ALTURA.","PZA","2.0000",0,"CERO PESOS 00/100 M.N.",0,394669]
[326765,"SUMINISTRO Y COLOCACION DE TAPAGOTERO DE AJUSTE ESQUINERO PARA CUBIERTA ACANALADA DE PANEL BILAMINADO, DE LAMINA PINTRO CALIBRE  22, DE 50 X 50 CM. DE LONGITUD POR LADO Y 22.5 MTS DE DESARROLLO, COLOR ARENA, INCLUYE: ELEMENTOS DE FIJACION, TRASLAPES,  HERRAMIENTAS, ANDAMIOS, LIMPIEZA, MANO DE OBRA  Y ACARREO DE MATERIALES AL LUGAR DE SU UTILIZACION, A CUALQUIER ALTURA.","PZA","4.0000",0,"CERO PESOS 00/100 M.N.",0,394670]
[344125,"IMPERMEABILIZACION DE MUROS O LOSAS, A BASE DE MEMBRANA PREFABRICADA, MCA. IMPERQUIMIA, UNIPLAS AERO PLUS SBS, ALTO DESEMPEÑO CON VENTILACION ANTIABOLSAMIENTOS, FABRICADA A BASE DE ASFALTOS MODIFICADOS CON POLIMEROS SINTETICOS SBS (ESTIRENO BUTADIENO ESTIRENO) REFORZADA CON MALLA POLIESTER DE ALTA RESISTENCIA, ACABADO APARENTE A BASE DE GRAVILLA ESMALTADA A FUEGO, 4.5 MM  DE ESPESOR TOTAL, COLOR ROJO TERRACOTA, GARANTIA POR ESCRITO DE 10 AÑOS, POR LA EMPRESA CONTRATISTA., INCLUYE: LIMPIEZA Y PREPARACION DE LA SUPERFICIE, APLICACION DE PRIMER IMPERCOAT PRIMARIO SL, PARA ANCLAJE Y TAPAPORO DE LA SUPERFICIE, SELLADO DE FISURAS Y GRIETAS A BASE DE CEMENTO PLASTICO BITUMINOSO IMPERCOAT CEMENTO SBS, SUMINISTRO Y COLOCACION DE MEMBRANA POR MEDIO DE TERMOFUSION A BASE DE FUEGO DE SOPLETE DE GAS BUTANO, HACIENDO TRASLAPES MINIMOS DE 0.10 MTS. EN AMBOS SENTIDOS, SELLADO DE ORILLAS, REMATES Y TRASLAPES, MATERIALES MENORES Y DE CONSUMO, CORTES, DESPERDICIOS, LIMPIEZA GENERAL, HERRAMIENTAS, MANO DE OBRA ESPECIALIZADA Y ACARREOS AL SITIO DE SU COLOCACION.","M2 ","280.0000",0,"CERO PESOS 00/100 M.N.",0,394671]
["EDFS.04(355)","RECUBRIMIENTOS Y ACABADOS                         ",null,null,null,null,{"$f":"TEXT(SUM(G46:G48), \"$ #,##0.00 ;\")","v":"$ 0.00 "}]
[355022,"APLANADO DE MUROS Y/O TECHOS CON MORTERO CEMENTO-CAL-ARENA DE RIO EN PROP. 1:2:6 DE 2 CM. DE ESPESOR PROMEDIO, A PLOMO Y REGLA, ACABADO APALILLADO FINO, INCLUYE: MATERIALES, DESPERDICIOS, ANDAMIOS, HERRAMIENTAS, PLOMEO, NIVELACION, REMATES, LIMPIEZA DEL AREA DE TRABAJO Y ACARREO DE MATERIALES AL SITIO DE SU UTILIZACION. A CUALQUIER NIVEL.\n","M2 ","50.0000",0,"CERO PESOS 00/100 M.N.",0,394672]
[357352,"FILETES Y BOLEADOS, HECHOS CON MORTERO CEMENTO-CAL-ARENA EN PROPORCION 1:2:6, INCLUYE: DESPERDICIOS, ANDAMIOS Y ACARREO DE MATERIALES AL SITIO DE SU UTILIZACION, A CUALQUIER NIVEL.","ML ","100.0000",0,"CERO PESOS 00/100 M.N.",0,394673]
[934966,"RESANE EN MUROS CON MORTERO CEMENTO-CAL-ARENA 1:2:6, DE 2 CMS. DE ESPESOR POR HASTA 20 CMS. DE ANCHO, EN APLANADO EXISTENTE. INCLUYE: ANDAMIOS, HERRAMIENTAS, MATERIALES, MANO DE OBRA Y ACARREOS.","ML ","30.0000",0,"CERO PESOS 00/100 M.N.",0,394674]
["EDFS.05(393)","PINTURA                                           ",null,null,null,null,{"$f":"TEXT(SUM(G50:G51), \"$ #,##0.00 ;\")","v":"$ 0.00 "}]
[393022,"PINTURA VINIL-ACRÍLICA A BASE DE AGUA ACABADO SEMIMATE  LAVABLE, PARA INTERIORES Y EXTERIORES QUE NO DESPRENDA VAPORES TÓXICOS NI OLORES DESAGRADABLES, CON LAS SIGUIENTES CARACTERÍSTICAS ( SÓLIDOS POR PESO 46-52%, SÓLIDOS POR VOLUMEN 30-36%, VISCOSIDAD DE 100-130 UK A 25°C, DENSIDAD > O = 1.2 TON/M3., LAVABILIDAD > O = 4,000 CICLOS, TIEMPO DE SECADO AL TACTO, 30-40 MIN., TIEMPO DE SECADO DURO < O = 8 HRS., CICLO DE CURADO DE 7 DIAS, PH 6-8, RENDIMIENTO EN SUP. LISA 8-10 M2/LT., FINEZA DE MOLIDO (HEGMAN) 3-7 UH.)  EN MUROS APLANADOS DE MEZCLA APALILLADO O PULIDO, TRABAJO TERMINADO, A DOS MANOS, INCLUYE: MATERIALES MENORES Y DE CONSUMO, ANDAMIOS, PREPARACION DE LA SUPERFICIE, SELLADO DE LA SUPERFICIE, HERRAMIENTAS, LIMPIEZA, MANO DE OBRA Y  ACARREOS DE MATERIALES AL SITIO DE SU UTILIZACIÓN.","M2 ","500.0000",0,"CERO PESOS 00/100 M.N.",0,394675]
[393216,"PINTURA DE ESMALTE ALQUIDALICO ANTICORROSIVO, ACABADO BRILLANTE, PARA INTERIORES Y EXTERIORES QUE NO DESPRENDA VAPORES TÓXICOS NI OLORES DESAGRADABLES, CON LAS SIGUIENTES CARACTERÍSTICAS ( SÓLIDOS POR PESO 49-60%, SÓLIDOS POR VOLUMEN 40-46%, VISCOSIDAD DE 110-160 UK A 25°C, DENSIDAD 0.9-1.2 TON/M3., BRILLO A 60°C, 90%, TIEMPO DE SECADO AL TACTO, < O = 6 HRS., TIEMPO DE SECADO DURO < O = 24 HRS., ADHERENCIA 100%, RENDIMIENTO EN SUP. LISA 8-10 M2/LT., DILUCIÓN MÁXIMA (AGUARRÁS, THINER), 15 %,  EN ESTRUCTURA DE CUBIERTA, A BASE DE LARGUEROS DE POLINES MON-TEN, TENSORES Y CONEXIONES, TRABAJO TERMINADO, A DOS MANOS, INCLUYE: MATERIALES MENORES Y DE CONSUMO, ANDAMIOS, PREPARACION DE LA SUPERFICIE, HERRAMIENTAS, LIMPIEZA, MANO DE OBRA Y  EQUIPO DE SEGURIDAD. A CUALQUIER NIVEL. (PROYECCIÓN DE CUBIERTA).","M2 ","500.0000",0,"CERO PESOS 00/100 M.N.",0,394676]
["EDFS.06(410)","CANCELERIA, HERRERIA, ALUMINIO, VIDRIOS Y CHAPAS  ",null,null,null,null,{"$f":"TEXT(SUM(G53:G53), \"$ #,##0.00 ;\")","v":"$ 0.00 "}]
[412001,"PUNTOS DE SOLDADURA EN ELEMENTOS DE ACERO Y HERRERIA, INCLUYE: HERRAMIENTAS, EQUIPO, MATERIALES, Y ,MANO DE OBRA.","PZA","36.0000",0,"CERO PESOS 00/100 M.N.",0,394677]
["EDFS.07(510)","INSTALACION ELECTRICA EN EDIFICIO                 ",null,null,null,null,{"$f":"TEXT(SUM(G55:G77), \"$ #,##0.00 ;\")","v":"$ 0.00 "}]
[514011,"SALIDA ELECTRICA DE CENTRO AISLADA, VISIBLE, CON TUBERIA Y CONEXIONES CONDUIT GALVANIZADA P.G., ROSCADA DE 13 Y 19 MM. DE DIAMETRO, CABLE VINANEL THW-LS 600 V. A 75° C, 90° C, MARCA CONDUCTORES MONTERREY, (VIAKON-PROTOCOLIZADO), CABLE VINANEL 21 THW-LS 600 V. A 75° C, 90° C, MARCA CONDUMEX (CONDUMEX PROTOCOLIZADO).  CALIBRE 12, CAJAS CUADRADAS, CHALUPAS Y TAPAS GALVANIZADAS, INCLUYE: TRAZO, MATERIALES MENORES Y DE FIJACION, HERRAMIENTA, MANO DE OBRA ESPECIALIZADA , CONEXIONES, LIMPIEZA DEL AREA DE TRABAJO, PRUEBAS, DESPERDICIOS Y ACARREO DEL MATERIAL AL SITIO DE SU COLOCACION, A CUALQUIER NIVEL.","SAL","40.0000",0,"CERO PESOS 00/100 M.N.",0,394678]
[516025,"SALIDA ELECTRICA DE FUERZA MONOFASICA PARA VENTILADOR DE TECHO, VISIBLE, POR MURO Y CUBIERTA,  A BASE DE TUBERIA CONDUIT GALV. P.G. ROSCADA, 13 Y 19 MM. CABLE VINANEL THW-LS 600 V. A 75° C, 90° C, MARCA CONDUCTORES MONTERREY, (VIAKON-PROTOCOLIZADO), CABLE VINANEL 21 THW-LS 600 V. A 75° C, 90° C, MARCA CONDUMEX (CONDUMEX PROTOCOLIZADO). CALIBRE 12 Y 14, INCLUYE: CAJAS, TAPAS PARA CAJAS, CONEXIONES, DESPERDICIOS, MATERIALES MENORES, ELEMENTOS DE FIJACION, LIMPIEZAS, PRUEBAS, HERRAMIENTAS, MANO DE OBRA Y ACARREOS DE MATERIALES AL SITIO DE SU COLOCACION.","SAL","15.0000",0,"CERO PESOS 00/100 M.N.",0,394679]
[518089,"SALIDA ELECTRICA PARA 2 CONTACTOS MONOFASICO DUPLEX POLARIZADO, EN BASES DE CONCRETO DE MESA DE LABORATORIO CON TUBERIA CONDUIT GALVANIZADA, P.G., ETIQUETA VERDE DE AJUSTE,  CABLE VINANEL THW-LS 600 V. A 75° C, 90° C, MARCA CONDUCTORES MONTERREY, (VIAKON-PROTOCOLIZADO), CABLE VINANEL 21 THW-LS 600 V. A 75° C, 90° C, MARCA CONDUMEX (CONDUMEX PROTOCOLIZADO).  CAL. 12 EN FASES Y CAL. 12 PARA TIERRA FISICA, CAJAS DE REGISTRO CUADRADAS, CHALUPAS Y TAPAS DE ACERO GALVANIZADO TIPO REFORZADO,  INCLUYE: TRAZO, CONEXION A TIERRA, CAJA REGISTRO CON TAPA DE 10 X 10 EN PISO,  ACCESORIOS , MATERIALES MENORES, PRUEBAS, DESPERDICIOS, LIMPIEZAS, HERRAMIENTAS, MANO DE OBRA, Y ACARREO DEL MATERIAL AL SITIO DE SU COLOCACION,  (SEGUN GUIA MECANICA).","SAL","4.0000",0,"CERO PESOS 00/100 M.N.",0,394680]
[518125,"SALIDA ELECTRICA PARA CONTACTO DUPLEX POLARIZADO, VISIBLE CON TUBERIA Y CONEXIONES CONDUIT GALVANIZADA P.G. ETIQUETA VERDE DE AJUSTE DE 13 Y 19 MM. DE DIAMETRO CABLE VINANEL THW-LS 600 V. A 75° C, 90° C, MARCA CONDUCTORES MONTERREY, (VIAKON-PROTOCOLIZADO), CABLE VINANEL 21 THW-LS 600 V. A 75° C, 90° C, MARCA CONDUMEX (CONDUMEX PROTOCOLIZADO) CALIBRE CAL. 12 EN FASES Y CAL. 12 PARA TIERRA FISICA, CAJAS DE REGISTRO CUADRADAS, CHALUPAS Y TAPAS DE ACERO GALVANIZADO TIPO REFORZADO, CONTACTO QUINZIÑO MX, TAPA DE ALUMINIO, INCLUYE: TRAZO, CONEXIONES A TIERRA, MATERIALES MENORES, PRUEBAS, DESPERDICIOS, LIMPIEZA, HERRAMIENTAS, MANO DE OBRA Y ACARREO DEL MATERIAL AL SITIO DE SU COLOCACION A CUALQUIER NIVEL.","SAL","20.0000",0,"CERO PESOS 00/100 M.N.",0,394681]
[518211,"SUMINISTRO Y COLOCACION DE CONDULET LB, LF, T, TB O LR, DE 2\" DE DIAM., OVALADO, MARCA C. HINDS, INCLUYE: TAPA Y EMPAQUE DE NEOPRENO, SOPORTE, FIJACION, ALINEACION, MATERIALES MENORES, MANO DE OBRA ESPECIALIZADA, HERRAMIENTA, PRUEBAS, FLETES Y ACARREO DE LOS MATERIALES AL SITIO DE SU UTILIZACION.","PZA","3.0000",0,"CERO PESOS 00/100 M.N.",0,394682]
[518219,"SUMINISTRO Y COLOCACION DE CONDULET LB, LF, T, TB O LR, DE 1 1/2\" DE DIAM., OVALADO, MARCA C. HINDS, INCLUYE: MANO DE OBRA, HERRAMIENTA, MATERIALES MENORES, PRUEBAS Y ACARREO DE MATERIALES HASTA EL SITIO DE SU COLOCACION.","PZA","3.0000",0,"CERO PESOS 00/100 M.N.",0,394683]
[518221,"SUMINISTRO Y COLOCACION DE CONDULET LB, LF, T, TB O LR, DE 1 1/4\" DE DIAM., OVALADO, MARCA C. HINDS, INCLUYE: TAPA Y EMPAQUE DE NEOPRENO, SOPORTE, FIJACION, ALINEACION, MATERIALES MENORES, MANO DE OBRA ESPECIALIZADA, HERRAMIENTA, PRUEBAS, FLETES Y ACARREO DE LOS MATERIALES AL SITIO DE SU UTILIZACION.","PZA","1.0000",0,"CERO PESOS 00/100 M.N.",0,394684]
[522063,"SALIDA ELECTRICA DE APAGADOR SENCILLO, VISIBLE, CON TUBERIA Y CONEXIONES CONDUIT GALVANIZADA PARED DELGADA DE AJUSTE, ETIQUETA VERDE, DE 13 Y 19 MM. DE DIAMETRO, CONDULET SERIE OVALADA TIPO \"T\", \"L\" Y \"C\" EN SU TRAYECTORIA Y FS EN LA SALIDA, CABLE VINANEL THW-LS 600 V. A 75° C, 90° C, MARCA CONDUCTORES MONTERREY, (VIAKON-PROTOCOLIZADO), CABLE VINANEL 21 THW-LS 600 V. A 75° C, 90° C, MARCA CONDUMEX (CONDUMEX PROTOCOLIZADO). CALIBRES 12,  ACCESORIOS MCA. BTICINO, LINEA  QUINZIÑO MX,  INCLUYE: TRAZO, CONEXIONES, MATERIALES MENORES Y DE COSNSUMO, ELEMENTOS DE FIJACION, ACCESORIOS, PRUEBAS, DESPERDICIOS, HERRAMIENTAS, ANDAMIOS,  LIMPIEZA, MANO DE OBRA ESPECIALIZADA Y ACARREO DEL MATERIAL AL SITIO DE SU COLOCACION, A CUALQUIER ALTURA.","SAL","20.0000",0,"CERO PESOS 00/100 M.N.",0,394685]
[522423,"SALIDA ELECTRICA PARA  CONTROL DE VENTILADOR, VISIBLE, CON TUBERIA Y CONEXIONES CONDUIT GALVANIZADA PARED DELGADA DE AJUSTE, ETIQUETA VERDE, DE 13 Y 19 MM. DE DIAMETRO,  CABLE VINANEL THW-LS 600 V. A 75° C, 90° C, MARCA CONDUCTORES MONTERREY, (VIAKON-PROTOCOLIZADO), CABLE VINANEL 21 THW-LS 600 V. A 75° C, 90° C, MARCA CONDUMEX (CONDUMEX PROTOCOLIZADO).  CALIBRE 12 Y 14, INCLUYE: CODOS, COPLES, CAJA CUADRADA, DESPERDICIOS, ACCESORIOS, TAPA GALVANIZADA,  CONTROL, TAPA , MATERIALES DE FIJACION, MANO DE OBRA, HERRAMIENTAS, Y ACAREO DE MATERIALES AL SITIO DE SU COLOCACION ACUALQUIER ALTURA.","SAL","15.0000",0,"CERO PESOS 00/100 M.N.",0,394686]
[530127,"SUMINISTRO Y COLOCACION DE CURVA CONDUIT GALVANIZADO PARED GRUESA, ROSCABLE, DE 19 MM DE DIAM. INCLUYE: CONEXIONES, DESPERDICIOS, ROSCADO, MATERIALES MENORES, PRUEBAS Y ACARREO DE MATERIALES AL SITIO DE SU COLOCACION.","PZA","8.0000",0,"CERO PESOS 00/100 M.N.",0,394687]
[534104,"SUMINISTRO Y COLOCACION DE TUBO CONDUIT GALVANIZADO, DE 19 MM, PARED GRUESA ROSCADA ETIQUETA AMARILLA, INCLUYE: TRAZO, CORTES, AJUSTES, CONECTORES, COPLES, CURVAS, DOBLECES, ROSCADO, DESPERDICIOS, MATERIALES MENORES, HERRAMIENTAS, PRUEBAS, LIMPIEZA, MANO DE OBRA Y ACARREO DE MATERIALES AL SITIO DE SU COLOCACION.","ML ","3.6000",0,"CERO PESOS 00/100 M.N.",0,394688]
[534109,"SUMINISTRO Y COLOCACION DE TUBO CONDUIT GALVANIZADO, DE 32 MM, PARED GRUESA ROSCADA ETIQUETA AMARILLA, INCLUYE: TRAZO, CORTES, AJUSTES, CONECTORES, COPLES, CURVAS, DOBLECES, ROSCADO, DESPERDICIOS, MATERIALES MENORES, HERRAMIENTAS, PRUEBAS, LIMPIEZA, MANO DE OBRA Y ACARREO DE MATERIALES AL SITIO DE SU COLOCACION.","ML ","6.0000",0,"CERO PESOS 00/100 M.N.",0,394689]
[534110,"SUMINISTRO Y COLOCACION DE TUBO CONDUIT GALVANIZADO, DE 38 MM, PARED GRUESA ROSCADA ETIQUETA AMARILLA, INCLUYE: TRAZO, CORTES, AJUSTES, CONECTORES, COPLES, DOBLECES, ROSCADO, DESPERDICIOS, MATERIALES MENORES, HERRAMIENTAS, PRUEBAS, LIMPIEZA, MANO DE OBRA Y ACARREO DE MATERIALES AL SITIO DE SU COLOCACION.","ML ","17.0000",0,"CERO PESOS 00/100 M.N.",0,394690]
[534112,"SUMINISTRO Y COLOCACION DE TUBO CONDUIT GALVANIZADO, DE 51 MM, PARED GRUESA ROSCADA ETIQUETA AMARILLA, INCLUYE: TRAZO, CORTES, AJUSTES, CONECTORES, COPLES, DOBLECES, ROSCADO, DESPERDICIOS, MATERIALES MENORES, HERRAMIENTAS, PRUEBAS, LIMPIEZA, MANO DE OBRA Y ACARREO DE MATERIALES AL SITIO DE SU COLOCACION.","ML ","17.0000",0,"CERO PESOS 00/100 M.N.",0,394691]
[540306,"SUMINISTRO E INSTALACION DE CENTRO DE CARGA CAT. QO-612L-100,  DE 6 POLOS  100 AMPERES, INCLUYE: MATERIALES, ZAPATAS, MANO DE OBRA, HERRAMIENTAS, ELEMENTOS DE FIJACION, PRUEBAS,  ACARREOS Y MATERIALES MENORES.","PZA","1.0000",0,"CERO PESOS 00/100 M.N.",0,394692]
[540353,"SUMINISTRO Y COLOCACION DE CENTRO DE CARGAS CAT NQ-18 L100, CON ZAPATAS PRINCIPALES 100 A. 1 FASES, 3 HILOS,  MARCA SQUARE D, INCLUYE: MATERIALES MENORES Y DE CONSUMO, HERRAMIENTAS, ELEMENTOS DE FIJACION, CONEXION, PRUEBAS,  MANO DE OBRA ESPECIALIZADA Y ACARREOS AL SITIO DE SU INSTALACION.","PZA","2.0000",0,"CERO PESOS 00/100 M.N.",0,394693]
[542059,"SUMINISTRO Y COLOCACION DE CENTRO DE CARGA MARCA SQUARE- D TIPO QO-112L125G, 12 POLOS, 125 A. 1F, 3H, ZAPATAS, CAJA INTERIOR Y FRENTE QOC16U, INCLUYE: PRUEBAS, FLETES, MANO DE OBRA CALIFICADA, EQUIPO, HERRAMIENTA Y TODO LO NECESARIO PARA SU CORRECTA COLOCACION.","PZA","2.0000",0,"CERO PESOS 00/100 M.N.",0,394694]
[543012,"SUMINISTRO Y COLOCACION DE INTERRUPTOR TERMOMAGNETICO DERIVADO CON 1 POLOS, DE 15-60 AMPERES, MCA. SQUARE D, CAT. QO. INCLUYE: PRUEBAS, MATERIALES MENORES, HERRAMIENTAS, MANO DE OBRA ESPECIALIZADA  Y ACARREO DE MATERIALES AL SITIO DE SU COLOCACION.","PZA","10.0000",0,"CERO PESOS 00/100 M.N.",0,394695]
[543020,"SUMINISTRO Y COLOCACION DE INTERRUPTOR TERMOMAGNETICO CON 2 POLOS, DE 15-50 AMPERES, MCA. SQUARE D, CAT. QO. INCLUYE: PRUEBAS, FLETES, MATERIALES MENORES Y ACARREO DE MATERIALES AL SITIO DE SU COLOCACION.","PZA","10.0000",0,"CERO PESOS 00/100 M.N.",0,394696]
[543074,"SUMINISTRO Y COLOCACION DE INTERRUPTOR TERMOMAGNETICO POWERPACT MARCO \"H\" CON 2 POLOS DE 70-100 AMPERES MCA. SQUARE’D CAT. HDL26070-100 CON GABINETE PARA INTERRUPTORES POWERPACT  DE CAJA MOLDEADA NEMA 1 MCA. SQUARE´D CAT. FA100FMX PARA USO EN INTERIOR, INCLUYE: MATERIALES MENORES Y DE FIJACION,  PRUEBAS, HERRAMIENTAS, MANO DE OBRA Y ACARREO DE MATERIALES AL SITIO DE SU COLOCACION.","PZA","1.0000",0,"CERO PESOS 00/100 M.N.",0,394697]
[546792,"SUMINISTRO Y COLOCACION DE VENTILADOR DE TECHO DE 52\"; 3 ASPAS, 3 ESTRATOS, 3 VELOCIDADES ( TIPO INDUSTRIAL ) INCLUYE: MATERIALES MENORES Y DE FIJACION, HERRAMIENATAS, LIMPIEZA, PRUEBAS, MANO DE OBRA, Y ACARREO AL SITIO DE SU COLOCACION.","PZA","15.0000",0,"CERO PESOS 00/100 M.N.",0,394698]
[905629,"SUMINISTRO E INSTALACION DE LUMINARIO DE SOBREPONER MCA. HIGHLUMEN MOD. C-SBV20-S42TLC20-C, NOVALUX MOD. NOEII214.5LEDT8 MVSAPE, O SIMILAR, SISTEMA LED DE 30 WATTS. +- 8%, PARA OPERAR CON DOS TUBOS LED T8 (14-16 WATTS C/U), 4000°K, IRC>80, VIDA UTIL DE 40,000 HRS. 2350 LUMENES TOTALES COMO MINIMO, DRIVER INTEGRADO MULTIVOLTAJE 100-240 VOLTS , EN GABINETE METALICO FABRICADO EN LAMINA DE ACERO ROLADA EN FRIO CAL. 24 MINIMO, CON ACABADO EN POLVO POLIESTER EN APLICACION ELECTROSTÁTICA COLOR BLANCO, DIFUSOR ENVOLVENTE 100% ACRILICO, LA LUMINARIA (COMPLETA) DEBERA CUMPLIR CON LA NORMA ANCE, INCLUYE: ELEMENTOS DE FIJACION, CONEXION, MATERIALES MENORES Y DE CONSUMO, GARANTIAS, COPIA DE CERTIFICACION ANCE ANEXA EN ELTRAMITE DE LA ESTIMACION, HERRAMIENTAS, ANDAMIOS, MANO DE OBRA, PRUEBAS, LIMPIEZA Y ACARREOS.","PZA","15.0000",0,"CERO PESOS 00/100 M.N.",0,394699]
[905630,"SUMINISTRO E INSTALACION DE LUMINARIO DE SOBREPONER MCA. HIGHLUMEN MOD. C-SBV20-S43TLC20-C, NOVALUX MOD. NOEII314.5LEDT8 MVSAPE, O SIMILAR, SISTEMA LED DE 45 WATTS. +- 8%, PARA OPERAR CON TRES TUBOS LED T8 (14-16 WATTS C/U), 4000°K, IRC>80, VIDA UTIL DE 40,000 HRS. 3600 LUMENES TOTALES COMO MINIMO, DRIVER INTEGRADO MULTIVOLTAJE 100-240 VOLTS , EN GABINETE METALICO FABRICADO EN LAMINA DE ACERO ROLADA EN FRIO CAL. 24 MINIMO, CON ACABADO EN POLVO POLIESTER EN APLICACION ELECTROSTÁTICA COLOR BLANCO, DIFUSOR ENVOLVENTE 100% ACRILICO, LA LUMINARIA (COMPLETA) DEBERA CUMPLIR CON LA NORMA ANCE, INCLUYE: ELEMENTOS DE FIJACION, CONEXION, MATERIALES MENORES Y DE CONSUMO, GARANTIAS, COPIA DE CERTIFICACION ANCE ANEXA EN ELTRAMITE DE LA ESTIMACION, HERRAMIENTAS, ANDAMIOS, MANO DE OBRA, PRUEBAS, LIMPIEZA Y ACARREOS.","PZA","30.0000",0,"CERO PESOS 00/100 M.N.",0,394700]
["EDFS.08(564)","INSTALACION HIDRAULICA, SANITARIA Y GAS EN EDIF.  ",null,null,null,null,{"$f":"TEXT(SUM(G79:G83), \"$ #,##0.00 ;\")","v":"$ 0.00 "}]
[577022,"SALIDA  HIDRAULICA Y SANITARIA, EN MESA DE LAVADO PARA LABORATORIO, SEGUN GUIA MECANICA. (PREPARACION DE PUNTAS DE TUBERIA PARA CONEXION DE MESA),  INCLUYE: 1 SALIDA HIDRAULICA Y 1 SALIDA SANITARIA POR MESA; TUBERIA Y CONEXIONES DE COBRE \"M\" , TUBERIA Y CONEXIONES DE PVC SANITARIO, SEGUN GUIA MECANICA, INCLUYE: MATERIALES MENORES, PRUEBAS Y ACARREO DE MATERIALES AL SITIO DE SU COLOCACION, A CUALQUIER NIVEL.","MSA","2.0000",0,"CERO PESOS 00/100 M.N.",0,394701]
[578028,"SALIDA  HIDRAULICA, SANITARIA Y GAS, EN MESA CENTRAL PARA LABORATORIO, SEGUN GUIA MECANICA. (PREPARACION DE PUNTAS DE TUBERIA PARA CONEXION DE MESA),  INCLUYE: 1 SALIDA HIDRAULICA CON TUBERIA Y CONEXIONES DE COBRE TIPO \"M\", 1 SALIDA DE GAS CON TUBERIA Y CONEXIONES DE COBRE TIPO \"L\"  Y 2 SALIDAS SANITARIAS POR MESA CON TUBERIA Y CONEXIONES DE P.V.C. SANITARIO, SEGUN GUIA MECANICA, INCLUYE: MATERIALES MENORES, PRUEBAS Y ACARREO DE MATERIALES AL SITIO DE SU COLOCACION, A CUALQUIER NIVEL.","MSA","1.0000",0,"CERO PESOS 00/100 M.N.",0,394702]
[581440,"CONEXION HIDRAULICA Y SANITARIA EN MESA DE LAVADO DE LABORATORIO, SEGUN GUIA MECANICA. (DESDE LA PREPARACION DE PUNTAS, PARA CONEXION DE MESA),  INCLUYE: TUBERIA Y CONEXIONES DE COBRE \"M\" EN EL AREA DE MESA, TUBERIA Y CONEXIONES DE PVC SANITARIO, INCLUYE: 1 VALVULAS DE PASO PARA AGUA FIG. 783. MATERIALES MENORES, PRUEBAS Y ACARREO DEL MATERIAL AL SITIO DE SU COLOCACION.","SAL","2.0000",0,"CERO PESOS 00/100 M.N.",0,394703]
[581650,"CONEXION HIDRAULICA, SANITARIA Y DE GAS, EN MESA CENTRAL DE LABORATORIO PARA ALUMNOS, SEGUN GUIA MECANICA. (DESDE LA PREPARACION DE PUNTAS PARA CONEXION DE MESA),  INCLUYE: TUBERIA Y CONEXIONES DE COBRE \"M\" Y \"L\" EN EL AREA DE MESA, TUBERIA Y CONEXIONES DE PVC SANITARIO, SUMINISTRO Y COLOCACION DE 2 VALVULAS CUELLO DE GANSO TIPO C.A.P.F.C.E. PARA AGUA Y GAS, COMPLETA, VALVULAS DE PASO PARA AGUA FIG. 783 Y HUSKY FIG. 22 PARA GAS, MATERIALES MENORES, PRUEBAS Y ACARREO DEL MATERIAL AL SITIO DE SU COLOCACION.","MSA","1.0000",0,"CERO PESOS 00/100 M.N.",0,394704]
[592114,"SUMINISTRO Y COLOCACION DE COLADERA DE PISO DE TRES BOCAS CON REJILLA REDONDA, FABRICADA EN FIERRO FUNDIDO, MCA. HELVEX FIG. 25. CON SELLO HIDRAULICO, INCLUYE: CONEXIONES, MATERIALES MENORES Y DE CONSUMO, NIVELACION, HERRAMIENTAS, PRUEBAS, MANO DE OBRA Y ACARREOS AL SITIO DE SU INSTALACION.","PZA","1.0000",0,"CERO PESOS 00/100 M.N.",0,394705]
["EDFS.09(590)","MUEBLES DE BAÑO Y COCINA                          ",null,null,null,null,{"$f":"TEXT(SUM(G85:G86), \"$ #,##0.00 ;\")","v":"$ 0.00 "}]
[384021,"FABRICACION, SUMINISTRO Y COLOCACIÓN DE MESA CENTRAL P/ALUMNOS EN LABORATORIO, DE 2.40 MT. DE LARGO, 1.00 MT. DE ANCHO Y 1.00 MTS. DE ALTURA, FABRICADA CON CUBIERTA DE ACERO INOXIDABLE CON DOS TARJAS DE 25 X 25 X 15 CM. REFORZADA CON MULTYPLAY Y BASTIDOR DE MARERA DEBIDAMENTE ADHERIDOS AL ACERO INOX., BASES DE CANAL MONTEN 12MT14, CON TAPAS DE LAMINA NEGRA CAL. 18 Y PLACAS PARA BASE DE ACERO ESTRUCTUR DE 15 X 15 CM., 3/16\" DE ESPESOR, BAJO LA CUBIERTA DEBERA  LLEVAR UN ENTRPAÑO CON SEPARADORES VERTICALES A BASE DE LAMINA NEGRA CALIBRE 18, INCLUYE: 2 CONTRACANASTAS,  CAJAS CHALUPAS,  2 CONTACTOS DUPLEX POLARIZADO CON PLACA DE ALUMINIO, TRAZO PARA COLOCACIÓN, ELEMENTOS DE FIJACIÓN, TORNILLERIA, MATERIALES MENORES, DESPERDICIOS, PERFORACIONES, ARMADO, PINTURA MICROPULVERIZADA EN PARTES DE LAMINA NEGRA, LIMPIEZA,  NIVELACION, HERRAMIENTAS Y MANO DE OBRA. (NOTA: VALVULAS CUELLO DE GANSO CONSIDERADAS EN EL CONCEPTO DE CONEXION HIDRAULICA Y GAS).","PZA","1.0000",0,"CERO PESOS 00/100 M.N.",0,394706]
[384024,"SUMINISTRO, FABRICACION, CONEXION Y COLOCACION DE MESA DE LAVADO DE 1.2 X 0.60 X 0.90 MTS. CON CUBIERTA DE ACERO INOXIDABLE CAL.18 CON ESTRUCTURA DE TUBULAR DE 1\" X 2\", CON PINTURA COLOR NEGRO Y FALDONES DE LAMINA CAL.18 DEL MISMO COLOR, INCLUYE: 1 TARJA DE ACERO INOXIDABLE DE 40 X 40 CMS. ADEMAS, SUMINISTRO Y COLOCACION DE 1 VALVULA PARA AGUA CUELLO DE GANSO FIG. 321 COMPLETAS, CONTRACANASTA CROMADA MCA. URREA, CESPOL DE PLOMO DE 38 MM.PARA DESCARGA SANITARIA, MATERIAL Y MANO DE OBRA TRABAJO TERMINADO.\n","PZA","2.0000",0,"CERO PESOS 00/100 M.N.",0,394707]
["02","RED ELECTRICA",null,null,null,null,{"$f":"TEXT(SUM(G88 + G92), \"$ #,##0.00 ;\")","v":"$ 0.00 "}]
["02.01(140)","DEMOLICIONES, DESMONTAJES Y MECANICA DE SUELOS    ",null,null,null,null,{"$f":"TEXT(SUM(G89:G91), \"$ #,##0.00 ;\")","v":"$ 0.00 "}]
[140150,"DESMANTELAMIENTO, DESCONEXION, Y RETIRO DE LINEA ELECTRICA EXISTENTE EN CABLES DE DIFERENTES CALIBRES, SI DAÑAR LA DUCTERIA, INCLUYE: HERRAMIENTAS Y MANO DE OBRA CALIFICADA","ML ","550.0000",0,"CERO PESOS 00/100 M.N.",0,394708]
[140217,"DEMOLICION DE PISO DE CONCRETO DE 8 A 10 CM DE ESPESOR, EN FRANJAS DE 40 A 50 CMS. DE ANCHO, PARA COLOCACION DE INSTALACIONES, INCLUYE: CORTE CON DISCO PARA DELIMITAR AREA DE DEMOLICION, AFINE Y COMPACTACION DEL MATERIAL DE RELLENO, MATERIALES, REPOSICION DEL PISO DE CONCRETO F´C= 150 KG/CM2, ACABADO IGUAL AL EXISTENTE, DESPERDICIOS, MANO DE OBRA, HERRAMIENTA, EQUIPO, LIMPIEZA,  ACARREOS DE MATERIALES AL SITIO DE SU UTILIZACION, CARGA Y ACARREO INTERIOR Y FUERA DE LA OBRA DEL MATERIAL PRODUCTO DE LA DEMOLICION.","ML ","10.0000",0,"CERO PESOS 00/100 M.N.",0,394709]
[917298,"DEMOLICION DE BANQUETA DE 10 A 20 CMS. DE ESPESOR, EN FRANJAS DE 60 A 80 CMS. DE ANCHO Y UNA PROFUNDIDAD DE 80 A 100 CMS. PARA LA COLOCACION DE INSTALACIONES, INCLUYE: TRAMITE Y PAGO EN CASO DE SER NECESARIO ANTE LA AUTORIDAD COMPETENTE PARA REALIZAR EL CORTE DE LA CIRCULACION DE LA CALLE, CORTE CON DISCO PARA DELIMITAR EL AREA DE LA DEMOLICION, AFINE Y COMPACTACION DEL MATERIAL DE RELLENO, MATERIALES, REPOSICION DE PISO DE CONCRETO, ACABADO IGUAL AL EXISTENTE, DESPERDICIOS, MANO DE OBRA, HERRAMIENTA, EQUIPO, LIMPIEZA, ACARREOS DEL MATERIAL AL SITIO DE SU UTILIZACION, CARGA Y ACARREO INTERIOR Y FUERA DE LA OBRA DEL MATERIAL PRODUCTO DE LA EXCAVACION, MANO DE OBRA Y TODO LO NECESARIO PARA SU CORRECTA EJECUCION.","ML ","10.0000",0,"CERO PESOS 00/100 M.N.",0,394715]
["02.02(511)","INSTALACION ELECTRICA EN OBRA EXTERIOR            ",null,null,null,null,{"$f":"TEXT(SUM(G93:G122), \"$ #,##0.00 ;\")","v":"$ 0.00 "}]
[534004,"SUMINISTRO Y TENDIDO DE TUBO CONDUIT DE P.V.C. PESADO, DE 19 MM DIAM. INCLUYE: CONEXIONES, TRAZO, EXCAVACION, RELLENO, DESPERDICIOS, MATERIALES MENORES, PRUEBAS Y ACARREO AL SITIO DE SU COLOCACION.","ML ","136.0000",0,"CERO PESOS 00/100 M.N.",0,394857]
[534008,"SUMINISTRO Y TENDIDO DE TUBO CONDUIT DE P.V.C. PESADO, DE 32 MM DIAM. INC.: CONEXIONES, TRAZO, EXCAVACION, RELLENO, DESPERDICIOS, MATERIALES MENORES, PRUEBAS Y ACARREO AL SITIO DE SU COLOCACION.","ML ","20.0000",0,"CERO PESOS 00/100 M.N.",0,394858]
[534010,"SUMINISTRO Y TENDIDO DE TUBO CONDUIT DE P.V.C. PESADO, DE 38 MM DIAM. INC.: CONEXIONES, TRAZO, EXCAVACION, RELLENO, DESPERDICIOS, MATERIALES MENORES, PRUEBAS Y ACARREO AL SITIO DE SU COLOCACION.","ML ","100.0000",0,"CERO PESOS 00/100 M.N.",0,394859]
[534012,"SUMINISTRO Y TENDIDO DE TUBO CONDUIT DE P.V.C. PESADO, DE 50 MM DIAM. INC.: CONEXIONES, TRAZO, EXCAVACION, RELLENO, DESPERDICIOS, MATERIALES MENORES, PRUEBAS Y ACARREO AL SITIO DE SU COLOCACION.","ML ","150.0000",0,"CERO PESOS 00/100 M.N.",0,394860]
[536006,"SUMINISTRO Y COLOCACION DE CABLE VINANEL THW-LS 600 V. A 75° C, 90° C, MARCA CONDUCTORES MONTERREY, (VIAKON-PROTOCOLIZADO), CABLE VINANEL 21 THW-LS 600 V. A 75° C, 90° C, MARCA CONDUMEX (CONDUMEX PROTOCOLIZADO). CAL. 12,  INCLUYE: DESPERDICIOS, MATERIALES MENORES, HERRAMIENTA, CONEXIONES, MANO DE OBRA ESPECIALIZADA, LIMPIEZA DEL AREA DE TRABAJO, PRUEBAS Y ACARREO AL SITIO DE SU COLOCACION.","ML ","40.0000",0,"CERO PESOS 00/100 M.N.",0,394861]
[536008,"SUMINISTRO Y COLOCACION DE CABLE VINANEL THW-LS 600 V. A 75° C, 90° C, MARCA CONDUCTORES MONTERREY, (VIAKON-PROTOCOLIZADO), CABLE VINANEL 21 THW-LS 600 V. A 75° C, 90° C, MARCA CONDUMEX (CONDUMEX PROTOCOLIZADO). CAL. 10,  INCLUYE: DESPERDICIOS, MATERIALES MENORES, HERRAMIENTA, CONEXIONES, MANO DE OBRA ESPECIALIZADA, LIMPIEZA DEL AREA DE TRABAJO, PRUEBAS Y ACARREO AL SITIO DE SU COLOCACION.","ML ","250.0000",0,"CERO PESOS 00/100 M.N.",0,394862]
[536018,"SUMINISTRO Y COLOCACION DE CABLE VINANEL THW-LS 600 V. A 75° C, 90° C, MARCA CONDUCTORES MONTERREY, (VIAKON-PROTOCOLIZADO), CABLE VINANEL 21 THW-LS 600 V. A 75° C, 90° C, MARCA CONDUMEX (CONDUMEX PROTOCOLIZADO). CAL. 1/0,  INCLUYE: DESPERDICIOS, MATERIALES MENORES, HERRAMIENTA, CONEXIONES, MANO DE OBRA ESPECIALIZADA, LIMPIEZA DEL AREA DE TRABAJO, PRUEBAS Y ACARREO AL SITIO DE SU COLOCACION.","ML ","30.0000",0,"CERO PESOS 00/100 M.N.",0,394863]
[536022,"SUMINISTRO Y COLOCACION DE CABLE VINANEL THW-LS 600 V. A 75° C, 90° C, MARCA CONDUCTORES MONTERREY, (VIAKON-PROTOCOLIZADO), CABLE VINANEL 21 THW-LS 600 V. A 75° C, 90° C, MARCA CONDUMEX (CONDUMEX PROTOCOLIZADO). CAL. 3/0,  INCLUYE: DESPERDICIOS, MATERIALES MENORES, HERRAMIENTA, CONEXIONES, MANO DE OBRA ESPECIALIZADA, LIMPIEZA DEL AREA DE TRABAJO, PRUEBAS Y ACARREO AL SITIO DE SU COLOCACION.","ML ","30.0000",0,"CERO PESOS 00/100 M.N.",0,394864]
[536130,"SUMINISTRO Y COLOCACION DE CURVA CONDUIT DE PVC PESADO  DE 51 MM.  DE DIAM.  INCLUYE: MATERIALES MENORES Y DE CONSUMO, HERRAMIENTAS, PRUEBAS,  DESPERDICIOS, MANO DE OBRA Y ACARREOS AL SITIO DE SU COLOCACION.","PZA","7.0000",0,"CERO PESOS 00/100 M.N.",0,394865]
[536131,"SUMINISTRO Y COLOCACION DE CURVA CONDUIT DE PVC PESADO  DE 32 MM.  DE DIAM.  INCLUYE: MATERIALES MENORES Y DE CONSUMO, HERRAMIENTAS, PRUEBAS,  DESPERDICIOS, MANO DE OBRA Y ACARREOS AL SITIO DE SU COLOCACION.","PZA","2.0000",0,"CERO PESOS 00/100 M.N.",0,394866]
[536143,"SUMINISTRO Y COLOCACION DE CURVA CONDUIT DE PVC PESADO  DE 38 MM.  DE DIAM.  INCLUYE: MATERIALES MENORES Y DE CONSUMO, HERRAMIENTAS, PRUEBAS,  DESPERDICIOS, MANO DE OBRA Y ACARREOS AL SITIO DE SU COLOCACION.","PZA","7.0000",0,"CERO PESOS 00/100 M.N.",0,394867]
[537106,"SUMINISTRO Y COLOCACION DE CABLE DE COBRE DESNUDO CAL. 12, AWG, MCA. CONDUMEX, CONELEC O CONDUCTORES MONTERREY. INCLUYE: DESPERDICIOS, MATERIALES MENORES, PRUEBAS Y ACARREO AL SITIO DE SU COLOCACION.","ML ","20.0000",0,"CERO PESOS 00/100 M.N.",0,394868]
[537108,"SUMINISTRO Y COLOCACION DE CABLE DE COBRE DESNUDO CAL. 10, AWG, MCA. CONDUMEX, CONELEC O CONDUCTORES MONTERREY. INCLUYE: DESPERDICIOS, MATERIALES MENORES, PRUEBAS Y ACARREO AL SITIO DE SU COLOCACION.","ML ","100.0000",0,"CERO PESOS 00/100 M.N.",0,394869]
[537112,"SUMINISTRO Y COLOCACION DE CABLE DE COBRE DESNUDO CAL. 8, AWG, MCA. CONDUMEX, CONELEC O CONDUCTORES MONTERREY. INCLUYE: DESPERDICIOS, MATERIALES MENORES, PRUEBAS Y ACARREO AL SITIO DE SU COLOCACION.","ML ","100.0000",0,"CERO PESOS 00/100 M.N.",0,394870]
[537114,"SUMINISTRO Y COLOCACION DE CABLE DE COBRE DESNUDO CAL. 6, AWG, MCA. CONDUMEX, CONELEC O CONDUCTORES MONTERREY. INCLUYE: DESPERDICIOS, MATERIALES MENORES, PRUEBAS Y ACARREO AL SITIO DE SU COLOCACION.","ML ","300.0000",0,"CERO PESOS 00/100 M.N.",0,394871]
[537116,"SUMINISTRO Y COLOCACION DE CABLE DE COBRE DESNUDO CAL. 4, AWG, MCA. CONDUMEX, CONELEC O CONDUCTORES MONTERREY. INCLUYE: DESPERDICIOS, MATERIALES MENORES, PRUEBAS Y ACARREO AL SITIO DE SU COLOCACION.","ML ","25.0000",0,"CERO PESOS 00/100 M.N.",0,394872]
[538018,"SUMINISTRO E INSTALACION DE CABLE DE ALUMINIO CON AISLAMIENTO XLP, CAL.6 AWG, MONOPOLAR, PARA DISTRIBUCION SUBTERRANEA, VULCANEL SERIE AA 8000, TIPO XHHW-2, LS CT-SR ROHS, 90 °C, 600 V,  MARCA CONDUCTORES MONTERREY O  CONDUMEX,  INCLUYE: FLETE, ELEVACION, CONEXIONES, MATERIALES MENORES Y DE CONSUMO, HERRAMIENTAS, EQUIPO DE SEGURIDAD, DESPERDICIOS, LIMPIEZA DEL AREA DE TRABAJO, PRUEBAS, Y MANO DE OBRA,  EN CUALQUIER NIVEL.","ML ","30.0000",0,"CERO PESOS 00/100 M.N.",0,394873]
[538020,"SUMINISTRO E INSTALACION DE CABLE DE ALUMINIO CON AISLAMIENTO XLP, CAL.4 AWG, MONOPOLAR, PARA DISTRIBUCION SUBTERRANEA, VULCANEL SERIE AA 8000, TIPO XHHW-2, LS CT-SR ROHS, 90 °C, 600 V,  MARCA CONDUCTORES MONTERREY O  CONDUMEX,  INCLUYE: FLETE, ELEVACION, CONEXIONES, MATERIALES MENORES Y DE CONSUMO, HERRAMIENTAS, EQUIPO DE SEGURIDAD, DESPERDICIOS, LIMPIEZA DEL AREA DE TRABAJO, PRUEBAS, Y MANO DE OBRA,  EN CUALQUIER NIVEL.","ML ","200.0000",0,"CERO PESOS 00/100 M.N.",0,394874]
[538022,"SUMINISTRO E INSTALACION DE CABLE DE ALUMINIO CON AISLAMIENTO XLP, CAL.2  AWG, MONOPOLAR, PARA DISTRIBUCION SUBTERRANEA, VULCANEL SERIE AA 8000, TIPO XHHW-2, LS CT-SR ROHS, 90 °C, 600 V,  MARCA CONDUCTORES MONTERREY O  CONDUMEX,  INCLUYE: FLETE, ELEVACION, CONEXIONES, MATERIALES MENORES Y DE CONSUMO, HERRAMIENTAS, EQUIPO DE SEGURIDAD, DESPERDICIOS, LIMPIEZA DEL AREA DE TRABAJO, PRUEBAS, Y MANO DE OBRA,  EN CUALQUIER NIVEL.","ML ","200.0000",0,"CERO PESOS 00/100 M.N.",0,394875]
[538026,"SUMINISTRO E INSTALACION DE CABLE DE ALUMINIO CON AISLAMIENTO XLP, CAL.1/0 AWG, MONOPOLAR, PARA DISTRIBUCION SUBTERRANEA, VULCANEL SERIE AA 8000, TIPO XHHW-2, LS CT-SR ROHS, 90 °C, 600 V,  MARCA CONDUCTORES MONTERREY O  CONDUMEX,  INCLUYE: FLETE, ELEVACION, CONEXIONES, MATERIALES MENORES Y DE CONSUMO, HERRAMIENTAS, EQUIPO DE SEGURIDAD, DESPERDICIOS, LIMPIEZA DEL AREA DE TRABAJO, PRUEBAS, Y MANO DE OBRA,  EN CUALQUIER NIVEL.","ML ","200.0000",0,"CERO PESOS 00/100 M.N.",0,394876]
[543012,"SUMINISTRO Y COLOCACION DE INTERRUPTOR TERMOMAGNETICO DERIVADO CON 1 POLOS, DE 15-60 AMPERES, MCA. SQUARE D, CAT. QO. INCLUYE: PRUEBAS, MATERIALES MENORES, HERRAMIENTAS, MANO DE OBRA ESPECIALIZADA  Y ACARREO DE MATERIALES AL SITIO DE SU COLOCACION.","PZA","1.0000",0,"CERO PESOS 00/100 M.N.",0,394877]
[552022,"SUMINISTRO E INSTALACION DE FOTOCELDA CON BASE DE 1000 WATTS. 220 VOLTS.  INC.: MATERIALES MENORES, PRUEBAS Y ACARREO DE MATERIALES AL SITIO DE SU COLOCACION.","PZA","4.0000",0,"CERO PESOS 00/100 M.N.",0,394879]
[555022,"SUMINISTRO Y COLOCACION DE POSTE DE FIERRO CONICO CIRCULAR DE 6.00 MTS. DE ALTURA CON PINTURA ANTICORROSIVA Y PINTURA DE ESMALTE DE ACABADO EN COLOR VERDE JARDIN, INCLUYE; BASE DE CONCRETO F'C=200 KG/CM2 TRAPEZOIDAL DE 60 X 60 CMS. DE BASE INFERIOR, 40 X 40 CMS, BASE SUPERIOR, Y 80 CMS. DE ALTURA, ANCLAS, Y REGISTRO ELECTRICO DE CONCRETO PREFABRICADA DE 33 X 33 X 40 CM. INTERCONECTADO A BASE Y POSTE CON TUBO DE P.V.C. PESADO DE 25 MM. DE DIAMETRO,  CABLE VINANEL THW-LS 600 V. A 75° C, 90° C, MARCA CONDUCTORES MONTERREY, (VIAKON-PROTOCOLIZADO), CABLE VINANEL 21 THW-LS 600 V. A 75° C, 90° C, MARCA CONDUMEX (CONDUMEX PROTOCOLIZADO).  CAL. 10, MATERIALES MENORES, PRUEBAS Y ACARREO DEL MATERIAL AL SITIO DE SU COLOCACION.","PZA","4.0000",0,"CERO PESOS 00/100 M.N.",0,394880]
[558522,"SUMINISTRO Y COLOCACION DE VARILLA DE TIERRA COOPERWELD, DE 3.00 M X 19 MM DE DIAM.  INCLUYE: UNA  CARGA CADWELD NO. 90, CONECTOR COOPER WELD, SOLDADURA CADWELD NO. 90, PARTE PROPORCIONAL DE MOLDE 161V.,  MATERIALES MENORES, PRUEBAS Y ACARREO AL SITIO DE SU COLOCACION.","PZA","2.0000",0,"CERO PESOS 00/100 M.N.",0,394882]
[880612,"SUMINISTRO Y COLOCACION DE REGISTRO ELECTRICO DE CONCRETO, PREFABRICADO, PARA BAJA TENSION TIPO 2 NORMA C.F.E.- RBTB-2 DE 66 X 100 X 65 CM., CON TAPA DE CONCRETO,  MARCO Y CONTRAMARCO  DE ACERO GALVANIZADO, INCLUYE: TRAZO, EXCAVACION, RELLENOS COMPACTADOS, FILTRO DE GRAVA, RESANADO FINO DE TUBERIAS EN SU INTERIOR, HERRAMIENTAS, MANO DE OBRA, FLETES, ACARREO AL SITIO DE SU COLOCACION Y LIMPIEZA DEL AREA DE TRABAJO.","PZA","6.0000",0,"CERO PESOS 00/100 M.N.",0,394883]
[880621,"SUMINISTRO Y COLOCACION DE REGISTRO ELECTRICO DE CONCRETO, PREFABRICADO, PARA BAJA TENSION TIPO 1 NORMA C.F.E.- RBTB-1 DE 50 X 80 X 65 CM., CON TAPA DE CONCRETO,  MARCO Y CONTRAMARCO  DE ACERO GALVANIZADO, INCLUYE: TRAZO, EXCAVACION, RELLENOS COMPACTADOS, FILTRO DE GRAVA, RESANADO FINO DE TUBERIAS EN SU INTERIOR, HERRAMIENTAS, MANO DE OBRA, FLETES, ACARREO AL SITIO DE SU COLOCACION Y LIMPIEZA DEL AREA DE TRABAJO.","PZA","3.0000",0,"CERO PESOS 00/100 M.N.",0,394884]
[880738,"DICTAMEN DE VERIFICACION A LAS INSTALACIONES ELECTRICAS DEL PLANTEL (SUBESTACION Y BAJA TENSION). EMITIDO POR UNA UNIDAD DE VERIFICACION APROBADA POR LA SECRETARIA DE ENERGIA Y CON REGISTRO VIGENTE. INCLUYE: ADECUACION DE LOS PLANOS ELECTRICOS DEL NUCLEO DE LA ESCUELA CON CUADROS DE CARGAS Y DIAGRAMAS UNIFILAR PARA REVISION Y APROBACION DE LA UNIDAD VERIFICADORA.","PZA","1.0000",0,"CERO PESOS 00/100 M.N.",0,394885]
[919234,"SELLADO DE BOCAS DE DUCTOS EN INTERIOR DE REGISTROS DE LINEA ELECTRICA DE BAJA TENSION DE 1/2\" A 3\" DE DIAMETRO, A BASE DE ESPUMA DE POLIURETANO,  INCLUYE: MATERIALES, HERRAMIENTAS, DESPERDICIOS Y MANO DE OBRA.","PZA","80.0000",0,"CERO PESOS 00/100 M.N.",0,394886]
[935419,"MODIFICACION DE CONTRATO POR AMPLIACION DE CARGA ELECTRICA. INCLUYE; TRAMITE ANTE LA C.F.E. INCORPORACION A COBRANZA CENTRALIZADA DE LA SEJ. Y PAGO POR DEPOSITO.","PDA","1.0000",0,"CERO PESOS 00/100 M.N.",0,394887]
[972094,"SUMINISTRO Y COLOCACION DE LUMINARIA PUNTA POSTE DE ADITIVOS METALICOS DE 175 WATTS, MARCA AMERICAN ELECTRIC LIGHTHING MODELO CONTEMPO, SERIE 245 CAT. CAT. 245-17S-LL-220-R2-GL-NR-MX, INCLUYE BALASTRO ELECTROMAGNETICO AUTORREGULADO ALTO FACTOR DE POTENCIA Y MATERIAL DE FIJACION.","PZA","4.0000",0,"CERO PESOS 00/100 M.N.",0,394888]
[17,"CANCHA DE USOS MULTIPLES 1",null,null,null,null,{"$f":"TEXT(SUM(G124 + G126 + G130 + G139 + G146 + G151 + G153 + G155), \"$ #,##0.00 ;\")","v":"$ 0.00 "}]
["17.01(140)","DEMOLICIONES, DESMONTAJES Y MECANICA DE SUELOS    ",null,null,null,null,{"$f":"TEXT(SUM(G125:G125), \"$ #,##0.00 ;\")","v":"$ 0.00 "}]
[140307,"DEMOLICION DE FIRME Y/O PISO DE CONCRETO DE 10 CM DE ESPESOR PROMEDIO, ARMADO CON MALLA ELECTROSOLDADA, INCLUYE: MANO DE OBRA, HERRAMIENTA, EQUIPO,  CARGA Y ACARREO INTERIOR Y FUERA DE LA OBRA DEL MATERIAL PRODUCTO DE LA DEMOLICION.","M2 ","620.0000",0,"CERO PESOS 00/100 M.N.",0,394710]
["17.02(150)","TRABAJOS PRELIMINARES                             ",null,null,null,null,{"$f":"TEXT(SUM(G127:G129), \"$ #,##0.00 ;\")","v":"$ 0.00 "}]
[152204,"EXCAVACION EN CEPAS POR CUALQUIER MEDIO, MATERIAL TIPO \"B\", DE 0 A 2.00 M. DE PROFUNDIDAD, EN SECO, INCLUYE: AFINE DE TALUDES Y FONDO, TRASPALEOS,  MOVIMIENTOS Y ACARREOS DENTRO DE LA OBRA, HERRAMIENTAS Y MANO DE OBRA, MEDIDO EN BANCO.","M3 ","12.6000",0,"CERO PESOS 00/100 M.N.",0,394727]
[152404,"EXCAVACION A CIELO ABIERTO EN CAJON POR CUALQUIER MEDIO, MATERIAL TIPO \"B\", DE 0 A 2.00 M. DE PROFUNDIDAD, EN SECO, INCLUYE: AFINE DE TALUDES Y FONDO, TRAPALEOS,  MOVIMIENTOS Y ACARREOS DENTRO DE LA OBRA, HERRAMIENTAS Y MANO DE OBRA, MEDIDO EN BANCO.","M3 ","226.0000",0,"CERO PESOS 00/100 M.N.",0,394732]
[156002,"CARGA POR CUALQUIER MEDIO Y ACARREO EN CAMION DE MATERIAL DE DESPERDICIO PRODUCTO DE LAS EXCAVACIONES FUERA DE LA OBRA, A LUGAR PERMITIDO POR LAS AUTORIDADES CORRESPONDIENTES, MEDIDO EN BANCO. INCLUYE CARGA,  ACARREO Y DESCARGA A TIRO LIBRE, HERRAMIENTA, EQUIPO, MATERIALES DE CONSUMO Y MANO DE OBRA.","M3 ","238.6000",0,"CERO PESOS 00/100 M.N.",0,394735]
["17.03(160)","CIMENTACION                                       ",null,null,null,null,{"$f":"TEXT(SUM(G131:G138), \"$ #,##0.00 ;\")","v":"$ 0.00 "}]
[162002,"CIMIENTO DE PIEDRA BRAZA ACOMODADA PIEDRA POR PIEDRA, ASENTADA CON MORTERO CEMENTO-ARENA  EN PROPORCION 1:3. INCLUYE: MATERIALES, DESPERDICIOS, HERRAMIENTAS, LIMPIEZA, MANO DE OBRA Y ACARREO DE MATERIALES AL SITIO DE SU UTILIZACION.","M3 ","16.0000",0,"CERO PESOS 00/100 M.N.",0,394744]
[162302,"RODAPIE DE PIEDRA BRAZA, ACABADO APARENTE UNA CARA, ASENTADA CON MORTERO CEMENTO-ARENA 1:3. INCLUYE: MATERIALES, HERRAMIENTAS, PLOMEO,   LIMPIEZA, MANO DE OBRA Y ACARREO DE MATERIALES AL SITIO DE SU UTILIZACION.","M3 ","12.0500",0,"CERO PESOS 00/100 M.N.",0,394750]
[162404,"NIVELACION DE MURO DE MAMPOSTERIA CON RAJUELA DE PIEDRA BRAZA JUNTEADA CON MORTERO CEM-ARE 1:3. DE 0.10 M. DE ESPESOR X 0.40 M. DE ANCHO PROMEDIO. INCLUYE: NIVELACION, TRAZO, MANO DE OBRA Y HERRAMIENTA. (NO INCLUYE MATERIALES)","ML ","100.4000",0,"CERO PESOS 00/100 M.N.",0,394752]
[180041,"AFINE Y CONFORMACION DE TERRENO NATURAL Y/O EN AREA DE CORTES, CON UN ESPESOR DE 15 CMS.,  AL 95% PROCTOR MEDIDO COMPACTO, REALIZADO EN FORMA MECANICA CON RODILLO VIBRATORIO, INCLUYE:SUMINISTRO DE AGUA PARA LOGRAR HUMEDAD OPTIMA, EQUIPO MECANICO, PRUEBAS DE COMPACTACION, AFINE, NIVELACION, HERRAMIENTAS Y MANO DE OBRA.","M2 ","562.0000",0,"CERO PESOS 00/100 M.N.",0,394766]
[180054,"RELLENO EN CEPAS POR CUALQUIER MEDIO, CON MATERIAL DE BANCO, (ARENA LIMOSA) COMPACTADO AL 95% PROCTOR, EN CAPAS DE 15 CM, MEDIDO COMPACTO. INCLUYE:  SUMINISTRO DE AGUA PARA LOGRAR HUMEDAD OPTIMA, DESPERDICIOS, TENDIDO, TRASPALEOS,  EQUIPO, PRUEBAS DE COMPACTACION, AFINE, NIVELACION, HERRAMIENTAS, MANO DE OBRA Y  ACARREO HASTA EL SITIO DE SU COLOCACION.  (VOLUMEN MEDIDO COMPACTADO).","M3 ","22.0000",0,"CERO PESOS 00/100 M.N.",0,394772]
[180103,"RELLENO COMPACTADO AL 95% PROCTOR, CON MATERIAL DE BANCO, EN CAPAS DE 15 CM DE ESPESOR, AGREGANDO AGUA PARA LOGRAR SU HUMEDAD OPTIMA, POR CUALQUIER MEDIO, INCLUYE: SUMINISTRO DE AGUA PARA LOGRAR HUMEDAD OPTIMA, TENDIDO, TRASPALEOS,  DESPERDICIOS, EQUIPO, PRUEBAS DE COMPACTACION, AFINE, NIVELACION, HERRAMIENTAS, MANO DE OBRA Y  ACARREO HASTA EL SITIO DE SU COLOCACION.  (VOLUMEN MEDIDO COMPACTADO).","M3 ","45.0000",0,"CERO PESOS 00/100 M.N.",0,394777]
[180246,"RELLENO COMPACTADO POR CUALQUIER MEDIO CON SUELO-CEMENTO (CON MATERIAL DE BANCO) EN PROPORCION DE 60 KGS. DE CEMENTO GRIS POR M3., A CUALQUIER PROFUNDIDAD, COMPACTADO AL 95% PROCTOR, EN CAPAS DE 15 CM. INCLUYE: AGUA PARA LOGRAR HUMEDAD OPTIMA, ACARREO HASTA EL SITIO DE SU COLOCACION, PRUEBAS DE COMPACTACION, HERRAMIENTA Y MANO DE OBRA.","M3 ","113.0000",0,"CERO PESOS 00/100 M.N.",0,394779]
[182024,"RELLENO POR CUALQUIER MEDIO, CON GRAVA DE 3/4\" A 3\" DE DIAMETRO LIBRE DE FINOS, PARA ELIMINAR REBOTE ELASTICO EN BASE DE LA ZAPATA, ESTRUCTURA DE PISOS Y/O COMO FILTRO, INCLUYE: MATERIALES, ACARREOS, BANDEO, COMPACTACION, TENDIDO, EQUIPO,  NIVELADO, DESPERDICIOS, TRASPALEOS, HERRAMIENTAS Y MANO DE OBRA.","M3 ","113.0000",0,"CERO PESOS 00/100 M.N.",0,394783]
["17.04(372)","PISOS                                             ",null,null,null,null,{"$f":"TEXT(SUM(G140:G145), \"$ #,##0.00 ;\")","v":"$ 0.00 "}]
[344528,"JUNTA DE CONTRACCION  EN PISOS, A BASE DE SONOFLEX, CELOTEX, FIBRACEL, SIKA ROLL DE 3/8\" DE DIAM., CON UNA SECCION TRANSVERSAL DE LA RANURA EN EL PISO DE 0.60 CM X 5.00  Y SELLO DE SIKAFLEX-1A, GRIS CON UNA SECCION DE 0.60 CM. DE ANCHO  X 1.50 CM. DE PROFUNDIDAD, INCLUYE:  MATERIALES, DESPERDICIOS, LIMPIEZA, IMPRIMACION, HERRAMIENTAS, MANO DE OBRA Y ACARREO DEL PRODUCTO SOBRANTE FUERA DE LA OBRA.","ML ","298.0000",0,"CERO PESOS 00/100 M.N.",0,394814]
[344840,"CORTE CON DISCO DE DIAMANTE EN PISO Y/O LOSA DE CONCRETO, 5.00 CM. DE PROFUNDIDAD Y 0.60 CM. DE ANCHO, INCLUYE: TRAZO, HERRAMIENTAS, EQUIPO DE CORTE, EQUIPO DE SEGURIDAD, ACARREOS, MANO DE OBRA Y LIMPIEZA DEL AREA DE TRABAJO.","ML ","298.0000",0,"CERO PESOS 00/100 M.N.",0,394815]
[360565,"SUMINISTRO Y COLOCACION DE MALLA ELECTROSOLDADA 6X6-10/10 COMO REFUERZO EN PISOS DE CONCRETO, INCLUYE: DESPERDICIOS, TRASLAPES, HERRAMIENTA Y ACARREO DEL MATERIAL AL SITIO DE SU COLOCACION.","M2 ","618.3000",0,"CERO PESOS 00/100 M.N.",0,394816]
[372204,"SUMINISTRO Y APLICACION DE ENDURECEDOR QUIMICO EN PISOS DE CONCRETO, ENDUMIN DE  FESTER PROPORCION 3.00 KG. POR M2. INCLUYE:  DESPERDICIOS, HERRAMIENTA, MANO DE OBRA CALIFICADA, EQUIPO NECESARIO, MATERIALES DE CONSUMO Y TODO LO NECESARIO PARA SU CORRECTA EJECUCION. TRABAJO TERMINADO.","M2 ","618.3000",0,"CERO PESOS 00/100 M.N.",0,394817]
[373050,"PISO DE CONCRETO HIDRAULICO PREMEZCLADO BOMBEABLE F'C=200 KG/CM², T.M.A. 3/4\", DE 0.10 M. DE ESPESOR, COLADO EN FRANJAS DE 6.00 A 8.00 MTS. DE ANCHO, MODULADO DE ACUERDO AL AREA TOTAL A COLAR, ACABADO PULIDO CON EQUIPO MECANICO, INCLUYE: TRAZO, NIVELACION, AFINE Y COMPACTACION DEL TERRENO, AGUA, DESPERDICIOS, ACARREOS, REGLEADO, ACABADO PULIDO DE FORMA INTEGRAL  (SIN UTILIZACION DE PASTA), CIMBRA MACHIMBRADA (HEMBRA MACHO) EN FRONTERAS , DESCIMBRA, BOMBEO, COLADO, CURADO, REMATES, ESCALONADO, MUESTREADO, PRUEBAS DE RESISTENCIA DEL CONCRETO, NIVELACION, JUNTAS FRIAS CON VOLTEADOR, LIMPIEZA DEL AREA DE TRABAJO, HERRAMIENTAS Y MANO DE OBRA.","M2 ","618.3000",0,"CERO PESOS 00/100 M.N.",0,394820]
[373766,"FORJADO DE NARIZ DE REMATE EN PISO DE  BANQUETAS, CON 10.0  X  10.0 CM. DE SECCION, INCLUYE SOLO: CIMBRA APARENTE, DESCIMBRA, GOTERO, FORJADO, CHAFLANES, PERFILADO, DESPERDICIOS, HERRAMIENTAS, Y MANO DE OBRA. (NO INCLUYE CONCRETO).","ML ","102.8000",0,"CERO PESOS 00/100 M.N.",0,394822]
["17.05(393)","PINTURA                                           ",null,null,null,null,{"$f":"TEXT(SUM(G147:G150), \"$ #,##0.00 ;\")","v":"$ 0.00 "}]
[393126,"PINTURA DE ESMALTE ALQUIDALICO ANTICORROSIVO, ACABADO BRILLANTE, PARA INTERIORES Y EXTERIORES QUE NO DESPRENDA VAPORES TÓXICOS NI OLORES DESAGRADABLES, CON LAS SIGUIENTES CARACTERÍSTICAS ( SÓLIDOS POR PESO 49-60%, SÓLIDOS POR VOLUMEN 40-46%, VISCOSIDAD DE 110-160 UK A 25°C, DENSIDAD 0.9-1.2 TON/M3., BRILLO A 60°C, 90%, TIEMPO DE SECADO AL TACTO, < O = 6 HRS., TIEMPO DE SECADO DURO < O = 24 HRS., ADHERENCIA 100%, RENDIMIENTO EN SUP. LISA 8-10 M2/LT., DILUCIÓN MÁXIMA (AGUARRÁS, THINER), 15 %,  EN HERRERIA  TUBULAR Y/O ESTRUCTURAL ESTRUCTURA DE TABLEROS DE BASQUET-BALL CON PORTERIAS PARA FUT-BOL, 4 POSTES PARA CANCHA DE VOLY-BALL, ROTULACION DE TABLEROS, TRABAJO TERMINADO, A DOS MANOS, INCLUYE: MATERIALES MENORES Y DE CONSUMO, ANDAMIOS, PREPARACION DE LA SUPERFICIE, HERRAMIENTAS, LIMPIEZA, MANO DE OBRA Y  EQUIPO DE SEGURIDAD. ","JGO","1.0000",0,"CERO PESOS 00/100 M.N.",0,394833]
[393803,"ELABORACION DE ROTULO CON EL NOMBRE Y LOGOTIPO DEL GOBIERNO DEL ESTADO DE JALISCO EN SUPERFICIE DE ASFALTO Y/O CONCRETO CON DIMENSIONES APROXIMADA DE 205 X 205 CM, A BASE DE EMULSION A BASE DE SELLADOR ACRILICO SURFACER NEUTRO CONCENTRADO, PIGMENTO Y ARENA SILICA EXTRAFINA A RAZON DE 1.75 KG/LTS., TRABAJO TERMINADO A DOS MANOS, INCLUYE: TRAZO, PREPARACION DE LA SUPERFICIE, MEZCLADO, MATERIALES MENORES Y DE CONSUMO, DESPERDICIOS, SEÑALAMIENTOS, HERRAMIENTAS, LIMPIEZA, MANO DE OBRA Y EQUIPO DE SEGURIDAD. (LA APLICACIÓN DE LA PUNTURA DEBERÁ SER EN LA TOTALIDAD DE LA SUPERFICIE MENCIONADA)","PZA","1.0000",0,"CERO PESOS 00/100 M.N.",0,394840]
[393804,"SUMINISTRO Y APLICACION DE EMULSION A BASE DE SELLADOR ACRILICO SURFACER NEUTRO CONCENTRADO, PIGMENTO Y ARENA SILICA EXTRAFINA A RAZON DE 1.75 KG/LTS., APLICADO EN PISOS DE CONCRETO Y/O ASFALTO, CON PISTOLA DE ASPERSION, BROCHA O RODILLO, TRABAJO TERMINADO A DOS MANOS, EN COLOR INDICADO EN PROYECTO O POR LA SUPERVISION, INCLUYE: TRAZO, PINTADO DE LINEAS DE BALIZAMIENTO EN CANCHAS DEPORTIVAS DE 5 CM DE ANCHO, MATERIALES MENORES Y DE CONSUMO, MEZCLADO, PREPARACION DE LA SUPERFICIE, SEÑALAMIENTOS, HERRAMIENTAS, LIMPIEZA, MANO DE OBRA Y EQUIPO DE SEGURIDAD. EN CUALQUIER NIVEL.","M2 ","613.4000",0,"CERO PESOS 00/100 M.N.",0,394841]
[393805,"ELABORACION DE ROTULO CON EL NOMBRE Y  LOGOTIPO DEL INSTITUTO (INFEJAL) EN  SUPERFICIE DE ASFALTO Y/O CONCRETO CON DIMENSIONES APROXIMADA DE 170 X 40 CM, A BASE DE  EMULSION A BASE DE SELLADOR ACRILICO SURFACER NEUTRO CONCENTRADO, PIGMENTO Y ARENA SILICA EXTRAFINA A RAZON DE 1.75 KG/LTS., TRABAJO TERMINADO A DOS MANOS, INCLUYE: TRAZO, PREPARACION DE LA SUPERFICIE, MEZCLADO,  MATERIALES MENORES Y DE CONSUMO, DESPERDICIOS, SEÑALAMIENTOS, HERRAMIENTAS, LIMPIEZA, MANO DE OBRA Y EQUIPO DE SEGURIDAD. (LA APLICACIÓN DE LA PUNTURA DEBERÁ SER EN LA TOTALIDAD DE LA SUPERFICIE MENCIONADA)","PZA","1.0000",0,"CERO PESOS 00/100 M.N.",0,394842]
["17.06(396)","LIMPIEZA                                          ",null,null,null,null,{"$f":"TEXT(SUM(G152:G152), \"$ #,##0.00 ;\")","v":"$ 0.00 "}]
[396012,"LIMPIEZA DE PISOS DE CONCRETO CON AGUA Y ACIDO MURIATICO AL 10%.","M2 ","618.3000",0,"CERO PESOS 00/100 M.N.",0,394844]
["17.07(410)","CANCELERIA, HERRERIA, ALUMINIO, VIDRIOS Y CHAPAS  ",null,null,null,null,{"$f":"TEXT(SUM(G154:G154), \"$ #,##0.00 ;\")","v":"$ 0.00 "}]
[412017,"SUMINISTRO, COLOCACION Y MONTAJE DE AROS Y RED DE BASQUET-BALL  INCLUYE: ACARREOS, SUMINISTROS DE MATERIALES NECESARIOS, PINTURA, HERRAMIENTA NECESARIA, EQUIPO Y MATERIAL DE CONSUMO NECESARIOS, MANO DE OBRA CALIFICADA Y TODO LO NECESARIO PARA SU CORRECTA EJECUCION.\n\n\n","JGO","1.0000",0,"CERO PESOS 00/100 M.N.",0,394852]
["17.08(615)","JUEGOS INFANTILES Y ARENEROS                      ",null,null,null,null,{"$f":"TEXT(SUM(G156:G157), \"$ #,##0.00 ;\")","v":"$ 0.00 "}]
[418002,"SUMINISTRO Y COLOCACION DE RED DE FOOT-BALL EN PORTERIAS DE  CANCHA DE USOS MULTIPLES. INCLUYE: MATERIALES , HERRAMIENTA, ACARREOS, MANO DE OBRA Y TODO LO NECESARIO PARA SU CORRECTA EJECUCION.\n","PZA","2.0000",0,"CERO PESOS 00/100 M.N.",0,394889]
[418004,"SUMINISTRO Y COLOCACION DE RED DE VOLY-BALL CON CABLE DE ACERO Y LONA EN PARTE SUPERIOR, PARA CANCHA DE USOS MULTIPLES, INCLUYE: MATERIALES , HERRAMIENTA, ACARREOS, MANO DE OBRA Y TODO LO NECESARIO PARA SU CORRECTA EJECUCION.\n\n","PZA","2.0000",0,"CERO PESOS 00/100 M.N.",0,394890]
[30,"INGRESO TIPO",null,null,null,null,{"$f":"TEXT(SUM(G159 + G162 + G169 + G180 + G187 + G189 + G193 + G195 + G198 + G200 + G203 + G206), \"$ #,##0.00 ;\")","v":"$ 0.00 "}]
["30.01(140)","DEMOLICIONES, DESMONTAJES Y MECANICA DE SUELOS    ",null,null,null,null,{"$f":"TEXT(SUM(G160:G161), \"$ #,##0.00 ;\")","v":"$ 0.00 "}]
[140402,"DESMONTAJE Y RETIRO DE BARANDAL METALICO DE PERFILES TUBULARES Y/O ESTRUCTURALES EXISTENTE EN OBRA, SIN RECUPERACION, INCLUYE: DEMOLICION DE BASES DE ANCLAS, CORTES, HERRAMIENTAS, EQUIPO, MANO DE OBRA, LIMPIEZA DEL AREA DE TRABAJO,  ACARREOS DENTRO Y FUERA DE LA OBRA DE MATERIAL DE DESECHO.","M2 ","9.0000",0,"CERO PESOS 00/100 M.N.",0,394711]
[140634,"DEMOLICION DE MURO DE LADRILLO DE LAMA Y/O BLOCK DE CONCRETO DE 21 CMS. DE ESPESOR A CUALQUIER NIVEL, INCLUYE:  DEMOLICION DE DALAS, CADENAS Y CASTILLOS,  DEMOLICION DE RECUBRMIENTOS, APLANADOS, AZULEJO,(PROTECCIONES DE PISOS, VIDRIOS, PUERTAS, VENTANAS, LAMPARAS Y DEMAS INSTALACIONES QUE PUDIERAN RESULTAR DAÑADAS EN EL PROCESO DE LA DEMOLICION.) HERRAMIENTAS, EQUIPO DE SEGURIDAD,  ANDAMIOS, MANO DE OBRA, ACARREO DEL PRODUCTO DE LA DEMOLICION  DENTRO Y FUERA DE LA OBRA, LIMPIEZA DEL AREA DE TRABAJO.","M2 ","15.0000",0,"CERO PESOS 00/100 M.N.",0,394714]
["30.02(150)","TRABAJOS PRELIMINARES                             ",null,null,null,null,{"$f":"TEXT(SUM(G163:G168), \"$ #,##0.00 ;\")","v":"$ 0.00 "}]
[150020,"LIMPIEZA DE TERRENO RETIRANDO BASURA Y DESHIERBE FUERA DE LA OBRA. INCLUYE: HERRAMIENTAS, MANO DE OBRA, RECOLECCION, JUNTA Y RETIRO. (PROYECCION DE CUBIERTA).","M2 ","40.5000",0,"CERO PESOS 00/100 M.N.",0,394716]
[150110,"TRAZO Y NIVELACION DE EDIFICIOS ESTABLECIENDO REFERENCIAS DEFINITIVAS, CON TRANSITO Y NIVEL (EQUIPO TOPOGRAFICO), INCLUYE: PERSONAL TECNICO CALIFICADO, ESTACAS, MOJONERAS, LOCALIZACION DE ENTRE EJES, BANCOS DE NIVEL, MATERIALES PARA SEÑALAMIENTO, EQUIPO, HERRAMIENTA Y MANO DE OBRA.","M2 ","40.5000",0,"CERO PESOS 00/100 M.N.",0,394720]
[150210,"DESPALME DE TERRENO NATURAL POR CUALQUIER MEDIO, CON ESPESOR PROMEDIO DE 20 CM. INCLUYE: CARGA Y ACARREO DEL PRODUCTO FUERA DE LA OBRA, MANO DE OBRA, HERRAMIENTA Y EQUIPO. (PROYECCION DE CUBIERTA).","M2 ","40.5000",0,"CERO PESOS 00/100 M.N.",0,394725]
[152204,"EXCAVACION EN CEPAS POR CUALQUIER MEDIO, MATERIAL TIPO \"B\", DE 0 A 2.00 M. DE PROFUNDIDAD, EN SECO, INCLUYE: AFINE DE TALUDES Y FONDO, TRASPALEOS,  MOVIMIENTOS Y ACARREOS DENTRO DE LA OBRA, HERRAMIENTAS Y MANO DE OBRA, MEDIDO EN BANCO.","M3 ","11.0000",0,"CERO PESOS 00/100 M.N.",0,394728]
[152404,"EXCAVACION A CIELO ABIERTO EN CAJON POR CUALQUIER MEDIO, MATERIAL TIPO \"B\", DE 0 A 2.00 M. DE PROFUNDIDAD, EN SECO, INCLUYE: AFINE DE TALUDES Y FONDO, TRAPALEOS,  MOVIMIENTOS Y ACARREOS DENTRO DE LA OBRA, HERRAMIENTAS Y MANO DE OBRA, MEDIDO EN BANCO.","M3 ","8.1000",0,"CERO PESOS 00/100 M.N.",0,394733]
[156002,"CARGA POR CUALQUIER MEDIO Y ACARREO EN CAMION DE MATERIAL DE DESPERDICIO PRODUCTO DE LAS EXCAVACIONES FUERA DE LA OBRA, A LUGAR PERMITIDO POR LAS AUTORIDADES CORRESPONDIENTES, MEDIDO EN BANCO. INCLUYE CARGA,  ACARREO Y DESCARGA A TIRO LIBRE, HERRAMIENTA, EQUIPO, MATERIALES DE CONSUMO Y MANO DE OBRA.","M3 ","19.1000",0,"CERO PESOS 00/100 M.N.",0,394736]
["30.03(160)","CIMENTACION                                       ",null,null,null,null,{"$f":"TEXT(SUM(G170:G179), \"$ #,##0.00 ;\")","v":"$ 0.00 "}]
[160222,"PLANTILLA DE CONCRETO F'C=100 KG/CM2, TMA=3/4\", DE 5.00 CM DE ESPESOR PROMEDIO. INCLUYE: MATERIALES, HERRAMIENTAS, AFINE, NIVELACION, LIMPIEZA, MANO DE OBRA Y ACARREO DE MATERIALES AL SITIO DE SU UTILIZACION.","M2 ","10.0000",0,"CERO PESOS 00/100 M.N.",0,394742]
[170012,"CIMBRA  ACABADO COMUN, EN CIMENTACION, INCLUYE: DESPERDICIO, HABILITADO, CIMBRADO Y DESCIMBRA, NIVELACION, PLOMEO MATERIAL, MANO DE OBRA , LIMPIEZA, HERRAMIENTA, ACARREO DEL MATRIAL DENTRO Y FUERA DE LA OBRA.","M2 ","18.5000",0,"CERO PESOS 00/100 M.N.",0,394757]
[173003,"SUMINISTRO, HABILITADO, ARMADO Y COLOCACION DE ACERO DE REFUERZO FY=4,200 KG/CM2 (G.E.), DE 3/8\" ( #3 ), EN CIMENTACION, INCLUYE: MATERIALES, HABILITADO,  DOBLECES,  SILLETAS, ALAMBRE, GANCHOS, ESCUADRAS, TRASLAPES, DESPERDICIOS HERRAMIENTAS, MANO DE OBRA Y ACARREO DE MATERIALES AL SITIO DE SU COLOCACION.","KG ","147.0000",0,"CERO PESOS 00/100 M.N.",0,394759]
[173004,"SUMINISTRO, HABILITADO, ARMADO Y COLOCACION DE ACERO DE REFUERZO FY=4,200 KG/CM2 (G.E.), DE 1/2\" ( #4 ), EN CIMENTACION, INCLUYE: MATERIALES, HABILITADO,  DOBLECES,  SILLETAS, ALAMBRE, GANCHOS, ESCUADRAS, TRASLAPES, DESPERDICIOS HERRAMIENTAS, MANO DE OBRA Y ACARREO DE MATERIALES AL SITIO DE SU COLOCACION.","KG ","57.0000",0,"CERO PESOS 00/100 M.N.",0,394761]
[176110,"SUMINISTRO Y COLOCACION DE CONCRETO PREMEZCLADO A TIRO DIRECTO F'C=250 KG/CM2, TMA= 3/4\", R.N. EN CIMENTACION. INCLUYE: TENDIDO, RASTREADO, VIBRADO, NIVELACION, HERRAMIENTAS, LIMPIEZA, PRUEBAS,  CURADO CON CURACRETO ROJO,  DESPERDICIO Y MANO DE OBRA.","M3 ","2.6500",0,"CERO PESOS 00/100 M.N.",0,394765]
[180041,"AFINE Y CONFORMACION DE TERRENO NATURAL Y/O EN AREA DE CORTES, CON UN ESPESOR DE 15 CMS.,  AL 95% PROCTOR MEDIDO COMPACTO, REALIZADO EN FORMA MECANICA CON RODILLO VIBRATORIO, INCLUYE:SUMINISTRO DE AGUA PARA LOGRAR HUMEDAD OPTIMA, EQUIPO MECANICO, PRUEBAS DE COMPACTACION, AFINE, NIVELACION, HERRAMIENTAS Y MANO DE OBRA.","M2 ","40.5000",0,"CERO PESOS 00/100 M.N.",0,394767]
[180054,"RELLENO EN CEPAS POR CUALQUIER MEDIO, CON MATERIAL DE BANCO, (ARENA LIMOSA) COMPACTADO AL 95% PROCTOR, EN CAPAS DE 15 CM, MEDIDO COMPACTO. INCLUYE:  SUMINISTRO DE AGUA PARA LOGRAR HUMEDAD OPTIMA, DESPERDICIOS, TENDIDO, TRASPALEOS,  EQUIPO, PRUEBAS DE COMPACTACION, AFINE, NIVELACION, HERRAMIENTAS, MANO DE OBRA Y  ACARREO HASTA EL SITIO DE SU COLOCACION.  (VOLUMEN MEDIDO COMPACTADO).","M3 ","5.7000",0,"CERO PESOS 00/100 M.N.",0,394773]
[180206,"RELLENO CON MATERIAL DE BANCO-CEMENTO GRIS, EN PROPORCIÓN DE100 KGS. POR M3 A CUALQUIER PROFUNDIDAD, COMPACTADO AL 90 % PROCTOR EN CAPAS DE 15 CM. INCLUYE: ESCARIFICADO DEL TERRENO, SUMINISTRO DE AGUA PARA LOGRAR HUMEDAD OPTIMA, MEZCLACO, TENDIDO, TRASPALEOS,  DESPERDICIOS, EQUIPO, PRUEBAS DE COMPACTACION, AFINE, NIVELACION, HERRAMIENTAS, MANO DE OBRA Y  ACARREO HASTA EL SITIO DE SU COLOCACION.  (VOLUMEN MEDIDO COMPACTADO).","M3 ","2.0000",0,"CERO PESOS 00/100 M.N.",0,394778]
[180246,"RELLENO COMPACTADO POR CUALQUIER MEDIO CON SUELO-CEMENTO (CON MATERIAL DE BANCO) EN PROPORCION DE 60 KGS. DE CEMENTO GRIS POR M3., A CUALQUIER PROFUNDIDAD, COMPACTADO AL 95% PROCTOR, EN CAPAS DE 15 CM. INCLUYE: AGUA PARA LOGRAR HUMEDAD OPTIMA, ACARREO HASTA EL SITIO DE SU COLOCACION, PRUEBAS DE COMPACTACION, HERRAMIENTA Y MANO DE OBRA.","M3 ","14.7500",0,"CERO PESOS 00/100 M.N.",0,394780]
[182024,"RELLENO POR CUALQUIER MEDIO, CON GRAVA DE 3/4\" A 3\" DE DIAMETRO LIBRE DE FINOS, PARA ELIMINAR REBOTE ELASTICO EN BASE DE LA ZAPATA, ESTRUCTURA DE PISOS Y/O COMO FILTRO, INCLUYE: MATERIALES, ACARREOS, BANDEO, COMPACTACION, TENDIDO, EQUIPO,  NIVELADO, DESPERDICIOS, TRASPALEOS, HERRAMIENTAS Y MANO DE OBRA.","M3 ","3.0000",0,"CERO PESOS 00/100 M.N.",0,394784]
["30.04(200)","ESTRUCTURA                                        ",null,null,null,null,{"$f":"TEXT(SUM(G181:G186), \"$ #,##0.00 ;\")","v":"$ 0.00 "}]
[192048,"SUMINISTRO Y COLOCACION A CUALQUIER NIVEL DE ANCLA Y PLACA DE ASIENTO PARA CONEXION DE ESTRUCTURA METALICA A ESTRUCTURA DE CONCRETO , AHOGADA EN ELEMENTOS DE CONCRETO, FABRICADA A BASE DE UNA PLACA DE ACERO A36, DE 15 CM X 35 CM X 1/2\", DOS ANCLAS DE REDONDO LISO DE 1/2\" SOLDADAS A PLACA CON UN DESARROLLO 60 CMS. APROX. Y EN FORMA DE \"U\" FIJADAS A ACERO DE REFUERZO. INCLUYE: TRAZO, CORTES, DESBASTADO, FIJACION, SOLDADURA, DESPERDICIOS, NIVELACION,  HERRAMIENTAS, LIMPIEZAS Y MANO DE OBRA ESPECIALIZADA.","PZA","4.0000",0,"CERO PESOS 00/100 M.N.",0,394789]
[210112,"CIMBRA DE MADERA, ACABADO APARENTE, EN MUROS Y BARANDAL, INCLUYE: HABILITADO, CHAFLANES, CIMBRA, DESCIMBRA, HERRAMIENTAS, LIMPIEZAS, MANO DE OBRA  Y ACARREO DE MATERIALES AL SITIO DE SU UTILIZACION, A CUALQUIER NIVEL.","M2 ","61.9000",0,"CERO PESOS 00/100 M.N.",0,394790]
[213003,"SUMINISTRO, HABILITADO, ARMADO Y COLOCACION DE ACERO DE REFUERZO FY=4,200 KG/CM2 (G.E.), DE 3/8\" (# 3 ), EN ESTRUCTURA, INCLUYE: MATERIALES, HABILITADO,  DOBLECES,  SILLETAS, ALAMBRE, GANCHOS, ESCUADRAS, TRASLAPES, DESPERDICIOS HERRAMIENTAS, MANO DE OBRA Y ACARREO DE MATERIALES AL SITIO DE SU COLOCACION.","KG ","171.0000",0,"CERO PESOS 00/100 M.N.",0,394791]
[216912,"SUMINISTRO Y COLOCACION DE CONCRETO PREMEZCLADO BOMB,  F'C=250 KG/CM2, T.M.A.= 3/4, R.N., EN MUROS Y BARANDAL, CUALQUIER ALTURA, INCLUYE: MATERIALES, FLETES, MANIOBRAS, BOMBEO, CURADO CON CURACRETO ROJO, VIBRADO, AFINE Y ACABADO REGLEADO,  DESPERDICIO, PRUEBAS DE RESISTENCIA Y MANO DE OBRA, A CUALQUIER NIVEL.","M3 ","4.3500",0,"CERO PESOS 00/100 M.N.",0,394792]
[280090,"SUMINISTRO, HABILITADO Y MONTAJE DE ESTRUCTURA METALICA DE ACERO ASTMA-36 F'Y=2530 KG/CM2, SOLDADOS Y/O ATORNILLADOS, (PERFILES IPR. IPS, CPS, REDONDOS SOLIDO, SOLERAS Y PLACAS, ETC, DIFERENTES DIMENSIONES Y CALIBRES,) PARA COLUMNAS, ARMADURAS, TRABES Y VIGAS, INCLUYE: MATERIALES MENORES Y DE CONSUMO, TRAZO, CORTES, AJUSTES, DESPERDICIOS, ENDEREZADO, BISELADO, DESCALIBRES, BARRENOS, TORQUES, SOLDADURA, UNA PRUEBA RADIOGRAFICA Y/O LIQUIDOS PENETRANTES POR CADA 500 KG. DE ACERO, FLETES, PINTURA ANTICORROSIVA, MANO DE OBRA CALIFICADA, HERRAMIENTA, EQUIPO, FLETES, ELEVACIONES, ACARREOS DE MATERIALES AL SITIO DE SU COLOCACION, ACUALQUIER ALTURA.","KG ","470.0000",0,"CERO PESOS 00/100 M.N.",0,394793]
[285008,"SUMINISTRO, HABILITADO Y MONTAJE DE ESTRUCTURA A BASE DE POLIN-MONTEN EN DIFERENTES PERALTES Y ESPESORES, INCLUYE: MATERIALES MENORES Y DE CONSUMO, TRAZO, CORTES, AJUSTES, DESPERDICIOS, TORNILLERÍA, DESCALIBRES, BARRENOS, SOLDADURA, PRUEBAS RADIOGRAFICAS, PINTURA ANTICORROSIVA, MANO DE OBRA CALIFICADA, HERRAMIENTA, EQUIPO, FLETES, ELEVACIONES, ACARREOS DE MATERIALES AL SITIO DE SU COLOCACION, ACUALQUIER ALTURA. ","KG ","82.0000",0,"CERO PESOS 00/100 M.N.",0,394798]
["30.05(319)","ENTREPISOS, CUBIERTA Y ACABADOS DE AZOTEA         ",null,null,null,null,{"$f":"TEXT(SUM(G188:G188), \"$ #,##0.00 ;\")","v":"$ 0.00 "}]
[326017,"SUMINISTRO Y COLOCACION DE LAMINA ACANALADA TERMOACUSTICA DE PVC, MCA. ULTRALAM, MOD. A-136, HIGH PERFORMANCE DE 3 MM DE ESPESOR, EN COLOR BLANCO,  INCLUYE: ELEMENTOS  DE FIJACION, CORTES, AJUSTES, TRASLAPES, DEPERDICIOS, ANDAMIOS, LIMPIEZA, HERRAMIENTAS, MANO DE OBRA Y ACARREOS AL SITIO DE SU INSTALACION.  A CUALQUIERALTURA.\n","M2 ","26.6100",0,"CERO PESOS 00/100 M.N.",0,394808]
["30.06(372)","PISOS                                             ",null,null,null,null,{"$f":"TEXT(SUM(G190:G192), \"$ #,##0.00 ;\")","v":"$ 0.00 "}]
[373022,"PISO DE CONCRETO F'C=150 KG/CM², T.M.A. 3/4\", DE 0.10 M. DE ESPESOR, COLADO EN CUADROS NO MAYORES DE 3.00 ML POR LADO, INCLUYE: TRAZO, NIVELACION, AFINE Y COMPACTACION DEL TERRENO, AGUA, DESPERDICIOS, ACARREOS, REGLEADO, ACABADO INTEGRAL RAYADO CON BROCHA DE PELO (SIN UTILIZACION DE PASTA), CIMBRA EN FRONTERAS, DESCIMBRA, COLADO, CURADO, REMATES, ESCALONADO, MUESTREADO, JUNTAS FRIAS CON VOLTEADOR, HERRAMIENTAS Y MANO DE OBRA.","M2 ","22.2500",0,"CERO PESOS 00/100 M.N.",0,394818]
[374508,"GUARNICION O MACHUELO DE CONCRETO SIMPLE F'C=150 KG/CM2 CON SECCION DE 15 X 30 CMS., CON CIMBRA APARENTE, INCLUYE: TRAZO, EXCAVACION, CONFORMACION Y COMPACTACION DEL TERRENO NATURAL CON HERRAMIENTA MANUAL, INCORPORACION DE HUMEDAD OPTIMA, RETIRO DEL MATERIAL PRODUCTO DE LA EXCAVACION, CIMBRA APARENTE Y DESCIMBRA, COLADO, VIBRADO, CURADO, SEÑALAMIENTO PREVENTIVO, MATERIALES, HERRAMIENTAS, MANO DE OBRA Y ACARREO DE MATERIALES AL SITIO DE SU UTILIZACION.","ML ","14.2500",0,"CERO PESOS 00/100 M.N.",0,394823]
[375242,"FORJADO DE RAMPA PARA MINUSVALIDOS FABRICADO A BASE DE CONCRETO F'C=150 KG/CM2. T.M.A. 3/4\" HECHO EN OBRA DE 0.10 MT. DE ESPESOR  PROMEDIO DANDO PENDIENTE DEL 6%. INCLUYE: HERRAMIENTAS, ACABADO RAYADO,  CIMBRA DESCIMBRA, MANO DE OBRA, REMATE EN PISO Y BANQUETA, ACARREO DEL  MATERIALES AL SITIO DE SU UTILIZACION.","M2 ","2.2500",0,"CERO PESOS 00/100 M.N.",0,394824]
["30.07(382)","ELEMENTOS COMPLEMENTARIOS DE ALBAÑILERIA          ",null,null,null,null,{"$f":"TEXT(SUM(G194:G194), \"$ #,##0.00 ;\")","v":"$ 0.00 "}]
[384205,"SUMINISTRO Y COLOCACION DE BANCA JARDINERA PREFABRICADA  MODELO NA02, TIPO NAPRESA O SIMILAR, DE 2.50 MTS DE LARGO, 0.60 DE ANCHO Y 0.45 DE ALTURA, INCLUYE: PREPARACION DEL AREA DE COLOCACION, ANCLAJE, NIVELACION, FLETES, MANIOBRAS DE CARGA Y DESCARGA, HERRAMIENTAS, MATERIALES PARA FIJACION, LIMPIEZA Y MANO DE OBRA.","PZA","1.0000",0,"CERO PESOS 00/100 M.N.",0,394828]
["30.08(393)","PINTURA                                           ",null,null,null,null,{"$f":"TEXT(SUM(G196:G197), \"$ #,##0.00 ;\")","v":"$ 0.00 "}]
[393216,"PINTURA DE ESMALTE ALQUIDALICO ANTICORROSIVO, ACABADO BRILLANTE, PARA INTERIORES Y EXTERIORES QUE NO DESPRENDA VAPORES TÓXICOS NI OLORES DESAGRADABLES, CON LAS SIGUIENTES CARACTERÍSTICAS ( SÓLIDOS POR PESO 49-60%, SÓLIDOS POR VOLUMEN 40-46%, VISCOSIDAD DE 110-160 UK A 25°C, DENSIDAD 0.9-1.2 TON/M3., BRILLO A 60°C, 90%, TIEMPO DE SECADO AL TACTO, < O = 6 HRS., TIEMPO DE SECADO DURO < O = 24 HRS., ADHERENCIA 100%, RENDIMIENTO EN SUP. LISA 8-10 M2/LT., DILUCIÓN MÁXIMA (AGUARRÁS, THINER), 15 %,  EN ESTRUCTURA DE CUBIERTA, A BASE DE LARGUEROS DE POLINES MON-TEN, TENSORES Y CONEXIONES, TRABAJO TERMINADO, A DOS MANOS, INCLUYE: MATERIALES MENORES Y DE CONSUMO, ANDAMIOS, PREPARACION DE LA SUPERFICIE, HERRAMIENTAS, LIMPIEZA, MANO DE OBRA Y  EQUIPO DE SEGURIDAD. A CUALQUIER NIVEL. (PROYECCIÓN DE CUBIERTA).","M2 ","26.6100",0,"CERO PESOS 00/100 M.N.",0,394834]
[393325,"PINTURA DE ESMALTE ALQUIDALICO ANTICORROSIVO, ACABADO BRILLANTE, PARA INTERIORES Y EXTERIORES QUE NO DESPRENDA VAPORES TÓXICOS NI OLORES DESAGRADABLES, CON LAS SIGUIENTES CARACTERÍSTICAS ( SÓLIDOS POR PESO 49-60%, SÓLIDOS POR VOLUMEN 40-46%, VISCOSIDAD DE 110-160 UK A 25°C, DENSIDAD 0.9-1.2 TON/M3., BRILLO A 60°C, 90%, TIEMPO DE SECADO AL TACTO, < O = 6 HRS., TIEMPO DE SECADO DURO < O = 24 HRS., ADHERENCIA 100%, DILUCIÓN MÁXIMA (AGUARRÁS, THINER), 15 %,  EN BARANDAL METALICO, EN COLOR DE ACUERDO A INDICADO POR SUPERVISIÓN MEDIDO POR UN SOLO LADO, TRABAJO TERMINADO, A DOS MANOS, INCLUYE: MATERIALES MENORES Y DE CONSUMO, PREPARACION DE LA SUPERFICIE, ANDAMIOS, HERRAMIENTAS, LIMPIEZA, MANO DE OBRA Y  EQUIPO DE SEGURIDAD. CUALQUIER ALTURA..","M2 ","13.6600",0,"CERO PESOS 00/100 M.N.",0,394838]
["30.09(396)","LIMPIEZA                                          ",null,null,null,null,{"$f":"TEXT(SUM(G199:G199), \"$ #,##0.00 ;\")","v":"$ 0.00 "}]
[396012,"LIMPIEZA DE PISOS DE CONCRETO CON AGUA Y ACIDO MURIATICO AL 10%.","M2 ","24.5000",0,"CERO PESOS 00/100 M.N.",0,394845]
["30.10(410)","CANCELERIA, HERRERIA, ALUMINIO, VIDRIOS Y CHAPAS  ",null,null,null,null,{"$f":"TEXT(SUM(G201:G202), \"$ #,##0.00 ;\")","v":"$ 0.00 "}]
[412006,"SUMINISTRO, FABRICACION Y COLOCACION DE HERRERIA TUBULAR Y/O ESTRUCTURAL PARA BARANDAL O PASAMANOS,  INCLUYE: SOLDADURA, CORTES, AJUSTES, MATERIALES MENORES, DESCALIBRES, DESPERDICIOS, BISAGRAS, FONDO ANTICORROSIVO, FLETES, HERRAMIENTAS, MANO DE OBRA, Y ACARREO DE MATERIALES AL SITIO DE SU UTLIZACION.","KG ","345.0000",0,"CERO PESOS 00/100 M.N.",0,394849]
[412897,"SUMINISTRO, MONTAJE  Y COLOCACION DE PARASOL DE 0.50 MTS. DE ALTURA,  FABRICADO A BASE DE BASTIDOR METALICO DE PTR DE 2 1/2\" X 2 1/2\" BLANCO Y SOLERA DE 1/2\" X 3/16\", CON POSTES VERTICALES A CADA 100 CM. APROXIMADAMENTE,  CORTINA DE LAMINA NEGRA MULTIPERFORADA CAL 14, CON PERFOTRACIONES DE 3 MM. DE DIAMETRO, RAMACAHADA A BASTIDOR, INCLUYE: ANCLAS DE PLACA Y SOLERA DE 1/4\", ELEMENTOS DE FIJACION, TRAZO, ROLADO, SOLDADURA, CORTES, DESPERDICIOS, DESBASTADO, AJUSTES,  EQUIPOS, PLOMEO, NIVELACION, PINTURA DE TALLER Y ESMALTE A DOS MANOS, TRABAJO TERMINADO, POR AMBAS CARAS, HERRAMIENTAS, MANO DE OBRA, MATERIALES MENORES, FLETES Y ACARREO DE LOS MATERIALES AL SITIO DE SU UTILIZACION.","ML ","22.6400",0,"CERO PESOS 00/100 M.N.",0,394853]
["30.11(510)","INSTALACION ELECTRICA EN EDIFICIO                 ",null,null,null,null,{"$f":"TEXT(SUM(G204:G205), \"$ #,##0.00 ;\")","v":"$ 0.00 "}]
[540012,"SUMINISTRO Y COLOCACION DE CENTRO DE CARGAS TIPO QOD-2, MCA. SQUARE D, INCLUYE: ELEMENTOS DE FIJACION,  PRUEBAS, MATERIALES MENORES Y DE CONSUMO, CONEXIONES, LIMPIEZAS, HERRAMIENTAS, MANO DE OBRA ESPECIALIZADA Y ACARREO DE MATERIALES AL SITIO DE SU COLOCACION.","PZA","1.0000",0,"CERO PESOS 00/100 M.N.",0,394854]
[543012,"SUMINISTRO Y COLOCACION DE INTERRUPTOR TERMOMAGNETICO DERIVADO CON 1 POLOS, DE 15-60 AMPERES, MCA. SQUARE D, CAT. QO. INCLUYE: PRUEBAS, MATERIALES MENORES, HERRAMIENTAS, MANO DE OBRA ESPECIALIZADA  Y ACARREO DE MATERIALES AL SITIO DE SU COLOCACION.","PZA","1.0000",0,"CERO PESOS 00/100 M.N.",0,394855]
["30.12(511)","INSTALACION ELECTRICA EN OBRA EXTERIOR            ",null,null,null,null,{"$f":"TEXT(SUM(G207:G208), \"$ #,##0.00 ;\")","v":"$ 0.00 "}]
[514011,"SALIDA ELECTRICA DE CENTRO AISLADA, VISIBLE, CON TUBERIA Y CONEXIONES CONDUIT GALVANIZADA P.G., ROSCADA DE 13 Y 19 MM. DE DIAMETRO, CABLE VINANEL THW-LS 600 V. A 75° C, 90° C, MARCA CONDUCTORES MONTERREY, (VIAKON-PROTOCOLIZADO), CABLE VINANEL 21 THW-LS 600 V. A 75° C, 90° C, MARCA CONDUMEX (CONDUMEX PROTOCOLIZADO).  CALIBRE 12, CAJAS CUADRADAS, CHALUPAS Y TAPAS GALVANIZADAS, INCLUYE: TRAZO, MATERIALES MENORES Y DE FIJACION, HERRAMIENTA, MANO DE OBRA ESPECIALIZADA , CONEXIONES, LIMPIEZA DEL AREA DE TRABAJO, PRUEBAS, DESPERDICIOS Y ACARREO DEL MATERIAL AL SITIO DE SU COLOCACION, A CUALQUIER NIVEL.","SAL","2.0000",0,"CERO PESOS 00/100 M.N.",0,394856]
[550221,"SUMINISTRO Y COLOCACION DE LUMINARIA HERMETICO DE SOBREPONER DE 2 X 16 WATTS, MCA. NOVALUX O SIMILAR, MOD. PISCIS, CAT. NVL-PIS-216-LED-P, EN GABINETE DE 1.27 X 0.17 MTS. FABRICADO EN RESINA POLIESTER Y FIBRA DE VIDRIO CON ACABADO A BASE DE PINTURA EN POLVO DE POLIESTER, APLICADA ELECTROSTATICAMENTE Y TERMOENDURECIDA, DIFUSOR DE ACRILICO DE ALTO IMPACTO TRANSPARENTE TERMOFORMADO, CON UNA REFLECTANCIA MINIMA DE 93%, IP-65 DISEÑADA A PRUEBA DE POLVO, VAPORES Y AGUA, PARA OPERAR CON DOS LAMPARA LED LINEAL T8, 16 WATTS CADA UNA, MULTIVOLTAJE 120-277 VOLTS , TEMPERATURA DE COLOR 4000°K, IRC>80,  VIDA UTIL DE 40,000 HRS., 2350 LUMENES TOTALES COMO MINIMO, DRIVER INTEGRADO , LA LUMINARIA (COMPLETA) DEBERA CUMPLIR CON LA NORMA ANCE, INCLUYE: MATERIALES DE FIJACION, LAMPARAS, PRUEBAS, COPIA DE CERTIFICACION ANCE ANEXA EN ELTRAMITE DE LA ESTIMACION, NIVELACION, MATERIALES MENORES Y DE CONSUMO, CONEXIONES, DESPERDICIOS, HERRAMIENTAS, ANDAMIOS, MANO DE OBRA, MATERIALES DE FIJACION, LIMPIEZA DEL AREA DE TRABAJO, Y ACARREO DE MATERIALES AL SITIO DE SU COLOCACION. A CUALQUIER ALTURA.","PZA","2.0000",0,"CERO PESOS 00/100 M.N.",0,394878]
["33A","MURO DIVISORIO",null,null,null,null,{"$f":"TEXT(SUM(G210 + G212 + G217 + G224 + G230 + G233), \"$ #,##0.00 ;\")","v":"$ 0.00 "}]
["33A.01(140)","DEMOLICIONES, DESMONTAJES Y MECANICA DE SUELOS    ",null,null,null,null,{"$f":"TEXT(SUM(G211:G211), \"$ #,##0.00 ;\")","v":"$ 0.00 "}]
[140432,"DESMONTAJE DE CERCA PERIMETRAL A BASE DE MALLA CICLON DE 2.00 A 2.50 MTS DE ALTURA, EXISTENTE EN OBRA, SIN RECUPERACION, INCLUYE:  RETIRO DE POSTES, MALLA,  ALAMBRE DE PUAS, MANIOBRAS DE ARRASTRE, HERRAMIENTAS, MANO DE OBRA Y RETIRO DE MATERIALES DE DESPERDICIO FUERA DE LA OBRA.","ML ","31.5000",0,"CERO PESOS 00/100 M.N.",0,394712]
["33A.02(150)","TRABAJOS PRELIMINARES                             ",null,null,null,null,{"$f":"TEXT(SUM(G213:G216), \"$ #,##0.00 ;\")","v":"$ 0.00 "}]
[150020,"LIMPIEZA DE TERRENO RETIRANDO BASURA Y DESHIERBE FUERA DE LA OBRA. INCLUYE: HERRAMIENTAS, MANO DE OBRA, RECOLECCION, JUNTA Y RETIRO. (PROYECCION DE CUBIERTA).","M2 ","18.9000",0,"CERO PESOS 00/100 M.N.",0,394717]
[150120,"TRAZO Y NIVELACION DE EXTERIORES ESTABLECIENDO REFERENCIAS DEFINITIVAS, CON TRANSITO Y NIVEL (EQUIPO TOPOGRAFICO), INCLUYE: PERSONAL TECNICO CALIFICADO, ESTACAS, MOJONERAS, LOCALIZACION DE EJES Y/O ENTRE EJES, BANCOS DE NIVEL, MATERIALES PARA SEÑALAMIENTO, EQUIPO, HERRAMIENTA Y MANO DE OBRA.","M2 ","18.9000",0,"CERO PESOS 00/100 M.N.",0,394721]
[152204,"EXCAVACION EN CEPAS POR CUALQUIER MEDIO, MATERIAL TIPO \"B\", DE 0 A 2.00 M. DE PROFUNDIDAD, EN SECO, INCLUYE: AFINE DE TALUDES Y FONDO, TRASPALEOS,  MOVIMIENTOS Y ACARREOS DENTRO DE LA OBRA, HERRAMIENTAS Y MANO DE OBRA, MEDIDO EN BANCO.","M3 ","9.4500",0,"CERO PESOS 00/100 M.N.",0,394729]
[156002,"CARGA POR CUALQUIER MEDIO Y ACARREO EN CAMION DE MATERIAL DE DESPERDICIO PRODUCTO DE LAS EXCAVACIONES FUERA DE LA OBRA, A LUGAR PERMITIDO POR LAS AUTORIDADES CORRESPONDIENTES, MEDIDO EN BANCO. INCLUYE CARGA,  ACARREO Y DESCARGA A TIRO LIBRE, HERRAMIENTA, EQUIPO, MATERIALES DE CONSUMO Y MANO DE OBRA.","M3 ","9.4500",0,"CERO PESOS 00/100 M.N.",0,394737]
["33A.03(160)","CIMENTACION                                       ",null,null,null,null,{"$f":"TEXT(SUM(G218:G223), \"$ #,##0.00 ;\")","v":"$ 0.00 "}]
[162002,"CIMIENTO DE PIEDRA BRAZA ACOMODADA PIEDRA POR PIEDRA, ASENTADA CON MORTERO CEMENTO-ARENA  EN PROPORCION 1:3. INCLUYE: MATERIALES, DESPERDICIOS, HERRAMIENTAS, LIMPIEZA, MANO DE OBRA Y ACARREO DE MATERIALES AL SITIO DE SU UTILIZACION.","M3 ","9.4500",0,"CERO PESOS 00/100 M.N.",0,394745]
[162116,"MAMPOSTERIA DE PIEDRA BRAZA, ACABADO APARENTE DOS CARAS DE 0 A 1.50 MTS, ASENTADA CON  CEMENTO-ARENA 1:3, INCLUYE: MATERIALES, HERRAMIENTAS, PLOMEO,  LIMPIEZA, MANO DE OBRA Y ACARREO DE MATERIALES AL SITIO DE SU UTILIZACION.","M3 ","8.5000",0,"CERO PESOS 00/100 M.N.",0,394748]
[162404,"NIVELACION DE MURO DE MAMPOSTERIA CON RAJUELA DE PIEDRA BRAZA JUNTEADA CON MORTERO CEM-ARE 1:3. DE 0.10 M. DE ESPESOR X 0.40 M. DE ANCHO PROMEDIO. INCLUYE: NIVELACION, TRAZO, MANO DE OBRA Y HERRAMIENTA. (NO INCLUYE MATERIALES)","ML ","31.5000",0,"CERO PESOS 00/100 M.N.",0,394753]
[180041,"AFINE Y CONFORMACION DE TERRENO NATURAL Y/O EN AREA DE CORTES, CON UN ESPESOR DE 15 CMS.,  AL 95% PROCTOR MEDIDO COMPACTO, REALIZADO EN FORMA MECANICA CON RODILLO VIBRATORIO, INCLUYE:SUMINISTRO DE AGUA PARA LOGRAR HUMEDAD OPTIMA, EQUIPO MECANICO, PRUEBAS DE COMPACTACION, AFINE, NIVELACION, HERRAMIENTAS Y MANO DE OBRA.","M2 ","18.9000",0,"CERO PESOS 00/100 M.N.",0,394768]
[180102,"RELLENO COMPACTADO AL 90 % PROCTOR, CON MATERIAL DE BANCO, EN CAPAS DE 20 CM DE ESPESOR, AGREGANDO AGUA PARA LOGRAR SU HUMEDAD OPTIMA, AL 90%. POR CUALQUIER MEDIO, INCLUYE: SUMINISTRO DE AGUA PARA LOGRAR HUMEDAD OPTIMA, TENDIDO, TRASPALEOS,  DESPERDICIOS, EQUIPO, PRUEBAS DE COMPACTACION, AFINE, NIVELACION, HERRAMIENTAS, MANO DE OBRA Y  ACARREO HASTA EL SITIO DE SU COLOCACION.  (VOLUMEN MEDIDO COMPACTADO).","M3 ","0.9000",0,"CERO PESOS 00/100 M.N.",0,394774]
[192810,"BASE PARA CASTILLO DE 40.0 X 40.0 X 50.0 CM, EN CIMENTACION DE PIEDRA, CON CONCRETO F'C=150 KG/CM2, TMA=3/4\", CON 4 VARILLAS DE 3/8\" DE DIAMETRO Y ESTRIBOS DE 1/4\" @ 15.0 CM. CIMBRA COMUN,  INCLUYE: CIMBRADO Y DESCIMBRADO, COLADO, VIBRADO, CURADO, MATERIALES, DESPERDICIOS, HERRAMIENTAS, LIMPIEZA, MANO DE OBRA Y ACARREO DE MATERIALES AL SITIO DE SU UTILIZACION.","PZA","14.0000",0,"CERO PESOS 00/100 M.N.",0,394787]
["33A.04(310)","MUROS, CADENAS, CASTILLOS Y REPIZONES.            ",null,null,null,null,{"$f":"TEXT(SUM(G225:G229), \"$ #,##0.00 ;\")","v":"$ 0.00 "}]
[167204,"DALA DE DESPLANTE DE CONCRETO F´C= 150 KG/CM2, T.M.A.= 3/4\", CON SECCION DE 14 X 20 CM., ARMADA CON 4 VARILLAS DEL #3 Y ESTRIBOS DEL #2 @ 20 CM., INCLUYE: ARMADO, COLADO, CURADO, VIBRADO, CIMBRA COMUN, DESCIMBRA, DESPERDICIOS, TRASLAPES, CRUCES DE VARILLAS CON ELEMENTOS TRANSVERSALES, ANDAMIOS, MANO DE OBRA, HERRAMIENTA Y ACARREO DE MATERIALES AL SITIO DE SU UTILIZACION, A CUALQUIER ALTURA.","ML ","31.5000",0,"CERO PESOS 00/100 M.N.",0,394799]
[310207,"DALA DE CONCRETO F'C=150 KG/CM2, T.M.A.=3/4\", CON SECCION DE 14 X 15 CMS., ARMADA CON 4 VARILLAS DEL # 3 Y ESTRIBOS DEL NO. 2 @ 15 CMS., INCLUYE: ARMADO, COLADO, CURADO, VIBRADO, CIMBRA COMUN, DESCIMBRA, TRASLAPES, CRUCES DE VARILLAS CON ELEMENTOS TRANSVERSALES, DESPERDICIOS, MANO DE OBRA, HERRAMIENTA Y ACARREO DE MATERIALES AL SITIO DE SU UTILIZACION, A CUALQUIER ALTURA.","ML ","31.5000",0,"CERO PESOS 00/100 M.N.",0,394800]
[312210,"CASTILLO DE CONCRETO F´C= 150 KGS/CM2 CON UNA SECCION DE 14 X 15 CM., ARMADO CON 4 VARILLAS DEL #3, ESTRIBOS DEL #2@15 CM.  INCLUYE: ARMADO, COLADO, CURADO, VIBRADO, CIMBRA COMUN, DESCIMBRA, TRASLAPES, CRUCES DE VARILLAS CON ELEMENTOS TRANSVERSALES, DESPERDICIOS, MANO DE OBRA, HERRAMIENTA Y ACARREO DE MATERIALES AL SITIO DE SU UTILIZACION, A CUALQUIER ALTURA.","ML ","28.7000",0,"CERO PESOS 00/100 M.N.",0,394803]
[314032,"MURO DE TABIQUE DE LAMA, DE 14 CMS. DE ESPESOR PROMEDIO, A SOGA, CON TABIQUE DE LAMA 7 X 14 X 28 CMS., ACABADO COMUN, ASENTADO CON MORTERO CEMENTO-ARENA EN PROPORCION 1:3, EN CUALQUIER NIVEL, INCLUYE: TRAZO, NIVELACION, PLOMEO, ANDAMIOS, DESPERDICIOS, MANO DE OBRA, LIMPIEZA Y ACARREO DE MATERIALES AL SITIO DE SU UTILIZACION.","M2 ","60.3000",0,"CERO PESOS 00/100 M.N.",0,394805]
[373502,"CEJA DE CONCRETO F'C=150 KG/CM2, TMA=3/4\" DE 12.0 X 18.0 CM DE SECCION PROMEDIO, ARMADA CON 1 VARILLA #3 (3/8\") Y ESTRIBOS DE 1/4\" @ 25.0 CM, EN CUALQUIER NIVEL. INCLUYE: CIMBRA APARENTE, DESCIMBRA, COLADO, VIBRADO, CURADO, PERFILADO, CHAFLANES, GOTERO, LIMPIEZA, HERRAMIENTAS, MATERIALES, DESPERDICIOS Y MANO DE OBRA.","ML ","63.0000",0,"CERO PESOS 00/100 M.N.",0,394807]
["33A.05(355)","RECUBRIMIENTOS Y ACABADOS                         ",null,null,null,null,{"$f":"TEXT(SUM(G231:G232), \"$ #,##0.00 ;\")","v":"$ 0.00 "}]
[355022,"APLANADO DE MUROS Y/O TECHOS CON MORTERO CEMENTO-CAL-ARENA DE RIO EN PROP. 1:2:6 DE 2 CM. DE ESPESOR PROMEDIO, A PLOMO Y REGLA, ACABADO APALILLADO FINO, INCLUYE: MATERIALES, DESPERDICIOS, ANDAMIOS, HERRAMIENTAS, PLOMEO, NIVELACION, REMATES, LIMPIEZA DEL AREA DE TRABAJO Y ACARREO DE MATERIALES AL SITIO DE SU UTILIZACION. A CUALQUIER NIVEL.\n","M2 ","148.0500",0,"CERO PESOS 00/100 M.N.",0,394810]
[357310,"BOQUILLAS EN MUROS DE 17 CMS DE ANCHO PROMEDIO, CON MORTERO CEM-ARE 1:4, ACABADO A PLOMO Y REGLA, INCLUYE REMATES Y ACARREO DE MATERIALES AL SITIO DE SU UTILIZACION A CUALQUIER NIVEL.","ML ","31.8500",0,"CERO PESOS 00/100 M.N.",0,394812]
["33A.06(393)","PINTURA                                           ",null,null,null,null,{"$f":"TEXT(SUM(G234:G234), \"$ #,##0.00 ;\")","v":"$ 0.00 "}]
[393022,"PINTURA VINIL-ACRÍLICA A BASE DE AGUA ACABADO SEMIMATE  LAVABLE, PARA INTERIORES Y EXTERIORES QUE NO DESPRENDA VAPORES TÓXICOS NI OLORES DESAGRADABLES, CON LAS SIGUIENTES CARACTERÍSTICAS ( SÓLIDOS POR PESO 46-52%, SÓLIDOS POR VOLUMEN 30-36%, VISCOSIDAD DE 100-130 UK A 25°C, DENSIDAD > O = 1.2 TON/M3., LAVABILIDAD > O = 4,000 CICLOS, TIEMPO DE SECADO AL TACTO, 30-40 MIN., TIEMPO DE SECADO DURO < O = 8 HRS., CICLO DE CURADO DE 7 DIAS, PH 6-8, RENDIMIENTO EN SUP. LISA 8-10 M2/LT., FINEZA DE MOLIDO (HEGMAN) 3-7 UH.)  EN MUROS APLANADOS DE MEZCLA APALILLADO O PULIDO, TRABAJO TERMINADO, A DOS MANOS, INCLUYE: MATERIALES MENORES Y DE CONSUMO, ANDAMIOS, PREPARACION DE LA SUPERFICIE, SELLADO DE LA SUPERFICIE, HERRAMIENTAS, LIMPIEZA, MANO DE OBRA Y  ACARREOS DE MATERIALES AL SITIO DE SU UTILIZACIÓN.","M2 ","153.8500",0,"CERO PESOS 00/100 M.N.",0,394831]
["33B","MURO REJA",null,null,null,null,{"$f":"TEXT(SUM(G236 + G238 + G243 + G251 + G255 + G258 + G261 + G264), \"$ #,##0.00 ;\")","v":"$ 0.00 "}]
["33B.01(140)","DEMOLICIONES, DESMONTAJES Y MECANICA DE SUELOS    ",null,null,null,null,{"$f":"TEXT(SUM(G237:G237), \"$ #,##0.00 ;\")","v":"$ 0.00 "}]
[140432,"DESMONTAJE DE CERCA PERIMETRAL A BASE DE MALLA CICLON DE 2.00 A 2.50 MTS DE ALTURA, EXISTENTE EN OBRA, SIN RECUPERACION, INCLUYE:  RETIRO DE POSTES, MALLA,  ALAMBRE DE PUAS, MANIOBRAS DE ARRASTRE, HERRAMIENTAS, MANO DE OBRA Y RETIRO DE MATERIALES DE DESPERDICIO FUERA DE LA OBRA.","ML ","235.7500",0,"CERO PESOS 00/100 M.N.",0,394713]
["33B.02(150)","TRABAJOS PRELIMINARES                             ",null,null,null,null,{"$f":"TEXT(SUM(G239:G242), \"$ #,##0.00 ;\")","v":"$ 0.00 "}]
[150020,"LIMPIEZA DE TERRENO RETIRANDO BASURA Y DESHIERBE FUERA DE LA OBRA. INCLUYE: HERRAMIENTAS, MANO DE OBRA, RECOLECCION, JUNTA Y RETIRO. (PROYECCION DE CUBIERTA).","M2 ","141.4500",0,"CERO PESOS 00/100 M.N.",0,394718]
[150120,"TRAZO Y NIVELACION DE EXTERIORES ESTABLECIENDO REFERENCIAS DEFINITIVAS, CON TRANSITO Y NIVEL (EQUIPO TOPOGRAFICO), INCLUYE: PERSONAL TECNICO CALIFICADO, ESTACAS, MOJONERAS, LOCALIZACION DE EJES Y/O ENTRE EJES, BANCOS DE NIVEL, MATERIALES PARA SEÑALAMIENTO, EQUIPO, HERRAMIENTA Y MANO DE OBRA.","M2 ","141.4500",0,"CERO PESOS 00/100 M.N.",0,394722]
[152204,"EXCAVACION EN CEPAS POR CUALQUIER MEDIO, MATERIAL TIPO \"B\", DE 0 A 2.00 M. DE PROFUNDIDAD, EN SECO, INCLUYE: AFINE DE TALUDES Y FONDO, TRASPALEOS,  MOVIMIENTOS Y ACARREOS DENTRO DE LA OBRA, HERRAMIENTAS Y MANO DE OBRA, MEDIDO EN BANCO.","M3 ","70.0000",0,"CERO PESOS 00/100 M.N.",0,394730]
[156002,"CARGA POR CUALQUIER MEDIO Y ACARREO EN CAMION DE MATERIAL DE DESPERDICIO PRODUCTO DE LAS EXCAVACIONES FUERA DE LA OBRA, A LUGAR PERMITIDO POR LAS AUTORIDADES CORRESPONDIENTES, MEDIDO EN BANCO. INCLUYE CARGA,  ACARREO Y DESCARGA A TIRO LIBRE, HERRAMIENTA, EQUIPO, MATERIALES DE CONSUMO Y MANO DE OBRA.","M3 ","70.7000",0,"CERO PESOS 00/100 M.N.",0,394738]
["33B.03(160)","CIMENTACION                                       ",null,null,null,null,{"$f":"TEXT(SUM(G244:G250), \"$ #,##0.00 ;\")","v":"$ 0.00 "}]
[162002,"CIMIENTO DE PIEDRA BRAZA ACOMODADA PIEDRA POR PIEDRA, ASENTADA CON MORTERO CEMENTO-ARENA  EN PROPORCION 1:3. INCLUYE: MATERIALES, DESPERDICIOS, HERRAMIENTAS, LIMPIEZA, MANO DE OBRA Y ACARREO DE MATERIALES AL SITIO DE SU UTILIZACION.","M3 ","70.7000",0,"CERO PESOS 00/100 M.N.",0,394746]
[162116,"MAMPOSTERIA DE PIEDRA BRAZA, ACABADO APARENTE DOS CARAS DE 0 A 1.50 MTS, ASENTADA CON  CEMENTO-ARENA 1:3, INCLUYE: MATERIALES, HERRAMIENTAS, PLOMEO,  LIMPIEZA, MANO DE OBRA Y ACARREO DE MATERIALES AL SITIO DE SU UTILIZACION.","M3 ","63.6500",0,"CERO PESOS 00/100 M.N.",0,394749]
[162404,"NIVELACION DE MURO DE MAMPOSTERIA CON RAJUELA DE PIEDRA BRAZA JUNTEADA CON MORTERO CEM-ARE 1:3. DE 0.10 M. DE ESPESOR X 0.40 M. DE ANCHO PROMEDIO. INCLUYE: NIVELACION, TRAZO, MANO DE OBRA Y HERRAMIENTA. (NO INCLUYE MATERIALES)","ML ","235.7500",0,"CERO PESOS 00/100 M.N.",0,394754]
[167204,"DALA DE DESPLANTE DE CONCRETO F´C= 150 KG/CM2, T.M.A.= 3/4\", CON SECCION DE 14 X 20 CM., ARMADA CON 4 VARILLAS DEL #3 Y ESTRIBOS DEL #2 @ 20 CM., INCLUYE: ARMADO, COLADO, CURADO, VIBRADO, CIMBRA COMUN, DESCIMBRA, DESPERDICIOS, TRASLAPES, CRUCES DE VARILLAS CON ELEMENTOS TRANSVERSALES, ANDAMIOS, MANO DE OBRA, HERRAMIENTA Y ACARREO DE MATERIALES AL SITIO DE SU UTILIZACION, A CUALQUIER ALTURA.","ML ","117.8500",0,"CERO PESOS 00/100 M.N.",0,394756]
[180041,"AFINE Y CONFORMACION DE TERRENO NATURAL Y/O EN AREA DE CORTES, CON UN ESPESOR DE 15 CMS.,  AL 95% PROCTOR MEDIDO COMPACTO, REALIZADO EN FORMA MECANICA CON RODILLO VIBRATORIO, INCLUYE:SUMINISTRO DE AGUA PARA LOGRAR HUMEDAD OPTIMA, EQUIPO MECANICO, PRUEBAS DE COMPACTACION, AFINE, NIVELACION, HERRAMIENTAS Y MANO DE OBRA.","M2 ","141.4500",0,"CERO PESOS 00/100 M.N.",0,394769]
[180102,"RELLENO COMPACTADO AL 90 % PROCTOR, CON MATERIAL DE BANCO, EN CAPAS DE 20 CM DE ESPESOR, AGREGANDO AGUA PARA LOGRAR SU HUMEDAD OPTIMA, AL 90%. POR CUALQUIER MEDIO, INCLUYE: SUMINISTRO DE AGUA PARA LOGRAR HUMEDAD OPTIMA, TENDIDO, TRASPALEOS,  DESPERDICIOS, EQUIPO, PRUEBAS DE COMPACTACION, AFINE, NIVELACION, HERRAMIENTAS, MANO DE OBRA Y  ACARREO HASTA EL SITIO DE SU COLOCACION.  (VOLUMEN MEDIDO COMPACTADO).","M3 ","7.8500",0,"CERO PESOS 00/100 M.N.",0,394775]
[192810,"BASE PARA CASTILLO DE 40.0 X 40.0 X 50.0 CM, EN CIMENTACION DE PIEDRA, CON CONCRETO F'C=150 KG/CM2, TMA=3/4\", CON 4 VARILLAS DE 3/8\" DE DIAMETRO Y ESTRIBOS DE 1/4\" @ 15.0 CM. CIMBRA COMUN,  INCLUYE: CIMBRADO Y DESCIMBRADO, COLADO, VIBRADO, CURADO, MATERIALES, DESPERDICIOS, HERRAMIENTAS, LIMPIEZA, MANO DE OBRA Y ACARREO DE MATERIALES AL SITIO DE SU UTILIZACION.","PZA","78.0000",0,"CERO PESOS 00/100 M.N.",0,394788]
["33B.04(310)","MUROS, CADENAS, CASTILLOS Y REPIZONES.            ",null,null,null,null,{"$f":"TEXT(SUM(G252:G254), \"$ #,##0.00 ;\")","v":"$ 0.00 "}]
[310207,"DALA DE CONCRETO F'C=150 KG/CM2, T.M.A.=3/4\", CON SECCION DE 14 X 15 CMS., ARMADA CON 4 VARILLAS DEL # 3 Y ESTRIBOS DEL NO. 2 @ 15 CMS., INCLUYE: ARMADO, COLADO, CURADO, VIBRADO, CIMBRA COMUN, DESCIMBRA, TRASLAPES, CRUCES DE VARILLAS CON ELEMENTOS TRANSVERSALES, DESPERDICIOS, MANO DE OBRA, HERRAMIENTA Y ACARREO DE MATERIALES AL SITIO DE SU UTILIZACION, A CUALQUIER ALTURA.","ML ","117.8500",0,"CERO PESOS 00/100 M.N.",0,394801]
[312244,"CASTILLO DE CONCRETO F'C=150 KG/CM2, T.M.A.=3/4, CON SECCION DE 14 X 20 CMS., ARMADA CON 4 VARILLAS DEL # 3 Y ESTRIBOS DEL NO. 2 @ 20 CMS., INCLUYE:  ARMADO, COLADO, CURADO, VIBRADO, CIMBRA COMUN, DESCIMBRA, TRASLAPES, CRUCES DE VARILLAS CON ELEMENTOS TRANSVERSALES, DESPERDICIOS, MANO DE OBRA, HERRAMIENTA, ANDAMIOS,  Y ACARREO DE MATERIALES AL SITIO DE SU UTILIZACION, A CUALQUIER ALTURA.","ML ","161.1000",0,"CERO PESOS 00/100 M.N.",0,394804]
[314032,"MURO DE TABIQUE DE LAMA, DE 14 CMS. DE ESPESOR PROMEDIO, A SOGA, CON TABIQUE DE LAMA 7 X 14 X 28 CMS., ACABADO COMUN, ASENTADO CON MORTERO CEMENTO-ARENA EN PROPORCION 1:3, EN CUALQUIER NIVEL, INCLUYE: TRAZO, NIVELACION, PLOMEO, ANDAMIOS, DESPERDICIOS, MANO DE OBRA, LIMPIEZA Y ACARREO DE MATERIALES AL SITIO DE SU UTILIZACION.","M2 ","218.0500",0,"CERO PESOS 00/100 M.N.",0,394806]
["33B.05(355)","RECUBRIMIENTOS Y ACABADOS                         ",null,null,null,null,{"$f":"TEXT(SUM(G256:G257), \"$ #,##0.00 ;\")","v":"$ 0.00 "}]
[355022,"APLANADO DE MUROS Y/O TECHOS CON MORTERO CEMENTO-CAL-ARENA DE RIO EN PROP. 1:2:6 DE 2 CM. DE ESPESOR PROMEDIO, A PLOMO Y REGLA, ACABADO APALILLADO FINO, INCLUYE: MATERIALES, DESPERDICIOS, ANDAMIOS, HERRAMIENTAS, PLOMEO, NIVELACION, REMATES, LIMPIEZA DEL AREA DE TRABAJO Y ACARREO DE MATERIALES AL SITIO DE SU UTILIZACION. A CUALQUIER NIVEL.\n","M2 ","554.0000",0,"CERO PESOS 00/100 M.N.",0,394811]
[357322,"BOQUILLAS EN PUERTAS Y VENTANAS, CON MORTERO CEMENTO-CAL-ARENA 1:2:6, INCLUYE: ANDAMIOS Y ACARREO DE MATERIALES AL SITIO DE SU UTILIZACION.","ML ","302.5000",0,"CERO PESOS 00/100 M.N.",0,394813]
["33B.06(372)","PISOS                                             ",null,null,null,null,{"$f":"TEXT(SUM(G259:G260), \"$ #,##0.00 ;\")","v":"$ 0.00 "}]
[373502,"CEJA DE CONCRETO F'C=150 KG/CM2, TMA=3/4\" DE 12.0 X 18.0 CM DE SECCION PROMEDIO, ARMADA CON 1 VARILLA #3 (3/8\") Y ESTRIBOS DE 1/4\" @ 25.0 CM, EN CUALQUIER NIVEL. INCLUYE: CIMBRA APARENTE, DESCIMBRA, COLADO, VIBRADO, CURADO, PERFILADO, CHAFLANES, GOTERO, LIMPIEZA, HERRAMIENTAS, MATERIALES, DESPERDICIOS Y MANO DE OBRA.","ML ","235.7500",0,"CERO PESOS 00/100 M.N.",0,394821]
[382685,"REPISON DE CONCRETO F'C= 150 KG/CM2, CON FORMA TRAPEZOIDAL SECCION DE 50 CM. DE ANCHO X 10 CM. DE ESPESOR EN LOS EXTREMOS Y 15 CM. AL CENTRO DE LA SECCION, ARMADO CON 1 VARILLA DEL # 3 @ 20 CM EN AMBAS DIRECCIONES, CON DETALLES Y MOLDURAS, INCLUYE: CIMBRA APARENTE, DESCIMBRADO, CHAFLANES, COLADO, CURADO, VIBRADO, PERFILADO, DESPERDICIOS, ACABADO PULIDO FINO Y/O CON BROCHA DE PELO, HERRAMIENTA, MANO DE OBRA Y TODO LO NECESARIO PARA SU CORRECTA EJECUCION.","ML ","117.8500",0,"CERO PESOS 00/100 M.N.",0,394827]
["33B.07(393)","PINTURA                                           ",null,null,null,null,{"$f":"TEXT(SUM(G262:G263), \"$ #,##0.00 ;\")","v":"$ 0.00 "}]
[393022,"PINTURA VINIL-ACRÍLICA A BASE DE AGUA ACABADO SEMIMATE  LAVABLE, PARA INTERIORES Y EXTERIORES QUE NO DESPRENDA VAPORES TÓXICOS NI OLORES DESAGRADABLES, CON LAS SIGUIENTES CARACTERÍSTICAS ( SÓLIDOS POR PESO 46-52%, SÓLIDOS POR VOLUMEN 30-36%, VISCOSIDAD DE 100-130 UK A 25°C, DENSIDAD > O = 1.2 TON/M3., LAVABILIDAD > O = 4,000 CICLOS, TIEMPO DE SECADO AL TACTO, 30-40 MIN., TIEMPO DE SECADO DURO < O = 8 HRS., CICLO DE CURADO DE 7 DIAS, PH 6-8, RENDIMIENTO EN SUP. LISA 8-10 M2/LT., FINEZA DE MOLIDO (HEGMAN) 3-7 UH.)  EN MUROS APLANADOS DE MEZCLA APALILLADO O PULIDO, TRABAJO TERMINADO, A DOS MANOS, INCLUYE: MATERIALES MENORES Y DE CONSUMO, ANDAMIOS, PREPARACION DE LA SUPERFICIE, SELLADO DE LA SUPERFICIE, HERRAMIENTAS, LIMPIEZA, MANO DE OBRA Y  ACARREOS DE MATERIALES AL SITIO DE SU UTILIZACIÓN.","M2 ","609.0000",0,"CERO PESOS 00/100 M.N.",0,394832]
[393325,"PINTURA DE ESMALTE ALQUIDALICO ANTICORROSIVO, ACABADO BRILLANTE, PARA INTERIORES Y EXTERIORES QUE NO DESPRENDA VAPORES TÓXICOS NI OLORES DESAGRADABLES, CON LAS SIGUIENTES CARACTERÍSTICAS ( SÓLIDOS POR PESO 49-60%, SÓLIDOS POR VOLUMEN 40-46%, VISCOSIDAD DE 110-160 UK A 25°C, DENSIDAD 0.9-1.2 TON/M3., BRILLO A 60°C, 90%, TIEMPO DE SECADO AL TACTO, < O = 6 HRS., TIEMPO DE SECADO DURO < O = 24 HRS., ADHERENCIA 100%, DILUCIÓN MÁXIMA (AGUARRÁS, THINER), 15 %,  EN BARANDAL METALICO, EN COLOR DE ACUERDO A INDICADO POR SUPERVISIÓN MEDIDO POR UN SOLO LADO, TRABAJO TERMINADO, A DOS MANOS, INCLUYE: MATERIALES MENORES Y DE CONSUMO, PREPARACION DE LA SUPERFICIE, ANDAMIOS, HERRAMIENTAS, LIMPIEZA, MANO DE OBRA Y  EQUIPO DE SEGURIDAD. CUALQUIER ALTURA..","M2 ","274.6500",0,"CERO PESOS 00/100 M.N.",0,394839]
["33B.08(410)","CANCELERIA, HERRERIA, ALUMINIO, VIDRIOS Y CHAPAS  ",null,null,null,null,{"$f":"TEXT(SUM(G265:G266), \"$ #,##0.00 ;\")","v":"$ 0.00 "}]
[192352,"SUMINISTRO Y COLOCACION DE PLACA DE ACERO A-36 DE 4\" X 4\" X 1/4\" PARA FIJACION DE PASAMANOS O BARANDAL A MURO, ESTRUCTURA Y/O CIMENTACION, INCLUYE: MATERIALES, ANCLAS DE ANGULO, CORTES, FIJACION, SOLDADURA, HERRAMIENTAS Y MANO DE OBRA.\n","PZA","236.0000",0,"CERO PESOS 00/100 M.N.",0,394848]
[412006,"SUMINISTRO, FABRICACION Y COLOCACION DE HERRERIA TUBULAR Y/O ESTRUCTURAL PARA BARANDAL O PASAMANOS,  INCLUYE: SOLDADURA, CORTES, AJUSTES, MATERIALES MENORES, DESCALIBRES, DESPERDICIOS, BISAGRAS, FONDO ANTICORROSIVO, FLETES, HERRAMIENTAS, MANO DE OBRA, Y ACARREO DE MATERIALES AL SITIO DE SU UTLIZACION.","KG ","3,310.3000",0,"CERO PESOS 00/100 M.N.",0,394850]
[69,"RAMPAS",null,null,null,null,{"$f":"TEXT(SUM(G268 + G274 + G281 + G283 + G285 + G287 + G289), \"$ #,##0.00 ;\")","v":"$ 0.00 "}]
["69.01(150)","TRABAJOS PRELIMINARES                             ",null,null,null,null,{"$f":"TEXT(SUM(G269:G273), \"$ #,##0.00 ;\")","v":"$ 0.00 "}]
[150020,"LIMPIEZA DE TERRENO RETIRANDO BASURA Y DESHIERBE FUERA DE LA OBRA. INCLUYE: HERRAMIENTAS, MANO DE OBRA, RECOLECCION, JUNTA Y RETIRO. (PROYECCION DE CUBIERTA).","M2 ","50.5000",0,"CERO PESOS 00/100 M.N.",0,394719]
[150120,"TRAZO Y NIVELACION DE EXTERIORES ESTABLECIENDO REFERENCIAS DEFINITIVAS, CON TRANSITO Y NIVEL (EQUIPO TOPOGRAFICO), INCLUYE: PERSONAL TECNICO CALIFICADO, ESTACAS, MOJONERAS, LOCALIZACION DE EJES Y/O ENTRE EJES, BANCOS DE NIVEL, MATERIALES PARA SEÑALAMIENTO, EQUIPO, HERRAMIENTA Y MANO DE OBRA.","M2 ","50.5000",0,"CERO PESOS 00/100 M.N.",0,394723]
[150210,"DESPALME DE TERRENO NATURAL POR CUALQUIER MEDIO, CON ESPESOR PROMEDIO DE 20 CM. INCLUYE: CARGA Y ACARREO DEL PRODUCTO FUERA DE LA OBRA, MANO DE OBRA, HERRAMIENTA Y EQUIPO. (PROYECCION DE CUBIERTA).","M2 ","50.5000",0,"CERO PESOS 00/100 M.N.",0,394726]
[152404,"EXCAVACION A CIELO ABIERTO EN CAJON POR CUALQUIER MEDIO, MATERIAL TIPO \"B\", DE 0 A 2.00 M. DE PROFUNDIDAD, EN SECO, INCLUYE: AFINE DE TALUDES Y FONDO, TRAPALEOS,  MOVIMIENTOS Y ACARREOS DENTRO DE LA OBRA, HERRAMIENTAS Y MANO DE OBRA, MEDIDO EN BANCO.","M3 ","7.7500",0,"CERO PESOS 00/100 M.N.",0,394734]
[156002,"CARGA POR CUALQUIER MEDIO Y ACARREO EN CAMION DE MATERIAL DE DESPERDICIO PRODUCTO DE LAS EXCAVACIONES FUERA DE LA OBRA, A LUGAR PERMITIDO POR LAS AUTORIDADES CORRESPONDIENTES, MEDIDO EN BANCO. INCLUYE CARGA,  ACARREO Y DESCARGA A TIRO LIBRE, HERRAMIENTA, EQUIPO, MATERIALES DE CONSUMO Y MANO DE OBRA.","M3 ","7.7500",0,"CERO PESOS 00/100 M.N.",0,394739]
["69.02(160)","CIMENTACION                                       ",null,null,null,null,{"$f":"TEXT(SUM(G275:G280), \"$ #,##0.00 ;\")","v":"$ 0.00 "}]
[162002,"CIMIENTO DE PIEDRA BRAZA ACOMODADA PIEDRA POR PIEDRA, ASENTADA CON MORTERO CEMENTO-ARENA  EN PROPORCION 1:3. INCLUYE: MATERIALES, DESPERDICIOS, HERRAMIENTAS, LIMPIEZA, MANO DE OBRA Y ACARREO DE MATERIALES AL SITIO DE SU UTILIZACION.","M3 ","10.8000",0,"CERO PESOS 00/100 M.N.",0,394747]
[162302,"RODAPIE DE PIEDRA BRAZA, ACABADO APARENTE UNA CARA, ASENTADA CON MORTERO CEMENTO-ARENA 1:3. INCLUYE: MATERIALES, HERRAMIENTAS, PLOMEO,   LIMPIEZA, MANO DE OBRA Y ACARREO DE MATERIALES AL SITIO DE SU UTILIZACION.","M3 ","6.7000",0,"CERO PESOS 00/100 M.N.",0,394751]
[162404,"NIVELACION DE MURO DE MAMPOSTERIA CON RAJUELA DE PIEDRA BRAZA JUNTEADA CON MORTERO CEM-ARE 1:3. DE 0.10 M. DE ESPESOR X 0.40 M. DE ANCHO PROMEDIO. INCLUYE: NIVELACION, TRAZO, MANO DE OBRA Y HERRAMIENTA. (NO INCLUYE MATERIALES)","ML ","67.4000",0,"CERO PESOS 00/100 M.N.",0,394755]
[180041,"AFINE Y CONFORMACION DE TERRENO NATURAL Y/O EN AREA DE CORTES, CON UN ESPESOR DE 15 CMS.,  AL 95% PROCTOR MEDIDO COMPACTO, REALIZADO EN FORMA MECANICA CON RODILLO VIBRATORIO, INCLUYE:SUMINISTRO DE AGUA PARA LOGRAR HUMEDAD OPTIMA, EQUIPO MECANICO, PRUEBAS DE COMPACTACION, AFINE, NIVELACION, HERRAMIENTAS Y MANO DE OBRA.","M2 ","50.5000",0,"CERO PESOS 00/100 M.N.",0,394770]
[180246,"RELLENO COMPACTADO POR CUALQUIER MEDIO CON SUELO-CEMENTO (CON MATERIAL DE BANCO) EN PROPORCION DE 60 KGS. DE CEMENTO GRIS POR M3., A CUALQUIER PROFUNDIDAD, COMPACTADO AL 95% PROCTOR, EN CAPAS DE 15 CM. INCLUYE: AGUA PARA LOGRAR HUMEDAD OPTIMA, ACARREO HASTA EL SITIO DE SU COLOCACION, PRUEBAS DE COMPACTACION, HERRAMIENTA Y MANO DE OBRA.","M3 ","17.8500",0,"CERO PESOS 00/100 M.N.",0,394781]
[192360,"SUMINISTRO E INSTALACION DE CASQUILLO A BASE DE PTR DE 2 1/2\" X 2 1/2\" BLANCO,  Y 10 CM DE LONGITUD APROXIMADA, PARA RICIBIR DE BARANDAL METALICO,  AHOGADO EN LOSA DE CONCRETO, INCLUYE: TRAZO, CORTES, AJUSTES, NIVELACION, MATERIALES, HERRAMIENTAS,  LIMPIEZA Y MANO DE OBRA.","PZA","64.0000",0,"CERO PESOS 00/100 M.N.",0,394786]
["69.03(310)","MUROS, CADENAS, CASTILLOS Y REPIZONES.            ",null,null,null,null,{"$f":"TEXT(SUM(G282:G282), \"$ #,##0.00 ;\")","v":"$ 0.00 "}]
[310512,"DALA DE CONCRETO F'C=150 KG/CM2, T.M.A.=3/4\", CON SECCION DE 10 X 12 CMS., SIN ARMAR, INCLUYE: COLADO, CURADO, VIBRADO, CIMBRA APARENTE, DESCIMBRA, DESPERDICIOS, MANO DE OBRA, HERRAMIENTA, LIMPIEZA DEL AREA DE TRABAJO Y ACARREO DE MATERIALES AL SITIO DE SU UTILIZACION, A CUALQUIER ALTURA.","ML ","67.4000",0,"CERO PESOS 00/100 M.N.",0,394802]
["69.04(372)","PISOS                                             ",null,null,null,null,{"$f":"TEXT(SUM(G284:G284), \"$ #,##0.00 ;\")","v":"$ 0.00 "}]
[375242,"FORJADO DE RAMPA PARA MINUSVALIDOS FABRICADO A BASE DE CONCRETO F'C=150 KG/CM2. T.M.A. 3/4\" HECHO EN OBRA DE 0.10 MT. DE ESPESOR  PROMEDIO DANDO PENDIENTE DEL 6%. INCLUYE: HERRAMIENTAS, ACABADO RAYADO,  CIMBRA DESCIMBRA, MANO DE OBRA, REMATE EN PISO Y BANQUETA, ACARREO DEL  MATERIALES AL SITIO DE SU UTILIZACION.","M2 ","50.5500",0,"CERO PESOS 00/100 M.N.",0,394825]
["69.05(393)","PINTURA                                           ",null,null,null,null,{"$f":"TEXT(SUM(G286:G286), \"$ #,##0.00 ;\")","v":"$ 0.00 "}]
[393324,"PINTURA DE ESMALTE ALQUIDALICO ANTICORROSIVO, ACABADO BRILLANTE, PARA INTERIORES Y EXTERIORES QUE NO DESPRENDA VAPORES TÓXICOS NI OLORES DESAGRADABLES, CON LAS SIGUIENTES CARACTERÍSTICAS ( SÓLIDOS POR PESO 49-60%, SÓLIDOS POR VOLUMEN 40-46%, VISCOSIDAD DE 110-160 UK A 25°C, DENSIDAD 0.9-1.2 TON/M3., BRILLO A 60°C, 90%, TIEMPO DE SECADO AL TACTO, < O = 6 HRS., TIEMPO DE SECADO DURO < O = 24 HRS., ADHERENCIA 100%, RENDIMIENTO EN SUP. LISA 8-10 M2/LT., DILUCIÓN MÁXIMA (AGUARRÁS, THINER), 15 %,   EN TUBO DE FIERRO NEGRO DE 2\" DE DIÁMETRO, (POSTES, PASAMANOS, BARANDALES, ESTRUCTURAS, REDES, ETC.), TRABAJO TERMINADO, A DOS MANOS, INCLUYE: MATERIALES MENORES Y DE CONSUMO, PREPARACION DE LA SUPERFICIE, ANDAMIOS, HERRAMIENTAS, LIMPIEZA, MANO DE OBRA Y  EQUIPO DE SEGURIDAD. CUALQUIER ALTURA.","ML ","283.0500",0,"CERO PESOS 00/100 M.N.",0,394837]
["69.06(396)","LIMPIEZA                                          ",null,null,null,null,{"$f":"TEXT(SUM(G288:G288), \"$ #,##0.00 ;\")","v":"$ 0.00 "}]
[396012,"LIMPIEZA DE PISOS DE CONCRETO CON AGUA Y ACIDO MURIATICO AL 10%.","M2 ","50.5000",0,"CERO PESOS 00/100 M.N.",0,394846]
["69.07(410)","CANCELERIA, HERRERIA, ALUMINIO, VIDRIOS Y CHAPAS  ",null,null,null,null,{"$f":"TEXT(SUM(G290:G290), \"$ #,##0.00 ;\")","v":"$ 0.00 "}]
[412006,"SUMINISTRO, FABRICACION Y COLOCACION DE HERRERIA TUBULAR Y/O ESTRUCTURAL PARA BARANDAL O PASAMANOS,  INCLUYE: SOLDADURA, CORTES, AJUSTES, MATERIALES MENORES, DESCALIBRES, DESPERDICIOS, BISAGRAS, FONDO ANTICORROSIVO, FLETES, HERRAMIENTAS, MANO DE OBRA, Y ACARREO DE MATERIALES AL SITIO DE SU UTLIZACION.","KG ","666.0000",0,"CERO PESOS 00/100 M.N.",0,394851]
[82,"CUBIERTA PARA PATIO CIVICO",null,null,null,null,{"$f":"TEXT(SUM(G292 + G296 + G308 + G313 + G315 + G317 + G321), \"$ #,##0.00 ;\")","v":"$ 0.00 "}]
["82.01(150)","TRABAJOS PRELIMINARES                             ",null,null,null,null,{"$f":"TEXT(SUM(G293:G295), \"$ #,##0.00 ;\")","v":"$ 0.00 "}]
[150120,"TRAZO Y NIVELACION DE EXTERIORES ESTABLECIENDO REFERENCIAS DEFINITIVAS, CON TRANSITO Y NIVEL (EQUIPO TOPOGRAFICO), INCLUYE: PERSONAL TECNICO CALIFICADO, ESTACAS, MOJONERAS, LOCALIZACION DE EJES Y/O ENTRE EJES, BANCOS DE NIVEL, MATERIALES PARA SEÑALAMIENTO, EQUIPO, HERRAMIENTA Y MANO DE OBRA.","M2 ","704.0000",0,"CERO PESOS 00/100 M.N.",0,394724]
[152204,"EXCAVACION EN CEPAS POR CUALQUIER MEDIO, MATERIAL TIPO \"B\", DE 0 A 2.00 M. DE PROFUNDIDAD, EN SECO, INCLUYE: AFINE DE TALUDES Y FONDO, TRASPALEOS,  MOVIMIENTOS Y ACARREOS DENTRO DE LA OBRA, HERRAMIENTAS Y MANO DE OBRA, MEDIDO EN BANCO.","M3 ","39.1500",0,"CERO PESOS 00/100 M.N.",0,394731]
[156002,"CARGA POR CUALQUIER MEDIO Y ACARREO EN CAMION DE MATERIAL DE DESPERDICIO PRODUCTO DE LAS EXCAVACIONES FUERA DE LA OBRA, A LUGAR PERMITIDO POR LAS AUTORIDADES CORRESPONDIENTES, MEDIDO EN BANCO. INCLUYE CARGA,  ACARREO Y DESCARGA A TIRO LIBRE, HERRAMIENTA, EQUIPO, MATERIALES DE CONSUMO Y MANO DE OBRA.","M3 ","39.1500",0,"CERO PESOS 00/100 M.N.",0,394740]
["82.02(160)","CIMENTACION                                       ",null,null,null,null,{"$f":"TEXT(SUM(G297:G307), \"$ #,##0.00 ;\")","v":"$ 0.00 "}]
[160092,"PLANTILLA DE RELLENO DE EMBECO NO. 636, DE 5.0 CM DE ESPESOR PROMEDIO, PARA RECIBIR PLACA BASE DE COLUMNAS DE ESTRUCTURA METALICAS, INCLUYE: PREPARACION, CIMBRA, DESCIMBRADO, MATERIALES, DESPERDICIOS, HERRAMIENTAS, LIMPIEZAS Y MANO DE OBRA.","M2 ","2.4000",0,"CERO PESOS 00/100 M.N.",0,394741]
[160222,"PLANTILLA DE CONCRETO F'C=100 KG/CM2, TMA=3/4\", DE 5.00 CM DE ESPESOR PROMEDIO. INCLUYE: MATERIALES, HERRAMIENTAS, AFINE, NIVELACION, LIMPIEZA, MANO DE OBRA Y ACARREO DE MATERIALES AL SITIO DE SU UTILIZACION.","M2 ","27.0000",0,"CERO PESOS 00/100 M.N.",0,394743]
[170012,"CIMBRA  ACABADO COMUN, EN CIMENTACION, INCLUYE: DESPERDICIO, HABILITADO, CIMBRADO Y DESCIMBRA, NIVELACION, PLOMEO MATERIAL, MANO DE OBRA , LIMPIEZA, HERRAMIENTA, ACARREO DEL MATRIAL DENTRO Y FUERA DE LA OBRA.","M2 ","34.8000",0,"CERO PESOS 00/100 M.N.",0,394758]
[173003,"SUMINISTRO, HABILITADO, ARMADO Y COLOCACION DE ACERO DE REFUERZO FY=4,200 KG/CM2 (G.E.), DE 3/8\" ( #3 ), EN CIMENTACION, INCLUYE: MATERIALES, HABILITADO,  DOBLECES,  SILLETAS, ALAMBRE, GANCHOS, ESCUADRAS, TRASLAPES, DESPERDICIOS HERRAMIENTAS, MANO DE OBRA Y ACARREO DE MATERIALES AL SITIO DE SU COLOCACION.","KG ","294.0000",0,"CERO PESOS 00/100 M.N.",0,394760]
[173004,"SUMINISTRO, HABILITADO, ARMADO Y COLOCACION DE ACERO DE REFUERZO FY=4,200 KG/CM2 (G.E.), DE 1/2\" ( #4 ), EN CIMENTACION, INCLUYE: MATERIALES, HABILITADO,  DOBLECES,  SILLETAS, ALAMBRE, GANCHOS, ESCUADRAS, TRASLAPES, DESPERDICIOS HERRAMIENTAS, MANO DE OBRA Y ACARREO DE MATERIALES AL SITIO DE SU COLOCACION.","KG ","138.0000",0,"CERO PESOS 00/100 M.N.",0,394762]
[173008,"SUMINISTRO, HABILITADO, ARMADO Y COLOCACION DE ACERO DE REFUERZO FY=4,200 KG/CM2 (G.E.), DE 1\" (#8 ), EN CIMENTACION, INCLUYE: MATERIALES, HABILITADO,  DOBLECES,  SILLETAS, ALAMBRE, GANCHOS, ESCUADERAS, TRASLAPES, DESPERDICIOS HERRAMIENTAS, MANO DE OBRA Y ACARREO DE MATERIALES AL SITIO DE SU COLOCACION.","KG ","618.0000",0,"CERO PESOS 00/100 M.N.",0,394763]
[176008,"SUMINISTRO Y COLOCACION DE CONCRETO HECHO EN OBRA F'C=250 KG/CM2, TMA= 3/4\", R.N. EN CIMENTACION. INCLUYE: TENDIDO, RASTREADO, VIBRADO, NIVELACION, HERRAMIENTAS, LIMPIEZA, PRUEBAS,  CURADO CON CURACRETO ROJO,  DESPERDICIO Y MANO DE OBRA.","M3 ","7.2000",0,"CERO PESOS 00/100 M.N.",0,394764]
[180041,"AFINE Y CONFORMACION DE TERRENO NATURAL Y/O EN AREA DE CORTES, CON UN ESPESOR DE 15 CMS.,  AL 95% PROCTOR MEDIDO COMPACTO, REALIZADO EN FORMA MECANICA CON RODILLO VIBRATORIO, INCLUYE:SUMINISTRO DE AGUA PARA LOGRAR HUMEDAD OPTIMA, EQUIPO MECANICO, PRUEBAS DE COMPACTACION, AFINE, NIVELACION, HERRAMIENTAS Y MANO DE OBRA.","M2 ","27.0000",0,"CERO PESOS 00/100 M.N.",0,394771]
[180102,"RELLENO COMPACTADO AL 90 % PROCTOR, CON MATERIAL DE BANCO, EN CAPAS DE 20 CM DE ESPESOR, AGREGANDO AGUA PARA LOGRAR SU HUMEDAD OPTIMA, AL 90%. POR CUALQUIER MEDIO, INCLUYE: SUMINISTRO DE AGUA PARA LOGRAR HUMEDAD OPTIMA, TENDIDO, TRASPALEOS,  DESPERDICIOS, EQUIPO, PRUEBAS DE COMPACTACION, AFINE, NIVELACION, HERRAMIENTAS, MANO DE OBRA Y  ACARREO HASTA EL SITIO DE SU COLOCACION.  (VOLUMEN MEDIDO COMPACTADO).","M3 ","25.2000",0,"CERO PESOS 00/100 M.N.",0,394776]
[180246,"RELLENO COMPACTADO POR CUALQUIER MEDIO CON SUELO-CEMENTO (CON MATERIAL DE BANCO) EN PROPORCION DE 60 KGS. DE CEMENTO GRIS POR M3., A CUALQUIER PROFUNDIDAD, COMPACTADO AL 95% PROCTOR, EN CAPAS DE 15 CM. INCLUYE: AGUA PARA LOGRAR HUMEDAD OPTIMA, ACARREO HASTA EL SITIO DE SU COLOCACION, PRUEBAS DE COMPACTACION, HERRAMIENTA Y MANO DE OBRA.","M3 ","6.7500",0,"CERO PESOS 00/100 M.N.",0,394782]
[192324,"FABRICACION, SUMINISTRO Y COLOCACION DE JUEGO DE ANCLAS EN \"L\" DE REDONDO LISO (COLD ROLLED) CON 4 VARILLAS DE 1\" (#8), DE 70 CM DE DESARROLLO TOTAL (CADA ANCLA), CON 10 CM. DE ROSCA EN EXTREMO SUPERIOR, UNIDAS CON 2 ANILLETAS DE DE VARILLA CORRUGADA DE 3/8\" Y ALINEADAS A LA PLACA EN LA BASE DE COLUMNA. INCLUYE: CORTES, ROSCADO, DESPERDICIOS, ALINEACION, NIVELACION, PLOMEO, SOLDADURA, DOBLECES, TUERCAS, RONDANAS,  MANO DE OBRA, EQUIPO, HERRAMIENTA Y ACARREOS.","JGO","12.0000",0,"CERO PESOS 00/100 M.N.",0,394785]
["82.03(200)","ESTRUCTURA                                        ",null,null,null,null,{"$f":"TEXT(SUM(G309:G312), \"$ #,##0.00 ;\")","v":"$ 0.00 "}]
[280090,"SUMINISTRO, HABILITADO Y MONTAJE DE ESTRUCTURA METALICA DE ACERO ASTMA-36 F'Y=2530 KG/CM2, SOLDADOS Y/O ATORNILLADOS, (PERFILES IPR. IPS, CPS, REDONDOS SOLIDO, SOLERAS Y PLACAS, ETC, DIFERENTES DIMENSIONES Y CALIBRES,) PARA COLUMNAS, ARMADURAS, TRABES Y VIGAS, INCLUYE: MATERIALES MENORES Y DE CONSUMO, TRAZO, CORTES, AJUSTES, DESPERDICIOS, ENDEREZADO, BISELADO, DESCALIBRES, BARRENOS, TORQUES, SOLDADURA, UNA PRUEBA RADIOGRAFICA Y/O LIQUIDOS PENETRANTES POR CADA 500 KG. DE ACERO, FLETES, PINTURA ANTICORROSIVA, MANO DE OBRA CALIFICADA, HERRAMIENTA, EQUIPO, FLETES, ELEVACIONES, ACARREOS DE MATERIALES AL SITIO DE SU COLOCACION, ACUALQUIER ALTURA.","KG ","678.0000",0,"CERO PESOS 00/100 M.N.",0,394794]
[280095,"SUMINISTRO, HABILITADO Y MONTAJE DE ESTRUCTURA METALICA DE ACERO, ASTM A-500 GR-B, F'Y=3200 KG/CM2, SOLDADOS Y/O ATORNILLADOS, (OR, OC, TUBOS REDONDOS, PTR, ETC, DIFERENTES DIMENSIONES Y CALIBRES,) PARA COLUMNAS, ARMADURAS, TRABES Y VIGAS, INCLUYE: MATERIALES MENORES Y DE CONSUMO, TRAZO, CORTES, AJUSTES, DESPERDICIOS, ENDEREZADO, BISELADO, DESCALIBRES, BARRENOS, TORQUES, SOLDADURA, UNA PRUEBA RADIOGRAFICA Y/O LIQUIDOS PENETRANTES POR CADA 500 KG. DE ACERO, FLETES, PINTURA ANTICORROSIVA, MANO DE OBRA CALIFICADA, HERRAMIENTA, ANDAMIOS, EQUIPO, FLETES, ELEVACIONES, ACARREOS DE MATERIALES AL SITIO DE SU COLOCACION, A CUALQUIER ALTURA.","KG ","4,065.0000",0,"CERO PESOS 00/100 M.N.",0,394795]
[280096,"SUMINISTRO, HABILITADO, ROLADO Y MONTAJE DE ESTRUCTURA METALICA DE ACERO, ASTM A-500 GR-B, F'Y=3200 KG/CM2, SOLDADOS Y/O ATORNILLADOS, (OR, OC, TUBOS REDONDOS, PTR, ETC, DIFERENTES DIMENSIONES Y CALIBRES,) PARA COLUMNAS, ARMADURAS, TRABES Y VIGAS, INCLUYE: MATERIALES MENORES Y DE CONSUMO, TRAZO, CORTES, AJUSTES, DESPERDICIOS, ENDEREZADO, ROLADO, BISELADO, DESCALIBRES, BARRENOS, TORQUES, SOLDADURA, UNA PRUEBA RADIOGRAFICA Y/O LIQUIDOS PENETRANTES POR CADA 500 KG. DE ACERO, FLETES, PINTURA ANTICORROSIVA, MANO DE OBRA CALIFICADA, HERRAMIENTA, ANDAMIOS, EQUIPO, FLETES, ELEVACIONES, ACARREOS DE MATERIALES AL SITIO DE SU COLOCACION, A CUALQUIER ALTURA.","KG ","4,405.0000",0,"CERO PESOS 00/100 M.N.",0,394796]
[280202,"SUMINISTRO, HABILITADO  Y COLOCACION TENSORES, CRUCETAS Y/O TIRANTES DE REDONDO LISO (COLD ROLLED) DE ACERO DE BAJO CARBÓN ASTM A-108 DE ½\" A 1\" DE DIAMETRO, INCLUYE: TRAZO, CORTES, AJUSTES, BARRENOS, DESPERDICOS, DESCALIBRES, SOLDADURA DE PENETRACION, PRUEBAS RADIOGRAFICAS Y/O LIQUIDOS PENETRANTES, ROSCADO, TUERCAS, RONDANAS, TENSADO, TORQUES, FLETES, HERRAMIENTAS, ANDAMIOS, EQUIPO, PINTURA ANTICORROSIVA, MANO DE OBRA Y ACARREOS AL SITIO DE SU COLOCACION. A CUALQUIER ALTURA.","KG ","492.0000",0,"CERO PESOS 00/100 M.N.",0,394797]
["82.04(319)","ENTREPISOS, CUBIERTA Y ACABADOS DE AZOTEA         ",null,null,null,null,{"$f":"TEXT(SUM(G314:G314), \"$ #,##0.00 ;\")","v":"$ 0.00 "}]
[418240,"SUMINISTRO E INSTALACION DE MEMBRANA ARQUITECTONICA TRASLUCIDA O BLACK OUT ELABORADA CON HILO POLIESTER DE ALTA TENACIDAD (HT) 1100 DTEX TEJIDO TIPO L CON TRATAMIENTO DE FLUORPOLIMERO PVDF, PESO 850G/M2 CON RESISTENCIA A LA TENSION DE 2800 A 3000 N/5CM, RESISTENCIA AL DESGARRO O RASGADO DE 300 N EN URDIMBRE Y TRAMA, ADHESIÓN DE 100 A 120 N/5CM, AUTO-EXTINGUIBLE O TRATAMIENTO AL FUEGO, TRANSMITANCIA UV < 0.1%, TRATAMIENTO ANTI-HONGOS Y GARANTIA DE 10 AÑOS COMO MINIMO, UNIDAD CON TERMO SELLADO O SOLDADURA DE RADIO FRECUENCIA, INCLUYE: TRAZO, CORTES, CONFECCION, HERRAJES, TENSORES, MATERIALES MENORES Y DE CONSUMO, DESPERDICIOS, ELEVACION, HERRAMIENTAS, EQUIPO, GARANTIA POR ESCRITO DE 10 AÑOS, ELEMENTOS DE FIJACION, SELLADO, LIMPIEZA, MANO DE OBRA ESPECIALIZADA, FLETES Y ACARREOS.","M2 ","691.4500",0,"CERO PESOS 00/100 M.N.",0,394809]
["82.05(372)","PISOS                                             ",null,null,null,null,{"$f":"TEXT(SUM(G316:G316), \"$ #,##0.00 ;\")","v":"$ 0.00 "}]
[373022,"PISO DE CONCRETO F'C=150 KG/CM², T.M.A. 3/4\", DE 0.10 M. DE ESPESOR, COLADO EN CUADROS NO MAYORES DE 3.00 ML POR LADO, INCLUYE: TRAZO, NIVELACION, AFINE Y COMPACTACION DEL TERRENO, AGUA, DESPERDICIOS, ACARREOS, REGLEADO, ACABADO INTEGRAL RAYADO CON BROCHA DE PELO (SIN UTILIZACION DE PASTA), CIMBRA EN FRONTERAS, DESCIMBRA, COLADO, CURADO, REMATES, ESCALONADO, MUESTREADO, JUNTAS FRIAS CON VOLTEADOR, HERRAMIENTAS Y MANO DE OBRA.","M2 ","27.0000",0,"CERO PESOS 00/100 M.N.",0,394819]
["82.06(393)","PINTURA                                           ",null,null,null,null,{"$f":"TEXT(SUM(G318:G320), \"$ #,##0.00 ;\")","v":"$ 0.00 "}]
[393318,"PINTURA DE ESMALTE ALQUIDALICO ANTICORROSIVO, ACABADO BRILLANTE, PARA INTERIORES Y EXTERIORES QUE NO DESPRENDA VAPORES TÓXICOS NI OLORES DESAGRADABLES, CON LAS SIGUIENTES CARACTERÍSTICAS ( SÓLIDOS POR PESO 49-60%, SÓLIDOS POR VOLUMEN 40-46%, VISCOSIDAD DE 110-160 UK A 25°C, DENSIDAD 0.9-1.2 TON/M3., BRILLO A 60°C, 90%, TIEMPO DE SECADO AL TACTO, < O = 6 HRS., TIEMPO DE SECADO DURO < O = 24 HRS., ADHERENCIA 100%, RENDIMIENTO EN SUP. LISA 8-10 M2/LT., DILUCIÓN MÁXIMA (AGUARRÁS, THINER), 15 %,  DE TUBO DE FIERRO NEGRO DE 4\" A 6\" DE DIÁMETRO, (POSTES, PASAMANOS, BARANDALES, ESTRUCTURAS, REDES, ETC.), TRABAJO TERMINADO, A DOS MANOS, INCLUYE: MATERIALES MENORES Y DE CONSUMO, PREPARACION DE LA SUPERFICIE, ANDAMIOS, HERRAMIENTAS, LIMPIEZA, MANO DE OBRA Y  EQUIPO DE SEGURIDAD. CUALQUIER ALTURA.","ML ","363.7000",0,"CERO PESOS 00/100 M.N.",0,394835]
[393319,"PINTURA DE ESMALTE ALQUIDALICO ANTICORROSIVO, ACABADO BRILLANTE, PARA INTERIORES Y EXTERIORES QUE NO DESPRENDA VAPORES TÓXICOS NI OLORES DESAGRADABLES, CON LAS SIGUIENTES CARACTERÍSTICAS ( SÓLIDOS POR PESO 49-60%, SÓLIDOS POR VOLUMEN 40-46%, VISCOSIDAD DE 110-160 UK A 25°C, DENSIDAD 0.9-1.2 TON/M3., BRILLO A 60°C, 90%, TIEMPO DE SECADO AL TACTO, < O = 6 HRS., TIEMPO DE SECADO DURO < O = 24 HRS., ADHERENCIA 100%, RENDIMIENTO EN SUP. LISA 8-10 M2/LT., DILUCIÓN MÁXIMA (AGUARRÁS, THINER), 15 %,   EN TUBO DE FIERRO NEGRO DE 3/4\" A 1 1/2\" DE DIÁMETRO, (POSTES, PASAMANOS, BARANDALES, REDES, ETC.),  TRABAJO TERMINADO, A DOS MANOS, INCLUYE: MATERIALES MENORES Y DE CONSUMO, PREPARACION DE LA SUPERFICIE, ANDAMIOS, HERRAMIENTAS, LIMPIEZA, MANO DE OBRA Y  EQUIPO DE SEGURIDAD. CUALQUIER ALTURA.","ML ","122.4000",0,"CERO PESOS 00/100 M.N.",0,394836]
[917337,"PINTURA DE ESMALTE ALQUIDALICO ANTICORROSIVO, ACABADO BRILLANTE, PARA INTERIORES Y EXTERIORES QUE NO DESPRENDA VAPORES TÓXICOS NI OLORES DESAGRADABLES, CON LAS SIGUIENTES CARACTERÍSTICAS ( SÓLIDOS POR PESO 49-60%, SÓLIDOS POR VOLUMEN 40-46%, VISCOSIDAD DE 110-160 UK A 25°C, DENSIDAD 0.9-1.2 TON/M3., BRILLO A 60°C, 90%, TIEMPO DE SECADO AL TACTO, < O = 6 HRS., TIEMPO DE SECADO DURO < O = 24 HRS., ADHERENCIA 100%, RENDIMIENTO EN SUP. LISA 8-10 M2/LT., DILUCIÓN MÁXIMA (AGUARRÁS, THINER), 15 %,  DE TUBO DE FIERRO NEGRO DE 8\" A 10\" DE DIÁMETRO, (POSTES, PASAMANOS, BARANDALES, ESTRUCTURAS, REDES, ETC.), TRABAJO TERMINADO, A DOS MANOS, INCLUYE: MATERIALES MENORES Y DE CONSUMO, PREPARACION DE LA SUPERFICIE, ANDAMIOS, HERRAMIENTAS, LIMPIEZA, MANO DE OBRA Y  EQUIPO DE SEGURIDAD. CUALQUIER ALTURA.","ML ","61.2000",0,"CERO PESOS 00/100 M.N.",0,394843]
["82.07(396)","LIMPIEZA                                          ",null,null,null,null,{"$f":"TEXT(SUM(G322:G322), \"$ #,##0.00 ;\")","v":"$ 0.00 "}]
[396428,"LIMPIEZA GENERAL DE LA OBRA, INCLUYE: ACARREO DEL MATERIAL PRODUCTO DE LA LIMPIEZA , FUERA DE LA OBRA.","M2 ","704.0000",0,"CERO PESOS 00/100 M.N.",0,394847]
["01","PLAZA Y ANDADORES",null,null,null,null,{"$f":"TEXT((G324), \"$ #,##0.00 ;\")","v":"$ 0.00 "}]
["01.01(372)","PISOS                                             ",null,null,null,null,{"$f":"TEXT(SUM(G325:G325), \"$ #,##0.00 ;\")","v":"$ 0.00 "}]
[375339,"FORJADO DE ESCALON DE 30 CM. DE HUELLA Y 15 CM DE PERALTE CON RODAPIE DE PIEDRA, ASENTADO CON MORTERO CEMENTO-CAL-ARENA 1:3.:12 Y PISO DE CONCRETO F'C=150 KG/CM2 DE 10 CM DE ESPESOR, USAR VOLTEADOR EN LA PARTE SUPERIOR  EN HUELLA, ACABADO PULIDO Y/O APALILLADO, EL PERALTE TAMBIEN SERA FORJADO DE PIEDRA DE LAS MISMAS CARACTERISTICAS,  INCLUYE: LIMPIEZA, TRAZO, EXCAVACIONES, HERRAMIENTAS, MATERIALES, CIMENTACION, NIVELACION, CIMBRA APARENTE, DESCIMBRADO, DESPERDICIOS, COLADO, VIBRADO, CURADO, NARIZ PERIMETRAL, RELLENOS COMPACTADOS, MANO DE OBRA, Y ACARREO DEL MATERIAL AL SITIO DE SU UTILIZACION.","ML ","20.0000",0,"CERO PESOS 00/100 M.N.",0,394826]
[11,"ASTA BANDERA",null,null,null,null,{"$f":"TEXT((G327), \"$ #,##0.00 ;\")","v":"$ 0.00 "}]
["11.01(382)","ELEMENTOS COMPLEMENTARIOS DE ALBAÑILERIA          ",null,null,null,null,{"$f":"TEXT(SUM(G328:G328), \"$ #,##0.00 ;\")","v":"$ 0.00 "}]
[386930,"CONSTRUCCION DE ASTA BANDERA CON MEDIDAS GENERALES DE 3.00 X 1.50 M. A BASE DE MURO DE LADRILLO DE LAMA 7 X 14 X 28 CMS. A SOGA, DE 14 CM DE ESPESOR, ASENTADOS CON MORTERO CEMENTO-ARENA EN PROPORCION 1:3 APLANADO CON MORTERO CEMENTO-CAL-ARENA EN PROPORCION 1:2:6 CON ACABADO RUSTICO, DALAS Y CASTILLOS DE CONCRETO F'C=150 KG/CM2 ARMADOS CON ACERO FY= 4200 KG/CM2, INCLUYE: LIMPIEZA DE TERRENO, TRAZO Y NIVELACION, DESPALME DE TERRENO, EXCAVACION EN CEPAS, EXCAVACION A CIELO ABIERTO, RETIRO DE MATERIAL PRODUCTO DE EXCAVACION, 40 CM. DE CIMIENTO Y RODAPIE DE PIEDRA, NIVELACIONES, RELLENOS COMPACTADOS AL 90% PROCTOR CON MATERIAL DE BANCO, BASES PARA CASTILLOS, DALAS, CASTILLOS, MUROS, ANCLAS PARA ASTA,  ABRAZADERAS, CARRETILLAS,  IMPERMEABILIZACIONES, APLANADOS, BOQUILLAS, FILETES, PISOS DE CONCRETO, FORJADO DE NARIZ, JUNTA CON RAJUELA, PINTURA DE ESMALTE Y VINILICA, LIMPIEZA DE PISOS, ASTA BANDERA DE 6.00 MTS. A BASE DE TUBO DE ACERO CED. 40, MATERIALES MENORES Y DE CONSUMO, DESPERDICIOS, HERRAMIENTAS, LIMPIEZA GENERAL, MANO DE OBRA Y ACARREO DE MATERIALES AL SITIO DE SU UTULIZACION.","PZA","1.0000",0,"CERO PESOS 00/100 M.N.",0,394829]
["08","MURETE DE ACOMETIDA",null,null,null,null,{"$f":"TEXT(SUM(G330 + G332), \"$ #,##0.00 ;\")","v":"$ 0.00 "}]
["08.01(382)","ELEMENTOS COMPLEMENTARIOS DE ALBAÑILERIA          ",null,null,null,null,{"$f":"TEXT(SUM(G331:G331), \"$ #,##0.00 ;\")","v":"$ 0.00 "}]
[905798,"MURETE PARA ACOMETIDA ELECTRICA DE TV. SEC. Y/O ESC. DE EDUCACION ESPECIAL ADOSADO A MURO, DE 1.90 MT DE ALTURA POR 1.25 MTS. DE ANCHO Y 0.60 MT. DE FONDO (MURO POSTERIOR EXISTENTE), A BASE DE MURO DE LAMA DE 7 X 14 X 28 A TEZON EN PARTE INFERIOR Y A SOGA EN EL AREA DESTINADA PARA LA CAJA DE SOQUET DE MEDICION E INTERRUPTORES, DALAS Y CASTILLOS  DE CONCRETO F´C=150 KG/CM2, DALA DE DESPLANTE APARENTE DE 28 X 10 CM. LOSAS Y MUROS DE CONCRETO F´C= 150 KG/CM2., ARMADO , INCLUYE: SUM. Y COLOCACION DE BASE SOQUET (7 X 100) TRIFASICA DE 100 A. MCA. C.H. O SIMILAR EMPOTRADA EN MURETE, EXCAVACION, CIMENTACION DE PIEDRA, BASES PARA CASTILLOS,  APLANADO, PINTURA VINILICA Y ESMALTE, PERFORACIONES, REGISTRO ELECTRICO, TUBERIAS CONDUIT GALV. PG. PARA CONEXION A PREPARACION AEREA DE MUFA YTUBERIA CONDUIT DE PVC. PESADO PARA CONEXION A REGISTRO DE DIST. Y CONEXION A SUBESTACION SUBTERRANEA, SEÑALIZACION DEL MURETE, PUERTAS METALICAS,  MATERIALES, HERRAMIENTAS, LIMPIEZA Y MANO DE OBRA.","PZA","1.0000",0,"CERO PESOS 00/100 M.N.",0,394830]
["08.02(511)","INSTALACION ELECTRICA EN OBRA EXTERIOR            ",null,null,null,null,{"$f":"TEXT(SUM(G333:G333), \"$ #,##0.00 ;\")","v":"$ 0.00 "}]
[558190,"SUMINISTRO Y COLOCACION DE MUFA SECA PARA ACOMETIDA, CON ENTRADA PARA TUBO DE 50 MM. DE DIAMETRO, INCLUYE: MATERIALES MENORES, PRUEBAS Y ACARREO DEL MATERIAL AL SITIO DE SU COLOCACION.","PZA","1.0000",0,"CERO PESOS 00/100 M.N.",0,394881]
[null,"RESUMEN DE PARTIDAS"]
["BAS-CON-05904","CONSTRUCCIÓN DE ESTRUCTURA CON LONARIA, PÓRTICO DE INGRESO, ANDADOR, BARDA PERIMETRAL, REHABILITACIÓN DE CUBIERTAS, CANCHA DE USOS MÚLTIPLES Y OBRA EXTERIOR EN LA TELESECUNDARIA SALVADOR ALVARADO CCT 14DTV0241X, UBICADA EN LA LOCALIDAD SANTA TERESA, MUNICIPIO DE COCULA, JALISCO.",null,null,null,null,{"$f":"G17","v":"$ 0.00 "}]
["EDFS","EDIFICIOS",null,null,null,null,{"$f":"G18","v":"$ 0.00 "}]
["EDFS.01(140)","DEMOLICIONES, DESMONTAJES Y MECANICA DE SUELOS    ",null,null,null,null,{"$f":"G19","v":"$ 0.00 "}]
["EDFS.02(200)","ESTRUCTURA                                        ",null,null,null,null,{"$f":"G34","v":"$ 0.00 "}]
["EDFS.03(319)","ENTREPISOS, CUBIERTA Y ACABADOS DE AZOTEA         ",null,null,null,null,{"$f":"G37","v":"$ 0.00 "}]
["EDFS.04(355)","RECUBRIMIENTOS Y ACABADOS                         ",null,null,null,null,{"$f":"G45","v":"$ 0.00 "}]
["EDFS.05(393)","PINTURA                                           ",null,null,null,null,{"$f":"G49","v":"$ 0.00 "}]
["EDFS.06(410)","CANCELERIA, HERRERIA, ALUMINIO, VIDRIOS Y CHAPAS  ",null,null,null,null,{"$f":"G52","v":"$ 0.00 "}]
["EDFS.07(510)","INSTALACION ELECTRICA EN EDIFICIO                 ",null,null,null,null,{"$f":"G54","v":"$ 0.00 "}]
["EDFS.08(564)","INSTALACION HIDRAULICA, SANITARIA Y GAS EN EDIF.  ",null,null,null,null,{"$f":"G78","v":"$ 0.00 "}]
["EDFS.09(590)","MUEBLES DE BAÑO Y COCINA                          ",null,null,null,null,{"$f":"G84","v":"$ 0.00 "}]
["02","RED ELECTRICA",null,null,null,null,{"$f":"G87","v":"$ 0.00 "}]
["02.01(140)","DEMOLICIONES, DESMONTAJES Y MECANICA DE SUELOS    ",null,null,null,null,{"$f":"G88","v":"$ 0.00 "}]
["02.02(511)","INSTALACION ELECTRICA EN OBRA EXTERIOR            ",null,null,null,null,{"$f":"G92","v":"$ 0.00 "}]
[17,"CANCHA DE USOS MULTIPLES 1",null,null,null,null,{"$f":"G123","v":"$ 0.00 "}]
["17.01(140)","DEMOLICIONES, DESMONTAJES Y MECANICA DE SUELOS    ",null,null,null,null,{"$f":"G124","v":"$ 0.00 "}]
["17.02(150)","TRABAJOS PRELIMINARES                             ",null,null,null,null,{"$f":"G126","v":"$ 0.00 "}]
["17.03(160)","CIMENTACION                                       ",null,null,null,null,{"$f":"G130","v":"$ 0.00 "}]
["17.04(372)","PISOS                                             ",null,null,null,null,{"$f":"G139","v":"$ 0.00 "}]
["17.05(393)","PINTURA                                           ",null,null,null,null,{"$f":"G146","v":"$ 0.00 "}]
["17.06(396)","LIMPIEZA                                          ",null,null,null,null,{"$f":"G151","v":"$ 0.00 "}]
["17.07(410)","CANCELERIA, HERRERIA, ALUMINIO, VIDRIOS Y CHAPAS  ",null,null,null,null,{"$f":"G153","v":"$ 0.00 "}]
["17.08(615)","JUEGOS INFANTILES Y ARENEROS                      ",null,null,null,null,{"$f":"G155","v":"$ 0.00 "}]
[30,"INGRESO TIPO",null,null,null,null,{"$f":"G158","v":"$ 0.00 "}]
["30.01(140)","DEMOLICIONES, DESMONTAJES Y MECANICA DE SUELOS    ",null,null,null,null,{"$f":"G159","v":"$ 0.00 "}]
["30.02(150)","TRABAJOS PRELIMINARES                             ",null,null,null,null,{"$f":"G162","v":"$ 0.00 "}]
["30.03(160)","CIMENTACION                                       ",null,null,null,null,{"$f":"G169","v":"$ 0.00 "}]
["30.04(200)","ESTRUCTURA                                        ",null,null,null,null,{"$f":"G180","v":"$ 0.00 "}]
["30.05(319)","ENTREPISOS, CUBIERTA Y ACABADOS DE AZOTEA         ",null,null,null,null,{"$f":"G187","v":"$ 0.00 "}]
["30.06(372)","PISOS                                             ",null,null,null,null,{"$f":"G189","v":"$ 0.00 "}]
["30.07(382)","ELEMENTOS COMPLEMENTARIOS DE ALBAÑILERIA          ",null,null,null,null,{"$f":"G193","v":"$ 0.00 "}]
["30.08(393)","PINTURA                                           ",null,null,null,null,{"$f":"G195","v":"$ 0.00 "}]
["30.09(396)","LIMPIEZA                                          ",null,null,null,null,{"$f":"G198","v":"$ 0.00 "}]
["30.10(410)","CANCELERIA, HERRERIA, ALUMINIO, VIDRIOS Y CHAPAS  ",null,null,null,null,{"$f":"G200","v":"$ 0.00 "}]
["30.11(510)","INSTALACION ELECTRICA EN EDIFICIO                 ",null,null,null,null,{"$f":"G203","v":"$ 0.00 "}]
["30.12(511)","INSTALACION ELECTRICA EN OBRA EXTERIOR            ",null,null,null,null,{"$f":"G206","v":"$ 0.00 "}]
["33A","MURO DIVISORIO",null,null,null,null,{"$f":"G209","v":"$ 0.00 "}]
["33A.01(140)","DEMOLICIONES, DESMONTAJES Y MECANICA DE SUELOS    ",null,null,null,null,{"$f":"G210","v":"$ 0.00 "}]
["33A.02(150)","TRABAJOS PRELIMINARES                             ",null,null,null,null,{"$f":"G212","v":"$ 0.00 "}]
["33A.03(160)","CIMENTACION                                       ",null,null,null,null,{"$f":"G217","v":"$ 0.00 "}]
["33A.04(310)","MUROS, CADENAS, CASTILLOS Y REPIZONES.            ",null,null,null,null,{"$f":"G224","v":"$ 0.00 "}]
["33A.05(355)","RECUBRIMIENTOS Y ACABADOS                         ",null,null,null,null,{"$f":"G230","v":"$ 0.00 "}]
["33A.06(393)","PINTURA                                           ",null,null,null,null,{"$f":"G233","v":"$ 0.00 "}]
["33B","MURO REJA",null,null,null,null,{"$f":"G235","v":"$ 0.00 "}]
["33B.01(140)","DEMOLICIONES, DESMONTAJES Y MECANICA DE SUELOS    ",null,null,null,null,{"$f":"G236","v":"$ 0.00 "}]
["33B.02(150)","TRABAJOS PRELIMINARES                             ",null,null,null,null,{"$f":"G238","v":"$ 0.00 "}]
["33B.03(160)","CIMENTACION                                       ",null,null,null,null,{"$f":"G243","v":"$ 0.00 "}]
["33B.04(310)","MUROS, CADENAS, CASTILLOS Y REPIZONES.            ",null,null,null,null,{"$f":"G251","v":"$ 0.00 "}]
["33B.05(355)","RECUBRIMIENTOS Y ACABADOS                         ",null,null,null,null,{"$f":"G255","v":"$ 0.00 "}]
["33B.06(372)","PISOS                                             ",null,null,null,null,{"$f":"G258","v":"$ 0.00 "}]
["33B.07(393)","PINTURA                                           ",null,null,null,null,{"$f":"G261","v":"$ 0.00 "}]
["33B.08(410)","CANCELERIA, HERRERIA, ALUMINIO, VIDRIOS Y CHAPAS  ",null,null,null,null,{"$f":"G264","v":"$ 0.00 "}]
[69,"RAMPAS",null,null,null,null,{"$f":"G267","v":"$ 0.00 "}]
["69.01(150)","TRABAJOS PRELIMINARES                             ",null,null,null,null,{"$f":"G268","v":"$ 0.00 "}]
["69.02(160)","CIMENTACION                                       ",null,null,null,null,{"$f":"G274","v":"$ 0.00 "}]
["69.03(310)","MUROS, CADENAS, CASTILLOS Y REPIZONES.            ",null,null,null,null,{"$f":"G281","v":"$ 0.00 "}]
["69.04(372)","PISOS                                             ",null,null,null,null,{"$f":"G283","v":"$ 0.00 "}]
["69.05(393)","PINTURA                                           ",null,null,null,null,{"$f":"G285","v":"$ 0.00 "}]
["69.06(396)","LIMPIEZA                                          ",null,null,null,null,{"$f":"G287","v":"$ 0.00 "}]
["69.07(410)","CANCELERIA, HERRERIA, ALUMINIO, VIDRIOS Y CHAPAS  ",null,null,null,null,{"$f":"G289","v":"$ 0.00 "}]
[82,"CUBIERTA PARA PATIO CIVICO",null,null,null,null,{"$f":"G291","v":"$ 0.00 "}]
["82.01(150)","TRABAJOS PRELIMINARES                             ",null,null,null,null,{"$f":"G292","v":"$ 0.00 "}]
["82.02(160)","CIMENTACION                                       ",null,null,null,null,{"$f":"G296","v":"$ 0.00 "}]
["82.03(200)","ESTRUCTURA                                        ",null,null,null,null,{"$f":"G308","v":"$ 0.00 "}]
["82.04(319)","ENTREPISOS, CUBIERTA Y ACABADOS DE AZOTEA         ",null,null,null,null,{"$f":"G313","v":"$ 0.00 "}]
["82.05(372)","PISOS                                             ",null,null,null,null,{"$f":"G315","v":"$ 0.00 "}]
["82.06(393)","PINTURA                                           ",null,null,null,null,{"$f":"G317","v":"$ 0.00 "}]
["82.07(396)","LIMPIEZA                                          ",null,null,null,null,{"$f":"G321","v":"$ 0.00 "}]
["01","PLAZA Y ANDADORES",null,null,null,null,{"$f":"G323","v":"$ 0.00 "}]
["01.01(372)","PISOS                                             ",null,null,null,null,{"$f":"G324","v":"$ 0.00 "}]
[11,"ASTA BANDERA",null,null,null,null,{"$f":"G326","v":"$ 0.00 "}]
["11.01(382)","ELEMENTOS COMPLEMENTARIOS DE ALBAÑILERIA          ",null,null,null,null,{"$f":"G327","v":"$ 0.00 "}]
["08","MURETE DE ACOMETIDA",null,null,null,null,{"$f":"G329","v":"$ 0.00 "}]
["08.01(382)","ELEMENTOS COMPLEMENTARIOS DE ALBAÑILERIA          ",null,null,null,null,{"$f":"G330","v":"$ 0.00 "}]
["08.02(511)","INSTALACION ELECTRICA EN OBRA EXTERIOR            ",null,null,null,null,{"$f":"G332","v":"$ 0.00 "}]
[]
["IMPORTE CON LETRA (IVA INCLUIDO)",null,null,null,null,"SUBTOTAL M.N.",{"$f":"TEXT(G17,  \"$ #,##0.00 ;\")","v":"$ 0.00 "}]
[{"$f":"UPPER(CONVERTIRNUM(ROUND( G17 * 1.16, 2)))","v":"CERO PESOS 00/100 M.N."},null,null,null,null,"IVA M.N.",{"$f":"TEXT(ROUND( G17 * 0.16, 2),  \"$ #,##0.00 ;\")","v":"$ 0.00 "}]
[null,null,null,null,null,"TOTAL M.N.",{"$f":"TEXT(ROUND( G17 * 1.16, 2),  \"$ #,##0.00 ;\")","v":"$ 0.00 "}]